Workbook

Sheet CAMP PILOTO EVOL
A1: ATUALIZADA EM: 10/12/23 09:49:41 | D1: OK | F1: OK | H1: OK | J1: OK | L1: OK | N1: OK | P1: OK | R1: OK | T1: OK | V1: DIF. LIDER | W1: DIF. 5º | X1: DIF. PRÓXIMO | Y1: OK | AA1: DIF. LIDER | AB1: DIF. 5º | AC1: DIF. PRÓXIMO | AD1: OK | AF1: DIF. LIDER | AG1: DIF. 5º | AH1: DIF. PRÓXIMO | AI1: OK | AK1: DIF. LIDER | AL1: DIF. 5º | AM1: DIF. PRÓXIMO
D2: 2023-01-19 | F2: 2023-02-02 | H2: 2023-02-03 | J2: 2023-05-04 | L2: 2023-06-01 | N2: 2023-07-06 | P2: 2023-08-03 | R2: 2023-09-14 | T2: 2023-09-26 | Y2: 2023-10-05 | AD2: 2023-11-09 | AI2: 2023-11-07
B4: Nome do (a) Piloto (a) | D4: PILOTO | E4: PONTOS | F4: PILOTO | G4: PONTOS | H4: PILOTO | I4: PONTOS | J4: PILOTO | K4: PONTOS | L4: PILOTO | M4: PONTOS | N4: PILOTO | O4: PONTOS | P4: PILOTO | Q4: PONTOS | R4: PILOTO | S4: PONTOS | T4: PILOTO | U4: PONTOS | Y4: PILOTO | Z4: PONTOS | AD4: PILOTO | AE4: PONTOS | AI4: PILOTO | AJ4: PONTOS
A5: X | B5: Fernando Mota | C5: 1 | D5: Luciano Brandão | E5: 45 | F5: Luciano Brandão | G5: 82.00001 | H5: Leonardo Mattioda | I5: 90 | J5: Leonardo Mattioda | K5: 91 | L5: Leonardo Mattioda | M5: 128 | N5: Leonardo Mattioda | O5: 165 | P5: Fernando Mota | Q5: 204 | R5: Fernando Mota | S5: 245 | T5: Fernando Mota | U5: 291 | V5: - | W5: - | X5: - | Y5: Fernando Mota | Z5: 313 | AA5: - | AB5: - | AC5: - | AD5: Fernando Mota | AE5: 337 | AF5: - | AG5: - | AH5: - | AI5: Fernando Mota | AJ5: 374 | AK5: - | AL5: - | AM5: -
A6: X | B6: Guilherme Rocha | C6: 2 | D6: Guilherme Rocha | E6: 40 | F6: Leonardo Mattioda | G6: 82 | H6: Luciano Brandão | I6: 82 | J6: Luciano Brandão | K6: 82 | L6: Fernando Mota | M6: 119 | N6: Fernando Mota | O6: 164 | P6: Leonardo Mattioda | Q6: 202 | R6: Leonardo Mattioda | S6: 228 | T6: Guilherme Rocha | U6: 253 | V6: =U5-U6 -> 38 | W6: - | X6: =U5-U6 -> 38 | Y6: Guilherme Rocha | Z6: 290 | AA6: =Z5-Z6 -> 23 | AB6: - | AC6: =Z5-Z6 -> 23 | AD6: Matheus Dias | AE6: 332 | AF6: =AE5-AE6 -> 5 | AG6: - | AH6: =AE5-AE6 -> 5 | AI6: Guilherme Rocha | AJ6: 365 | AK6: =AJ5-AJ6 -> 9 | AL6: - | AM6: =AJ5-AJ6 -> 9
A7: X | B7: Matheus Dias | C7: 3 | D7: Leonardo Mattioda | E7: 37 | F7: Guilherme Rocha | G7: 80 | H7: Guilherme Rocha | I7: 80 | J7: Joanes Gouvea | K7: 80 | L7: Luciano Brandão | M7: 115 | N7: Luciano Brandão | O7: 156 | P7: Luciano Brandão | Q7: 187 | R7: Luciano Brandão | S7: 224 | T7: Luciano Brandão | U7: 253 | V7: =U5-U7 -> 38 | W7: - | X7: =U6-U7 -> 0 | Y7: Matheus Dias | Z7: 287 | AA7: =Z5-Z7 -> 26 | AB7: - | AC7: =Z6-Z7 -> 3 | AD7: Guilherme Rocha | AE7: 330 | AF7: =AE5-AE7 -> 7 | AG7: - | AH7: =AE6-AE7 -> 2 | AI7: Matheus Dias | AJ7: 361 | AK7: =AJ5-AJ7 -> 13 | AL7: - | AM7: =AJ6-AJ7 -> 4
A8: X | B8: Leonardo Mattioda | C8: 4 | D8: Antônio Ribeiro | E8: 35 | F8: Matheus Dias | G8: 63 | H8: Joanes Gouvea | I8: 70 | J8: Guilherme Rocha | K8: 80 | L8: Joanes Gouvea | M8: 115 | N8: Joanes Gouvea | O8: 148 | P8: Joanes Gouvea | Q8: 181 | R8: Guilherme Rocha | S8: 220 | T8: Leonardo Mattioda | U8: 251 | V8: =U5-U8 -> 40 | W8: - | X8: =U7-U8 -> 2 | Y8: Leonardo Mattioda | Z8: 286 | AA8: =Z5-Z8 -> 27 | AB8: - | AC8: =Z7-Z8 -> 1 | AD8: Leonardo Mattioda | AE8: 308 | AF8: =AE5-AE8 -> 29 | AG8: - | AH8: =AE7-AE8 -> 22 | AI8: Leonardo Mattioda | AJ8: 353 | AK8: =AJ5-AJ8 -> 21 | AL8: - | AM8: =AJ7-AJ8 -> 8
A9: X | B9: Alexandre Melillo | C9: 5 | D9: Vitor Diniz | E9: 34 | F9: Vitor Diniz | G9: 60 | H9: Anderson Teixeira | I9: 67 | J9: Fernando Mota | K9: 73 | L9: Guilherme Rocha | M9: 109 | N9: Guilherme Rocha | O9: 144 | P9: Guilherme Rocha | Q9: 175 | R9: Matheus Dias | S9: 210 | T9: Matheus Dias | U9: 247 | V9: =U5-U9 -> 44 | W9: - | X9: =U8-U9 -> 4 | Y9: Luciano Brandão | Z9: 279 | AA9: =Z5-Z9 -> 34 | AB9: - | AC9: =Z8-Z9 -> 7 | AD9: Luciano Brandão | AE9: 308 | AF9: =AE5-AE9 -> 29 | AG9: - | AH9: =AE8-AE9 -> 0 | AI9: Alexandre Melillo | AJ9: 338 | AK9: =AJ5-AJ9 -> 36 | AL9: - | AM9: =AJ8-AJ9 -> 15
B10: Luciano Brandão | C10: 6 | D10: Agostinho Neves | E10: 31 | F10: Antônio Ribeiro | G10: 57 | H10: Wilson Cristofani | I10: 65 | J10: Anderson Teixeira | K10: 71 | L10: Matheus Dias | M10: 109 | N10: Matheus Dias | O10: 138 | P10: Matheus Dias | Q10: 175 | R10: Joanes Gouvea | S10: 209 | T10: Joanes Gouvea | U10: 240 | V10: =U5-U10 -> 51 | W10: =U9-U10 -> 7 | X10: =U9-U10 -> 7 | Y10: Joanes Gouvea | Z10: 271 | AA10: =Z5-Z10 -> 42 | AB10: =Z9-Z10 -> 8 | AC10: =Z9-Z10 -> 8 | AD10: Joanes Gouvea | AE10: 308 | AF10: =AE5-AE10 -> 29 | AG10: =AE9-AE10 -> 0 | AH10: =AE9-AE10 -> 0 | AI10: Luciano Brandão | AJ10: 335 | AK10: =AJ5-AJ10 -> 39 | AL10: =AJ9-AJ10 -> 3 | AM10: =AJ9-AJ10 -> 3
B11: Joanes Gouvea | C11: 7 | D11: Matheus Dias | E11: 29 | F11: Gladson Souza | G11: 53 | H11: Matheus Dias | I11: 63 | J11: Matheus Dias | K11: 69 | L11: Anderson Teixeira | M11: 106 | N11: Anderson Teixeira | O11: 137 | P11: Alexandre Melillo | Q11: 165 | R11: Anderson Teixeira | S11: 197 | T11: Anderson Teixeira | U11: 237 | V11: =U5-U11 -> 54 | W11: =U9-U11 -> 10 | X11: =U10-U11 -> 3 | Y11: Alexandre Melillo | Z11: 264 | AA11: =Z5-Z11 -> 49 | AB11: =Z9-Z11 -> 15 | AC11: =Z10-Z11 -> 7 | AD11: Alexandre Melillo | AE11: 297 | AF11: =AE5-AE11 -> 40 | AG11: =AE9-AE11 -> 11 | AH11: =AE10-AE11 -> 11 | AI11: Joanes Gouvea | AJ11: 331 | AK11: =AJ5-AJ11 -> 43 | AL11: =AJ9-AJ11 -> 7 | AM11: =AJ10-AJ11 -> 4
B12: Wilson Cristofani | C12: 8 | D12: Wilson Cristofani | E12: 28 | F12: Wilson Cristofani | G12: 52 | H12: Vitor Diniz | I12: 60 | J12: Wilson Cristofani | K12: 65 | L12: Wilson Cristofani | M12: 93 | N12: Alexandre Melillo | O12: 119 | P12: Anderson Teixeira | Q12: 164 | R12: Alexandre Melillo | S12: 196 | T12: Alexandre Melillo | U12: 231 | V12: =U5-U12 -> 60 | W12: =U9-U12 -> 16 | X12: =U11-U12 -> 6 | Y12: Anderson Teixeira | Z12: 257 | AA12: =Z5-Z12 -> 56 | AB12: =Z9-Z12 -> 22 | AC12: =Z11-Z12 -> 7 | AD12: Anderson Teixeira | AE12: 257 | AF12: =AE5-AE12 -> 80 | AG12: =AE9-AE12 -> 51 | AH12: =AE11-AE12 -> 40 | AI12: Wilson Cristofani | AJ12: 287 | AK12: =AJ5-AJ12 -> 87 | AL12: =AJ9-AJ12 -> 51 | AM12: =AJ11-AJ12 -> 44
B13: Vitor Diniz | C13: 9 | D13: Alexandre Melillo | E13: 27 | F13: Alexandre Melillo | G13: 48 | H13: Antônio Ribeiro | I13: 57 | J13: Vitor Diniz | K13: 60 | L13: Vitor Diniz | M13: 85 | N13: Wilson Cristofani | O13: 117 | P13: Wilson Cristofani | Q13: 145 | R13: Wilson Cristofani | S13: 174 | T13: Vitor Diniz | U13: 192 | V13: =U5-U13 -> 99 | W13: =U9-U13 -> 55 | X13: =U12-U13 -> 39 | Y13: Wilson Cristofani | Z13: 220 | AA13: =Z5-Z13 -> 93 | AB13: =Z9-Z13 -> 59 | AC13: =Z12-Z13 -> 37 | AD13: Wilson Cristofani | AE13: 256 | AF13: =AE5-AE13 -> 81 | AG13: =AE9-AE13 -> 52 | AH13: =AE12-AE13 -> 1 | AI13: Vitor Diniz | AJ13: 269 | AK13: =AJ5-AJ13 -> 105 | AL13: =AJ9-AJ13 -> 69 | AM13: =AJ12-AJ13 -> 18
B14: Lúcio Chequer | C14: 10 | D14: Leodegario Junior | E14: 26 | F14: Lúcio Chequer | G14: 48 | H14: Fernando Mota | I14: 55 | J14: Antônio Ribeiro | K14: 57 | L14: Alexandre Melillo | M14: 82 | N14: Vitor Diniz | O14: 113 | P14: Vitor Diniz | Q14: 140 | R14: Vitor Diniz | S14: 165 | T14: Lúcio Chequer | U14: 183 | V14: =U5-U14 -> 108 | W14: =U9-U14 -> 64 | X14: =U13-U14 -> 9 | Y14: Vitor Diniz | Z14: 220 | AA14: =Z5-Z14 -> 93 | AB14: =Z9-Z14 -> 59 | AC14: =Z13-Z14 -> 0 | AD14: Vitor Diniz | AE14: 244 | AF14: =AE5-AE14 -> 93 | AG14: =AE9-AE14 -> 64 | AH14: =AE13-AE14 -> 12 | AI14: Lúcio Chequer | AJ14: 266 | AK14: =AJ5-AJ14 -> 108 | AL14: =AJ9-AJ14 -> 72 | AM14: =AJ13-AJ14 -> 3
B15: Anderson Teixeira | C15: 11 | D15: Leandro Leite | E15: 25 | F15: Joanes Gouvea | G15: 35 | H15: Alexandre Melillo | I15: 54 | J15: Lúcio Chequer | K15: 54 | L15: Lúcio Chequer | M15: 81 | N15: Lúcio Chequer | O15: 105 | P15: Lúcio Chequer | Q15: 134 | R15: Lúcio Chequer | S15: 157 | T15: Gladson Souza | U15: 177 | V15: =U5-U15 -> 114 | W15: =U9-U15 -> 70 | X15: =U14-U15 -> 6 | Y15: Lúcio Chequer | Z15: 212 | AA15: =Z5-Z15 -> 101 | AB15: =Z9-Z15 -> 67 | AC15: =Z14-Z15 -> 8 | AD15: Lúcio Chequer | AE15: 238 | AF15: =AE5-AE15 -> 99 | AG15: =AE9-AE15 -> 70 | AH15: =AE14-AE15 -> 6 | AI15: Anderson Teixeira | AJ15: 257 | AK15: =AJ5-AJ15 -> 117 | AL15: =AJ9-AJ15 -> 81 | AM15: =AJ14-AJ15 -> 9
B16: Gladson Souza | C16: 12 | D16: Gladson Souza | E16: 24 | F16: Agostinho Neves | G16: 31 | H16: Anderson Oliveira | I16: 53 | J16: Alexandre Melillo | K16: 54 | L16: Gladson Souza | M16: 79 | N16: Gladson Souza | O16: 104 | P16: Gladson Souza | Q16: 130 | R16: Gladson Souza | S16: 154 | T16: Wilson Cristofani | U16: 174 | V16: =U5-U16 -> 117 | W16: =U9-U16 -> 73 | X16: =U15-U16 -> 3 | Y16: Gladson Souza | Z16: 204 | AA16: =Z5-Z16 -> 109 | AB16: =Z9-Z16 -> 75 | AC16: =Z15-Z16 -> 8 | AD16: Gladson Souza | AE16: 231 | AF16: =AE5-AE16 -> 106 | AG16: =AE9-AE16 -> 77 | AH16: =AE15-AE16 -> 7 | AI16: Gladson Souza | AJ16: 255 | AK16: =AJ5-AJ16 -> 119 | AL16: =AJ9-AJ16 -> 83 | AM16: =AJ15-AJ16 -> 2
B17: Anderson Oliveira | C17: 13 | D17: Lúcio Chequer | E17: 23 | F17: Anderson Oliveira | G17: 31 | H17: Gladson Souza | I17: 53 | J17: Anderson Oliveira | K17: 53 | L17: Aparecido Arantes | M17: 72 | N17: Leodegario Junior | O17: 88 | P17: Leodegario Junior | Q17: 112 | R17: Leodegario Junior | S17: 136 | T17: Anderson Oliveira | U17: 164 | V17: =U5-U17 -> 127 | W17: =U9-U17 -> 83 | X17: =U16-U17 -> 10 | Y17: Anderson Oliveira | Z17: 189 | AA17: =Z5-Z17 -> 124 | AB17: =Z9-Z17 -> 90 | AC17: =Z16-Z17 -> 15 | AD17: Anderson Oliveira | AE17: 214 | AF17: =AE5-AE17 -> 123 | AG17: =AE9-AE17 -> 94 | AH17: =AE16-AE17 -> 17 | AI17: Anderson Oliveira | AJ17: 235 | AK17: =AJ5-AJ17 -> 139 | AL17: =AJ9-AJ17 -> 103 | AM17: =AJ16-AJ17 -> 20
B18: Leodegario Junior | C18: 14 | D18: Fernando Mota | E18: 22 | F18: Hélio Pedrolli | G18: 28 | H18: Leandro Leite | I18: 53 | J18: Gladson Souza | K18: 53 | L18: Arthur Santiago | M18: 70 | N18: Arthur Santiago | O18: 78 | P18: Anderson Oliveira | Q18: 109 | R18: Anderson Oliveira | S18: 135 | T18: Leodegario Junior | U18: 161 | V18: =U5-U18 -> 130 | W18: =U9-U18 -> 86 | X18: =U17-U18 -> 3 | Y18: Leodegario Junior | Z18: 182 | AA18: =Z5-Z18 -> 131 | AB18: =Z9-Z18 -> 97 | AC18: =Z17-Z18 -> 7 | AD18: Leodegario Junior | AE18: 205 | AF18: =AE5-AE18 -> 132 | AG18: =AE9-AE18 -> 103 | AH18: =AE17-AE18 -> 9 | AI18: Leodegario Junior | AJ18: 227 | AK18: =AJ5-AJ18 -> 147 | AL18: =AJ9-AJ18 -> 111 | AM18: =AJ17-AJ18 -> 8
B19: Hélio Pedrolli | C19: 15 | D19: Arthur Santiago | E19: 19 | F19: Anderson Teixeira | G19: 27 | H19: Hélio Pedrolli | I19: 51 | J19: Leandro Leite | K19: 53 | L19: Leodegario Junior | M19: 61 | N19: Anderson Oliveira | O19: 76 | P19: Hélio Pedrolli | Q19: 98 | R19: Arthur Santiago | S19: 122 | T19: Hélio Pedrolli | U19: 126 | V19: =U5-U19 -> 165 | W19: =U9-U19 -> 121 | X19: =U18-U19 -> 35 | Y19: Hélio Pedrolli | Z19: 150 | AA19: =Z5-Z19 -> 163 | AB19: =Z9-Z19 -> 129 | AC19: =Z18-Z19 -> 32 | AD19: Hélio Pedrolli | AE19: 178 | AF19: =AE5-AE19 -> 159 | AG19: =AE9-AE19 -> 130 | AH19: =AE18-AE19 -> 27 | AI19: Hélio Pedrolli | AJ19: 204 | AK19: =AJ5-AJ19 -> 170 | AL19: =AJ9-AJ19 -> 134 | AM19: =AJ18-AJ19 -> 23
B20: Mathias Almeida | C20: 16 | D20: Aparecido Arantes | E20: 0 | F20: Leodegario Junior | G20: 26 | H20: Aparecido Arantes | I20: 49 | J20: Hélio Pedrolli | K20: 51 | L20: Antônio Ribeiro | M20: 57 | N20: Hélio Pedrolli | O20: 75 | P20: Arthur Santiago | Q20: 95 | R20: Hélio Pedrolli | S20: 98 | T20: Arthur Santiago | U20: 122 | V20: =U5-U20 -> 169 | W20: =U9-U20 -> 125 | X20: =U19-U20 -> 4 | Y20: Arthur Santiago | Z20: 144 | AA20: =Z5-Z20 -> 169 | AB20: =Z9-Z20 -> 135 | AC20: =Z19-Z20 -> 6 | AD20: Arthur Santiago | AE20: 144 | AF20: =AE5-AE20 -> 193 | AG20: =AE9-AE20 -> 164 | AH20: =AE19-AE20 -> 34 | AI20: Mathias Almeida | AJ20: 165 | AK20: =AJ5-AJ20 -> 209 | AL20: =AJ9-AJ20 -> 173 | AM20: =AJ19-AJ20 -> 39
B21: Arthur Santiago | C21: 17 | D21: Hélio Pedrolli | E21: 0 | F21: Leandro Leite | G21: 25 | H21: Lúcio Chequer | I21: 49 | J21: Aparecido Arantes | K21: 49 | L21: Anderson Oliveira | M21: 53 | N21: Aparecido Arantes | O21: 72 | P21: Mathias Almeida | Q21: 78 | R21: Mathias Almeida | S21: 78 | T21: Mathias Almeida | U21: 78 | V21: =U5-U21 -> 213 | W21: =U9-U21 -> 169 | X21: =U20-U21 -> 44 | Y21: Mathias Almeida | Z21: 101 | AA21: =Z5-Z21 -> 212 | AB21: =Z9-Z21 -> 178 | AC21: =Z20-Z21 -> 43 | AD21: Mathias Almeida | AE21: 132 | AF21: =AE5-AE21 -> 205 | AG21: =AE9-AE21 -> 176 | AH21: =AE20-AE21 -> 12 | AI21: Arthur Santiago | AJ21: 144 | AK21: =AJ5-AJ21 -> 230 | AL21: =AJ9-AJ21 -> 194 | AM21: =AJ20-AJ21 -> 21
B22: Leandro Leite | C22: 18 | D22: Mathias Helder | E22: 0 | F22: Aparecido Arantes | G22: 23 | H22: Leodegario Junior | I22: 45 | J22: Leodegario Junior | K22: 48 | L22: Leandro Leite | M22: 53 | N22: Antônio Ribeiro | O22: 57 | P22: Aparecido Arantes | Q22: 72 | R22: Leandro Leite | S22: 74 | T22: Leandro Leite | U22: 74 | V22: =U5-U22 -> 217 | W22: =U9-U22 -> 173 | X22: =U21-U22 -> 4 | Y22: Leandro Leite | Z22: 74 | AA22: =Z5-Z22 -> 239 | AB22: =Z9-Z22 -> 205 | AC22: =Z21-Z22 -> 27 | AD22: Leandro Leite | AE22: 74 | AF22: =AE5-AE22 -> 263 | AG22: =AE9-AE22 -> 234 | AH22: =AE21-AE22 -> 58 | AI22: Leandro Leite | AJ22: 74 | AK22: =AJ5-AJ22 -> 300 | AL22: =AJ9-AJ22 -> 264 | AM22: =AJ21-AJ22 -> 70
B23: Aparecido Arantes | C23: 19 | F23: Fernando Mota | G23: 22 | H23: Agostinho Neves | I23: 31 | J23: Mathias Almeida | K23: 43 | L23: Hélio Pedrolli | M23: 51 | N23: Leandro Leite | O23: 53 | P23: Antônio Ribeiro | Q23: 57 | R23: Aparecido Arantes | S23: 72 | T23: Aparecido Arantes | U23: 72 | V23: =U5-U23 -> 219 | W23: =U9-U23 -> 175 | X23: =U22-U23 -> 2 | Y23: Aparecido Arantes | Z23: 72 | AA23: =Z5-Z23 -> 241 | AB23: =Z9-Z23 -> 207 | AC23: =Z22-Z23 -> 2 | AD23: Aparecido Arantes | AE23: 72 | AF23: =AE5-AE23 -> 265 | AG23: =AE9-AE23 -> 236 | AH23: =AE22-AE23 -> 2 | AI23: Aparecido Arantes | AJ23: 72 | AK23: =AJ5-AJ23 -> 302 | AL23: =AJ9-AJ23 -> 266 | AM23: =AJ22-AJ23 -> 2
B24: Antônio Ribeiro | C24: 20 | F24: Arthur Santiago | G24: 19 | H24: Mathias Almeida | I24: 22 | J24: Arthur Santiago | K24: 39 | L24: Mathias Almeida | M24: 43 | N24: Mathias Almeida | O24: 43 | P24: Leandro Leite | Q24: 53 | R24: Antônio Ribeiro | S24: 57 | T24: Antônio Ribeiro | U24: 57 | V24: =U5-U24 -> 234 | W24: =U9-U24 -> 190 | X24: =U23-U24 -> 15 | Y24: Antônio Ribeiro | Z24: 57 | AA24: =Z5-Z24 -> 256 | AB24: =Z9-Z24 -> 222 | AC24: =Z23-Z24 -> 15 | AD24: Antônio Ribeiro | AE24: 57 | AF24: =AE5-AE24 -> 280 | AG24: =AE9-AE24 -> 251 | AH24: =AE23-AE24 -> 15 | AI24: Antônio Ribeiro | AJ24: 57 | AK24: =AJ5-AJ24 -> 317 | AL24: =AJ9-AJ24 -> 281 | AM24: =AJ23-AJ24 -> 15
B25: Agostinho Neves | C25: 21 | F25: Mathias Almeida | G25: 0 | H25: Arthur Santiago | I25: 19 | J25: Agostinho Neves | K25: 31 | L25: Agostinho Neves | M25: 31 | N25: Agostinho Neves | O25: 31 | P25: Agostinho Neves | Q25: 31 | R25: Agostinho Neves | S25: 31 | T25: Agostinho Neves | U25: 31 | V25: =U5-U25 -> 260 | W25: =U9-U25 -> 216 | X25: =U24-U25 -> 26 | Y25: Agostinho Neves | Z25: 31 | AA25: =Z5-Z25 -> 282 | AB25: =Z9-Z25 -> 248 | AC25: =Z24-Z25 -> 26 | AD25: Agostinho Neves | AE25: 31 | AF25: =AE5-AE25 -> 306 | AG25: =AE9-AE25 -> 277 | AH25: =AE24-AE25 -> 26 | AI25: Agostinho Neves | AJ25: 31 | AK25: =AJ5-AJ25 -> 343 | AL25: =AJ9-AJ25 -> 307 | AM25: =AJ24-AJ25 -> 26
C26: 22 | V26: =U5-U26 -> 291 | W26: =U9-U26 -> 247 | X26: =U25-U26 -> 31 | AA26: =Z5-Z26 -> 313 | AB26: =Z9-Z26 -> 279 | AC26: =Z25-Z26 -> 31 | AF26: =AE5-AE26 -> 337 | AG26: =AE9-AE26 -> 308 | AH26: =AE25-AE26 -> 31 | AK26: =AJ5-AJ26 -> 374 | AL26: =AJ9-AJ26 -> 338 | AM26: =AJ25-AJ26 -> 31
C27: 23 | V27: =U5-U27 -> 291 | W27: =U9-U27 -> 247 | X27: =U26-U27 -> 0 | AA27: =Z5-Z27 -> 313 | AB27: =Z9-Z27 -> 279 | AC27: =Z26-Z27 -> 0 | AF27: =AE5-AE27 -> 337 | AG27: =AE9-AE27 -> 308 | AH27: =AE26-AE27 -> 0 | AK27: =AJ5-AJ27 -> 374 | AL27: =AJ9-AJ27 -> 338 | AM27: =AJ26-AJ27 -> 0
C28: 24 | V28: =U5-U28 -> 291 | W28: =U9-U28 -> 247 | X28: =U27-U28 -> 0 | AA28: =Z5-Z28 -> 313 | AB28: =Z9-Z28 -> 279 | AC28: =Z27-Z28 -> 0 | AF28: =AE5-AE28 -> 337 | AG28: =AE9-AE28 -> 308 | AH28: =AE27-AE28 -> 0 | AK28: =AJ5-AJ28 -> 374 | AL28: =AJ9-AJ28 -> 338 | AM28: =AJ27-AJ28 -> 0
C29: 25 | V29: =U5-U29 -> 291 | W29: =U9-U29 -> 247 | X29: =U28-U29 -> 0 | AA29: =Z5-Z29 -> 313 | AB29: =Z9-Z29 -> 279 | AC29: =Z28-Z29 -> 0 | AF29: =AE5-AE29 -> 337 | AG29: =AE9-AE29 -> 308 | AH29: =AE28-AE29 -> 0 | AK29: =AJ5-AJ29 -> 374 | AL29: =AJ9-AJ29 -> 338 | AM29: =AJ28-AJ29 -> 0
C30: 26 | V30: =U5-U30 -> 291 | W30: =U9-U30 -> 247 | X30: =U29-U30 -> 0 | AA30: =Z5-Z30 -> 313 | AB30: =Z9-Z30 -> 279 | AC30: =Z29-Z30 -> 0 | AF30: =AE5-AE30 -> 337 | AG30: =AE9-AE30 -> 308 | AH30: =AE29-AE30 -> 0 | AK30: =AJ5-AJ30 -> 374 | AL30: =AJ9-AJ30 -> 338 | AM30: =AJ29-AJ30 -> 0
C31: 27 | V31: =U5-U31 -> 291 | W31: =U9-U31 -> 247 | X31: =U30-U31 -> 0 | AA31: =Z5-Z31 -> 313 | AB31: =Z9-Z31 -> 279 | AC31: =Z30-Z31 -> 0 | AF31: =AE5-AE31 -> 337 | AG31: =AE9-AE31 -> 308 | AH31: =AE30-AE31 -> 0 | AK31: =AJ5-AJ31 -> 374 | AL31: =AJ9-AJ31 -> 338 | AM31: =AJ30-AJ31 -> 0
C32: 28 | V32: =U5-U32 -> 291 | W32: =U9-U32 -> 247 | X32: =U31-U32 -> 0 | AA32: =Z5-Z32 -> 313 | AB32: =Z9-Z32 -> 279 | AC32: =Z31-Z32 -> 0 | AF32: =AE5-AE32 -> 337 | AG32: =AE9-AE32 -> 308 | AH32: =AE31-AE32 -> 0 | AK32: =AJ5-AJ32 -> 374 | AL32: =AJ9-AJ32 -> 338 | AM32: =AJ31-AJ32 -> 0
C33: 29 | V33: =U5-U33 -> 291 | W33: =U9-U33 -> 247 | X33: =U32-U33 -> 0 | AA33: =Z5-Z33 -> 313 | AB33: =Z9-Z33 -> 279 | AC33: =Z32-Z33 -> 0 | AF33: =AE5-AE33 -> 337 | AG33: =AE9-AE33 -> 308 | AH33: =AE32-AE33 -> 0 | AK33: =AJ5-AJ33 -> 374 | AL33: =AJ9-AJ33 -> 338 | AM33: =AJ32-AJ33 -> 0
C34: 30 | V34: =U5-U34 -> 291 | W34: =U9-U34 -> 247 | X34: =U33-U34 -> 0 | AA34: =Z5-Z34 -> 313 | AB34: =Z9-Z34 -> 279 | AC34: =Z33-Z34 -> 0 | AF34: =AE5-AE34 -> 337 | AG34: =AE9-AE34 -> 308 | AH34: =AE33-AE34 -> 0 | AK34: =AJ5-AJ34 -> 374 | AL34: =AJ9-AJ34 -> 338 | AM34: =AJ33-AJ34 -> 0
C35: 31 | V35: =U5-U35 -> 291 | W35: =U9-U35 -> 247 | X35: =U34-U35 -> 0 | AA35: =Z5-Z35 -> 313 | AB35: =Z9-Z35 -> 279 | AC35: =Z34-Z35 -> 0 | AF35: =AE5-AE35 -> 337 | AG35: =AE9-AE35 -> 308 | AH35: =AE34-AE35 -> 0 | AK35: =AJ5-AJ35 -> 374 | AL35: =AJ9-AJ35 -> 338 | AM35: =AJ34-AJ35 -> 0
C36: 32 | V36: =U5-U36 -> 291 | W36: =U9-U36 -> 247 | X36: =U35-U36 -> 0 | AA36: =Z5-Z36 -> 313 | AB36: =Z9-Z36 -> 279 | AC36: =Z35-Z36 -> 0 | AF36: =AE5-AE36 -> 337 | AG36: =AE9-AE36 -> 308 | AH36: =AE35-AE36 -> 0 | AK36: =AJ5-AJ36 -> 374 | AL36: =AJ9-AJ36 -> 338 | AM36: =AJ35-AJ36 -> 0
C37: 33 | V37: =U5-U37 -> 291 | W37: =U9-U37 -> 247 | X37: =U36-U37 -> 0 | AA37: =Z5-Z37 -> 313 | AB37: =Z9-Z37 -> 279 | AC37: =Z36-Z37 -> 0 | AF37: =AE5-AE37 -> 337 | AG37: =AE9-AE37 -> 308 | AH37: =AE36-AE37 -> 0 | AK37: =AJ5-AJ37 -> 374 | AL37: =AJ9-AJ37 -> 338 | AM37: =AJ36-AJ37 -> 0
C38: 34 | V38: =U5-U38 -> 291 | W38: =U9-U38 -> 247 | X38: =U37-U38 -> 0 | AA38: =Z5-Z38 -> 313 | AB38: =Z9-Z38 -> 279 | AC38: =Z37-Z38 -> 0 | AF38: =AE5-AE38 -> 337 | AG38: =AE9-AE38 -> 308 | AH38: =AE37-AE38 -> 0 | AK38: =AJ5-AJ38 -> 374 | AL38: =AJ9-AJ38 -> 338 | AM38: =AJ37-AJ38 -> 0
C39: 35 | V39: =U5-U39 -> 291 | W39: =U9-U39 -> 247 | X39: =U38-U39 -> 0 | AA39: =Z5-Z39 -> 313 | AB39: =Z9-Z39 -> 279 | AC39: =Z38-Z39 -> 0 | AF39: =AE5-AE39 -> 337 | AG39: =AE9-AE39 -> 308 | AH39: =AE38-AE39 -> 0 | AK39: =AJ5-AJ39 -> 374 | AL39: =AJ9-AJ39 -> 338 | AM39: =AJ38-AJ39 -> 0
C40: 36 | V40: =U5-U40 -> 291 | W40: =U9-U40 -> 247 | X40: =U39-U40 -> 0 | AA40: =Z5-Z40 -> 313 | AB40: =Z9-Z40 -> 279 | AC40: =Z39-Z40 -> 0 | AF40: =AE5-AE40 -> 337 | AG40: =AE9-AE40 -> 308 | AH40: =AE39-AE40 -> 0 | AK40: =AJ5-AJ40 -> 374 | AL40: =AJ9-AJ40 -> 338 | AM40: =AJ39-AJ40 -> 0
C41: 37 | V41: =U5-U41 -> 291 | W41: =U9-U41 -> 247 | X41: =U40-U41 -> 0 | AA41: =Z5-Z41 -> 313 | AB41: =Z9-Z41 -> 279 | AC41: =Z40-Z41 -> 0 | AF41: =AE5-AE41 -> 337 | AG41: =AE9-AE41 -> 308 | AH41: =AE40-AE41 -> 0 | AK41: =AJ5-AJ41 -> 374 | AL41: =AJ9-AJ41 -> 338 | AM41: =AJ40-AJ41 -> 0
C42: 38 | V42: =U5-U42 -> 291 | W42: =U9-U42 -> 247 | X42: =U41-U42 -> 0 | AA42: =Z5-Z42 -> 313 | AB42: =Z9-Z42 -> 279 | AC42: =Z41-Z42 -> 0 | AF42: =AE5-AE42 -> 337 | AG42: =AE9-AE42 -> 308 | AH42: =AE41-AE42 -> 0 | AK42: =AJ5-AJ42 -> 374 | AL42: =AJ9-AJ42 -> 338 | AM42: =AJ41-AJ42 -> 0
C43: 39 | V43: =U5-U43 -> 291 | W43: =U9-U43 -> 247 | X43: =U42-U43 -> 0 | AA43: =Z5-Z43 -> 313 | AB43: =Z9-Z43 -> 279 | AC43: =Z42-Z43 -> 0 | AF43: =AE5-AE43 -> 337 | AG43: =AE9-AE43 -> 308 | AH43: =AE42-AE43 -> 0 | AK43: =AJ5-AJ43 -> 374 | AL43: =AJ9-AJ43 -> 338 | AM43: =AJ42-AJ43 -> 0
C44: 40 | V44: =U5-U44 -> 291 | W44: =U9-U44 -> 247 | X44: =U43-U44 -> 0 | AA44: =Z5-Z44 -> 313 | AB44: =Z9-Z44 -> 279 | AC44: =Z43-Z44 -> 0 | AF44: =AE5-AE44 -> 337 | AG44: =AE9-AE44 -> 308 | AH44: =AE43-AE44 -> 0 | AK44: =AJ5-AJ44 -> 374 | AL44: =AJ9-AJ44 -> 338 | AM44: =AJ43-AJ44 -> 0
C45: 41 | V45: =U5-U45 -> 291 | W45: =U9-U45 -> 247 | X45: =U44-U45 -> 0 | AA45: =Z5-Z45 -> 313 | AB45: =Z9-Z45 -> 279 | AC45: =Z44-Z45 -> 0 | AF45: =AE5-AE45 -> 337 | AG45: =AE9-AE45 -> 308 | AH45: =AE44-AE45 -> 0 | AK45: =AJ5-AJ45 -> 374 | AL45: =AJ9-AJ45 -> 338 | AM45: =AJ44-AJ45 -> 0
C46: 42 | V46: =U5-U46 -> 291 | W46: =U9-U46 -> 247 | X46: =U45-U46 -> 0 | AA46: =Z5-Z46 -> 313 | AB46: =Z9-Z46 -> 279 | AC46: =Z45-Z46 -> 0 | AF46: =AE5-AE46 -> 337 | AG46: =AE9-AE46 -> 308 | AH46: =AE45-AE46 -> 0 | AK46: =AJ5-AJ46 -> 374 | AL46: =AJ9-AJ46 -> 338 | AM46: =AJ45-AJ46 -> 0
C47: 43 | V47: =U5-U47 -> 291 | W47: =U9-U47 -> 247 | X47: =U46-U47 -> 0 | AA47: =Z5-Z47 -> 313 | AB47: =Z9-Z47 -> 279 | AC47: =Z46-Z47 -> 0 | AF47: =AE5-AE47 -> 337 | AG47: =AE9-AE47 -> 308 | AH47: =AE46-AE47 -> 0 | AK47: =AJ5-AJ47 -> 374 | AL47: =AJ9-AJ47 -> 338 | AM47: =AJ46-AJ47 -> 0
C48: 44 | V48: =U5-U48 -> 291 | W48: =U9-U48 -> 247 | X48: =U47-U48 -> 0 | AA48: =Z5-Z48 -> 313 | AB48: =Z9-Z48 -> 279 | AC48: =Z47-Z48 -> 0 | AF48: =AE5-AE48 -> 337 | AG48: =AE9-AE48 -> 308 | AH48: =AE47-AE48 -> 0 | AK48: =AJ5-AJ48 -> 374 | AL48: =AJ9-AJ48 -> 338 | AM48: =AJ47-AJ48 -> 0
C49: 45 | E49: 0 | L49: XXXXXXX | M49: 0 | N49: XXXXXXX | O49: 0 | R49: XXXXXXX | S49: 0 | T49: XXXXXXX | U49: 0 | V49: - | W49: - | X49: - | Y49: XXXXXXX | Z49: 0 | AA49: - | AB49: - | AC49: - | AF49: - | AG49: - | AH49: - | AI49: - | AJ49: - | AK49: - | AL49: - | AM49: -

Sheet CAMP EQUIPE EVOL
A1: 2023 | B1: OK | D1: OK | F1: OK | H1: OK | J1: OK | L1: OK | N1: OK | P1: OK | R1: OK | T1: DIF. LIDER | U1: DIF. 3º | V1: DIF. PRÓXIMO | W1: OK | Y1: DIF. LIDER | Z1: DIF. 3º | AA1: DIF. PRÓXIMO | AB1: OK | AD1: DIF. LIDER | AE1: DIF. 3º | AF1: DIF. PRÓXIMO | AG1: OK | AI1: DIF. LIDER | AJ1: DIF. 3º | AK1: DIF. PRÓXIMO
B2: 2023-01-19 | D2: 2023-02-02 | F2: 2023-03-02 | H2: 2023-05-04 | J2: 2023-06-01 | L2: 2023-07-06 | N2: 2023-08-03 | P2: 2023-09-14 | R2: 2023-09-26 | W2: 2023-10-05 | AB2: 2023-11-09 | AG2: 2023-12-07
A4: EQUIPES | B4: EQUIPES | C4: Pontuação Geral | D4: EQUIPES | E4: Pontuação Geral | F4: EQUIPES | G4: Pontuação Geral | H4: EQUIPES | I4: Pontuação Geral | J4: EQUIPES | K4: Pontuação Geral | L4: EQUIPES | M4: Pontuação Geral | N4: Posição | O4: Pontos | P4: Posição | Q4: Pontos | R4: Posição | S4: Pontos | W4: Posição | X4: Pontos | AB4: Posição | AC4: Pontos | AG4: Posição | AH4: Pontos
A5: 1º | B5: Os Piratas | C5: 85 | D5: Os Piratas | E5: 162 | F5: Os Piratas | G5: 162 | H5: Os Piratas | I5: 162 | J5: Os Piratas | K5: 230 | L5: Os Piratas | M5: 306 | N5: Os Piratas | O5: 367 | P5: Os Piratas | Q5: 449 | R5: Os Piratas | S5: 508 | T5: - | U5: - | V5: - | W5: Os Piratas | X5: 591 | Y5: - | Z5: - | AA5: - | AB5: Os Piratas | AC5: 667 | AD5: - | AE5: - | AF5: - | AG5: Os Piratas | AH5: 733 | AI5: - | AJ5: - | AK5: -
B6: Luciano Brandão | C6: 45 | D6: Luciano Brandão | E6: 82 | F6: Luciano Brandão | G6: 82 | H6: Luciano Brandão | I6: 82 | J6: Luciano Brandão | K6: 113 | L6: Luciano Brandão | M6: 154 | N6: Luciano Brandão | O6: 187 | P6: Luciano Brandão | Q6: 224 | R6: Luciano Brandão | S6: 224 | T6: - | U6: - | V6: - | W6: Luciano Brandão | X6: 224 | Y6: - | Z6: - | AA6: - | AB6: Luciano Brandão | AC6: 224 | AD6: - | AE6: - | AF6: - | AG6: Luciano Brandão | AH6: 224 | AI6: - | AJ6: - | AK6: -
B7: Guilherme Rocha | C7: 40 | D7: Guilherme Rocha | E7: 80 | F7: Guilherme Rocha | G7: 80 | H7: Guilherme Rocha | I7: 80 | J7: Guilherme Rocha | K7: 80 | L7: Guilherme Rocha | M7: 115 | N7: Guilherme Rocha | O7: 115 | P7: Guilherme Rocha | Q7: 160 | R7: Guilherme Rocha | S7: 191 | T7: - | U7: - | V7: - | W7: Guilherme Rocha | X7: 228 | Y7: - | Z7: - | AA7: - | AB7: Guilherme Rocha | AC7: 268 | AD7: - | AE7: - | AF7: - | AG7: Guilherme Rocha | AH7: 303 | AI7: - | AJ7: - | AK7: -
B8: Wilson Cristofani | C8: 0 | D8: Wilson Cristofani | E8: 0 | F8: Wilson Cristofani | G8: 0 | H8: Wilson Cristofani | I8: 0 | J8: Wilson Cristofani | K8: 37 | L8: Wilson Cristofani | M8: 37 | N8: Wilson Cristofani | O8: 65 | P8: Wilson Cristofani | Q8: 65 | R8: Wilson Cristofani | S8: 93 | T8: - | U8: - | V8: - | W8: Wilson Cristofani | X8: 139 | Y8: - | Z8: - | AA8: - | AB8: Wilson Cristofani | AC8: 175 | AD8: - | AE8: - | AF8: - | AG8: Wilson Cristofani | AH8: 206 | AI8: - | AJ8: - | AK8: -
B9: XXXXXXX | D9: XXXXXXX | F9: XXXXXXX | H9: XXXXXXX | J9: XXXXXXX | L9: XXXXXXX | N9: XXXXXXX | P9: XXXXXXX | R9: XXXXXXX | T9: - | U9: - | V9: - | W9: XXXXXXX | Y9: - | Z9: - | AA9: - | AB9: XXXXXXX | AD9: - | AE9: - | AF9: - | AG9: XXXXXXX | AI9: - | AJ9: - | AK9: -
B10: XXXXXXX | C10: 0 | D10: XXXXXXX | E10: 0 | F10: XXXXXXX | G10: 0 | H10: XXXXXXX | I10: 0 | J10: XXXXXXX | K10: 0 | L10: XXXXXXX | M10: 0 | N10: XXXXXXX | O10: 0 | P10: XXXXXXX | Q10: 0 | R10: XXXXXXX | S10: 0 | T10: - | U10: - | V10: - | W10: XXXXXXX | X10: 0 | Y10: - | Z10: - | AA10: - | AB10: XXXXXXX | AC10: 0 | AD10: - | AE10: - | AF10: - | AG10: XXXXXXX | AH10: 0 | AI10: - | AJ10: - | AK10: -
A11: 2º | B11: Grupo Santiago | C11: 63 | D11: Essencia Studio | E11: 115 | F11: Grupo Santiago | G11: 130 | H11: Grupo Santiago | I11: 131 | J11: Multiseg | K11: 193 | L11: Multiseg | M11: 266 | N11: Multiseg | O11: 339 | P11: Multiseg | Q11: 406 | R11: Multiseg | S11: 481 | T11: =S5-S11 -> 27 | U11: - | V11: =S5-S11 -> 27 | W11: ComOferta | X11: 550 | Y11: =X5-X11 -> 41 | Z11: - | AA11: =X5-X11 -> 41 | AB11: ComOferta | AC11: 628 | AD11: =AC5-AC11 -> 39 | AE11: - | AF11: =AC5-AC11 -> 39 | AG11: ComOferta | AH11: 698 | AI11: =AH5-AH11 -> 35 | AJ11: - | AK11: =AH5-AH11 -> 35
B12: Leonardo Mattioda | C12: 37 | D12: Anderson Teixeira | E12: 27 | F12: Leonardo Mattioda | G12: 82 | H12: Leonardo Mattioda | I12: 83 | J12: Fernando Mota | K12: 86 | L12: Fernando Mota | M12: 131 | N12: Fernando Mota | O12: 171 | P12: Fernando Mota | Q12: 212 | R12: Fernando Mota | S12: 258 | T12: - | U12: - | V12: - | W12: Alexandre Melillo | X12: 236 | Y12: - | Z12: - | AA12: - | AB12: Alexandre Melillo | AC12: 269 | AD12: - | AE12: - | AF12: - | AG12: Alexandre Melillo | AH12: 310 | AI12: - | AJ12: - | AK12: -
B13: Leodegario Junior | C13: 26 | D13: Gladson Souza | E13: 53 | F13: Leodegario Junior | G13: 26 | H13: Leodegario Junior | I13: 26 | J13: Vitor Diniz | K13: 76 | L13: Vitor Diniz | M13: 104 | N13: Vitor Diniz | O13: 104 | P13: Vitor Diniz | Q13: 104 | R13: Vitor Diniz | S13: 104 | T13: - | U13: - | V13: - | W13: Agostinho Neves | X13: 31 | Y13: - | Z13: - | AA13: - | AB13: Agostinho Neves | AC13: 31 | AD13: - | AE13: - | AF13: - | AG13: Agostinho Neves | AH13: 31 | AI13: - | AJ13: - | AK13: -
B14: Mathias Almeida | C14: 0 | D14: Antônio Ribeiro | E14: 35 | F14: Mathias Almeida | G14: 22 | H14: Mathias Almeida | I14: 22 | J14: Anderson Oliveira | K14: 31 | L14: Anderson Oliveira | M14: 31 | N14: Anderson Oliveira | O14: 64 | P14: Anderson Oliveira | Q14: 90 | R14: Anderson Oliveira | S14: 119 | T14: - | U14: - | V14: - | W14: Matheus Dias | X14: 283 | Y14: - | Z14: - | AA14: - | AB14: Matheus Dias | AC14: 328 | AD14: - | AE14: - | AF14: - | AG14: Matheus Dias | AH14: 357 | AI14: - | AJ14: - | AK14: -
B15: XXXXXX | D15: XXX | F15: XXXXXX | H15: XXXXXX | J15: X | L15: X | N15: X | P15: X | R15: X | T15: - | U15: - | V15: - | W15: XX | Y15: - | Z15: - | AA15: - | AB15: XX | AD15: - | AE15: - | AF15: - | AG15: XX | AI15: - | AJ15: - | AK15: -
B16: XXXXXX | C16: 0 | D16: XXX | E16: 0 | F16: XXXXXX | G16: 0 | H16: XXXXXX | I16: 0 | J16: X | K16: 0 | L16: X | M16: 0 | N16: X | O16: 0 | P16: X | Q16: 0 | R16: X | S16: 0 | T16: - | U16: - | V16: - | W16: XX | Y16: - | Z16: - | AA16: - | AB16: XX | AD16: - | AE16: - | AF16: - | AG16: XX | AI16: - | AJ16: - | AK16: -
A17: 3º | B17: ComOferta | C17: 60 | D17: ComOferta | E17: 115 | F17: AST Estrutura | G17: 121 | H17: AST Estrutura | I17: 128 | J17: AST Estrutura | K17: 192 | L17: ComOferta | M17: 256 | N17: ComOferta | O17: 339 | P17: ComOferta | Q17: 405 | R17: ComOferta | S17: 477 | T17: =S5-S17 -> 31 | U17: - | V17: =S11-S17 -> 4 | W17: Multiseg | X17: 536 | Y17: =X5-X17 -> 55 | Z17: - | AA17: =X11-X17 -> 14 | AB17: Multiseg | AC17: 591 | AD17: =AC5-AC17 -> 76 | AE17: - | AF17: =AC11-AC17 -> 37 | AG17: Multiseg | AH17: 653 | AI17: =AH5-AH17 -> 80 | AJ17: - | AK17: =AH11-AH17 -> 45
B18: Alexandre Melillo | C18: 0 | D18: Alexandre Melillo | E18: 21 | F18: Joanes Gouvea | G18: 70 | H18: Joanes Gouvea | I18: 80 | J18: Joanes Gouvea | K18: 113 | L18: Alexandre Melillo | M18: 91 | N18: Alexandre Melillo | O18: 137 | P18: Alexandre Melillo | Q18: 168 | R18: Alexandre Melillo | S18: 203 | T18: - | U18: - | V18: - | W18: Fernando Mota | X18: 280 | Y18: - | Z18: - | AA18: - | AB18: Fernando Mota | AC18: 313 | AD18: - | AE18: - | AF18: - | AG18: Fernando Mota | AH18: 350 | AI18: - | AJ18: - | AK18: -
B19: Agostinho Neves | C19: 31 | D19: Agostinho Neves | E19: 31 | F19: Arthur Santiago | G19: 0 | H19: Arthur Santiago | I19: 20 | J19: Arthur Santiago | K19: 51 | L19: Agostinho Neves | M19: 31 | N19: Agostinho Neves | O19: 31 | P19: Agostinho Neves | Q19: 31 | R19: Agostinho Neves | S19: 31 | T19: - | U19: - | V19: - | W19: Vitor Diniz | X19: 137 | Y19: - | Z19: - | AA19: - | AB19: Vitor Diniz | AC19: 137 | AD19: - | AE19: - | AF19: - | AG19: Vitor Diniz | AH19: 162 | AI19: - | AJ19: - | AK19: -
B20: Matheus Dias | C20: 29 | D20: Matheus Dias | E20: 63 | F20: Hélio Pedrolli | G20: 51 | H20: Hélio Pedrolli | I20: 28 | J20: Hélio Pedrolli | K20: 28 | L20: Matheus Dias | M20: 134 | N20: Matheus Dias | O20: 171 | P20: Matheus Dias | Q20: 206 | R20: Matheus Dias | S20: 243 | T20: - | U20: - | V20: - | W20: Anderson Oliveira | X20: 119 | Y20: - | Z20: - | AA20: - | AB20: Anderson Oliveira | AC20: 141 | AD20: - | AE20: - | AF20: - | AG20: Anderson Oliveira | AH20: 141 | AI20: - | AJ20: - | AK20: -
B21: XX | D21: XX | F21: XXXX | G21: 0 | H21: XXXX | I21: 0 | J21: XXXX | K21: 0 | L21: XX | N21: XX | P21: XX | R21: XX | T21: - | U21: - | V21: - | W21: X | Y21: - | Z21: - | AA21: - | AB21: X | AD21: - | AE21: - | AF21: - | AG21: X | AI21: - | AJ21: - | AK21: -
B22: XX | D22: XX | F22: XXXX | G22: 0 | H22: XXXX | I22: 0 | J22: XXXX | K22: 0 | L22: XX | N22: XX | P22: XX | R22: XX | T22: - | U22: - | V22: - | W22: X | X22: 0 | Y22: - | Z22: - | AA22: - | AB22: X | AC22: 0 | AD22: - | AE22: - | AF22: - | AG22: X | AH22: 0 | AI22: - | AJ22: - | AK22: -
A23: 4º | B23: Essencia Studio | C23: 59 | D23: Multiseg | E23: 113 | F23: Essencia Studio | G23: 119 | H23: Multiseg | I23: 123 | J23: Grupo Santiago | K23: 190 | L23: AST Estrutura | M23: 250 | N23: AST Estrutura | O23: 307 | P23: AST Estrutura | Q23: 362 | R23: AST Estrutura | S23: 421 | T23: =S5-S23 -> 87 | U23: =S$17-S23 -> 56 | V23: =S17-S23 -> 56 | W23: AST Estrutura | X23: 476 | Y23: =X5-X23 -> 115 | Z23: =X$17-X23 -> 60 | AA23: =X17-X23 -> 60 | AB23: AST Estrutura | AC23: 541 | AD23: =AC5-AC23 -> 126 | AE23: =AC$17-AC23 -> 50 | AF23: =AC17-AC23 -> 50 | AG23: Grupo Santiago | AH23: 590 | AI23: =AH5-AH23 -> 143 | AJ23: =AH$17-AH23 -> 63 | AK23: =AH17-AH23 -> 63
B24: Anderson Teixeira | C24: 0 | D24: Fernando Mota | E24: 22 | F24: Anderson Teixeira | G24: 40 | H24: Fernando Mota | I24: 40 | J24: Leonardo Mattioda | K24: 120 | L24: Joanes Gouvea | M24: 148 | N24: Joanes Gouvea | O24: 181 | P24: Joanes Gouvea | Q24: 209 | R24: Joanes Gouvea | S24: 240 | T24: - | U24: - | V24: - | W24: Joanes Gouvea | X24: 271 | Y24: - | Z24: - | AA24: - | AB24: Joanes Gouvea | AC24: 308 | AD24: - | AE24: - | AF24: - | AG24: Leonardo Mattioda | AH24: 286 | AI24: - | AJ24: - | AK24: -
B25: Gladson Souza | C25: 24 | D25: Vitor Diniz | E25: 60 | F25: Gladson Souza | G25: 44 | H25: Vitor Diniz | I25: 52 | J25: Leodegario Junior | K25: 48 | L25: Arthur Santiago | M25: 51 | N25: Arthur Santiago | O25: 51 | P25: Arthur Santiago | Q25: 78 | R25: Arthur Santiago | S25: 78 | T25: - | U25: - | V25: - | W25: Arthur Santiago | X25: 78 | Y25: - | Z25: - | AA25: - | AB25: Arthur Santiago | AC25: 78 | AD25: - | AE25: - | AF25: - | AG25: Leodegario Junior | AH25: 160 | AI25: - | AJ25: - | AK25: -
B26: Antônio Ribeiro | C26: 35 | D26: Anderson Oliveira | E26: 31 | F26: Antônio Ribeiro | G26: 35 | H26: Anderson Oliveira | I26: 31 | J26: Mathias Almeida | K26: 22 | L26: Hélio Pedrolli | M26: 51 | N26: Hélio Pedrolli | O26: 75 | P26: Hélio Pedrolli | Q26: 75 | R26: Hélio Pedrolli | S26: 103 | T26: - | U26: - | V26: - | W26: Hélio Pedrolli | X26: 127 | Y26: - | Z26: - | AA26: - | AB26: Hélio Pedrolli | AC26: 155 | AD26: - | AE26: - | AF26: - | AG26: Mathias Almeida | AH26: 144 | AI26: - | AJ26: - | AK26: -
B27: XXX | D27: X | F27: XXX | H27: X | J27: XXXXXX | L27: XXXX | M27: 0 | N27: XXXX | O27: 0 | P27: XXXX | Q27: 0 | R27: XXXX | S27: 0 | T27: - | U27: - | V27: - | W27: XXXX | X27: 0 | Y27: - | Z27: - | AA27: - | AB27: XXXX | AC27: 0 | AD27: - | AE27: - | AF27: - | AG27: XXXXXX | AI27: - | AJ27: - | AK27: -
B28: XXX | C28: 0 | D28: X | E28: 0 | F28: XXX | G28: 0 | H28: X | I28: 0 | J28: XXXXXX | K28: 0 | L28: XXXX | M28: 0 | N28: XXXX | O28: 0 | P28: XXXX | Q28: 0 | R28: XXXX | S28: 0 | T28: - | U28: - | V28: - | W28: XXXX | X28: 0 | Y28: - | Z28: - | AA28: - | AB28: XXXX | AC28: 0 | AD28: - | AE28: - | AF28: - | AG28: XXXXXX | AH28: 0 | AI28: - | AJ28: - | AK28: -
A29: 5º | B29: Multiseg | C29: 56 | D29: Grupo Santiago | E29: 108 | F29: ComOferta | G29: 115 | H29: ComOferta | I29: 122 | J29: ComOferta | K29: 190 | L29: Grupo Santiago | M29: 243 | N29: Grupo Santiago | O29: 302 | P29: Grupo Santiago | Q29: 352 | R29: Essencia Studio | S29: 403 | T29: =S5-S29 -> 105 | U29: =S$17-S29 -> 74 | V29: =S23-S29 -> 18 | W29: Grupo Santiago | X29: 458 | Y29: =X5-X29 -> 133 | Z29: =X$17-X29 -> 78 | AA29: =X23-X29 -> 18 | AB29: Grupo Santiago | AC29: 512 | AD29: =AC5-AC29 -> 155 | AE29: =AC$17-AC29 -> 79 | AF29: =AC23-AC29 -> 29 | AG29: AST Estrutura | AH29: 590 | AI29: =AH5-AH29 -> 143 | AJ29: =AH$17-AH29 -> 63 | AK29: =AH23-AH29 -> 0
B30: Fernando Mota | C30: 22 | D30: Leonardo Mattioda | E30: 82 | F30: Alexandre Melillo | G30: 21 | H30: Alexandre Melillo | I30: 26 | J30: Alexandre Melillo | K30: 54 | L30: Leonardo Mattioda | M30: 146 | N30: Leonardo Mattioda | O30: 146 | P30: Leonardo Mattioda | Q30: 183 | R30: Anderson Teixeira | S30: 197 | T30: - | U30: - | V30: - | W30: Leonardo Mattioda | X30: 241 | Y30: - | Z30: - | AA30: - | AB30: Leonardo Mattioda | AC30: 241 | AD30: - | AE30: - | AF30: - | AG30: Joanes Gouvea | AH30: 331 | AI30: - | AJ30: - | AK30: -
B31: Vitor Diniz | C31: 34 | D31: Leodegario Junior | E31: 26 | F31: Agostinho Neves | G31: 31 | H31: Agostinho Neves | I31: 31 | J31: Agostinho Neves | K31: 31 | L31: Leodegario Junior | M31: 75 | N31: Leodegario Junior | O31: 99 | P31: Leodegario Junior | Q31: 112 | R31: Gladson Souza | S31: 171 | T31: - | U31: - | V31: - | W31: Leodegario Junior | X31: 137 | Y31: - | Z31: - | AA31: - | AB31: Leodegario Junior | AC31: 160 | AD31: - | AE31: - | AF31: - | AG31: Arthur Santiago | AH31: 78 | AI31: - | AJ31: - | AK31: -
B32: Anderson Oliveira | C32: 0 | D32: Mathias Almeida | E32: 0 | F32: Matheus Dias | G32: 63 | H32: Matheus Dias | I32: 65 | J32: Matheus Dias | K32: 105 | L32: Mathias Almeida | M32: 22 | N32: Mathias Almeida | O32: 57 | P32: Mathias Almeida | Q32: 57 | R32: Antônio Ribeiro | S32: 35 | T32: - | U32: - | V32: - | W32: Mathias Almeida | X32: 80 | Y32: - | Z32: - | AA32: - | AB32: Mathias Almeida | AC32: 111 | AD32: - | AE32: - | AF32: - | AG32: Hélio Pedrolli | AH32: 181 | AI32: - | AJ32: - | AK32: -
B33: X | D33: XXXXXX | F33: XX | H33: XX | J33: XX | L33: XXXXXX | N33: XXXXXX | P33: XXXXXX | R33: XXX | T33: - | U33: - | V33: - | W33: XXXXXX | Y33: - | Z33: - | AA33: - | AB33: XXXXXX | AD33: - | AE33: - | AF33: - | AG33: XXXX | AH33: 0 | AI33: - | AJ33: - | AK33: -
B34: X | C34: 0 | D34: XXXXXX | E34: 0 | F34: XX | H34: XX | J34: XX | L34: XXXXXX | M34: 0 | N34: XXXXXX | O34: 0 | P34: XXXXXX | Q34: 0 | R34: XXX | S34: 0 | T34: - | U34: - | V34: - | W34: XXXXXX | X34: 0 | Y34: - | Z34: - | AA34: - | AB34: XXXXXX | AC34: 0 | AD34: - | AE34: - | AF34: - | AG34: XXXX | AH34: 0 | AI34: - | AJ34: - | AK34: -
A35: 6º | B35: Inovesa | C35: 48 | D35: Inovesa | E35: 96 | F35: Multiseg | G35: 113 | H35: Essencia Studio | I35: 119 | J35: Essencia Studio | K35: 180 | L35: Essencia Studio | M35: 236 | N35: Essencia Studio | O35: 292 | P35: Essencia Studio | Q35: 348 | R35: Grupo Santiago | S35: 400 | T35: =S5-S35 -> 108 | U35: =S$17-S35 -> 77 | V35: =S29-S35 -> 3 | W35: Essencia Studio | X35: 450 | Y35: =X5-X35 -> 141 | Z35: =X$17-X35 -> 86 | AA35: =X29-X35 -> 8 | AB35: Essencia Studio | AC35: 490 | AD35: =AC5-AC35 -> 177 | AE35: =AC$17-AC35 -> 101 | AF35: =AC29-AC35 -> 22 | AG35: Essencia Studio | AH35: 517 | AI35: =AH5-AH35 -> 216 | AJ35: =AH$17-AH35 -> 136 | AK35: =AH29-AH35 -> 73
B36: Lúcio Chequer | C36: 23 | D36: Lúcio Chequer | E36: 48 | F36: Fernando Mota | G36: 22 | H36: Anderson Teixeira | I36: 40 | J36: Anderson Teixeira | K36: 75 | L36: Anderson Teixeira | M36: 102 | N36: Anderson Teixeira | O36: 133 | P36: Anderson Teixeira | Q36: 166 | R36: Leonardo Mattioda | S36: 206 | T36: - | U36: - | V36: - | W36: Anderson Teixeira | X36: 217 | Y36: - | Z36: - | AA36: - | AB36: Anderson Teixeira | AC36: 257 | AD36: - | AE36: - | AF36: - | AG36: Anderson Teixeira | AH36: 257 | AI36: - | AJ36: - | AK36: -
B37: Aparecido Arantes | C37: 0 | D37: Aparecido Arantes | E37: 23 | F37: Vitor Diniz | G37: 60 | H37: Gladson Souza | I37: 44 | J37: Gladson Souza | K37: 70 | L37: Gladson Souza | M37: 99 | N37: Gladson Souza | O37: 124 | P37: Gladson Souza | Q37: 147 | R37: Leodegario Junior | S37: 137 | T37: - | U37: - | V37: - | W37: Gladson Souza | X37: 198 | Y37: - | Z37: - | AA37: - | AB37: Gladson Souza | AC37: 198 | AD37: - | AE37: - | AF37: - | AG37: Gladson Souza | AH37: 225 | AI37: - | AJ37: - | AK37: -
B38: Leandro Leite | C38: 25 | D38: Leandro Leite | E38: 25 | F38: Anderson Oliveira | G38: 31 | H38: Antônio Ribeiro | I38: 35 | J38: Antônio Ribeiro | K38: 35 | L38: Antônio Ribeiro | M38: 35 | N38: Antônio Ribeiro | O38: 35 | P38: Antônio Ribeiro | Q38: 35 | R38: Mathias Almeida | S38: 57 | T38: - | U38: - | V38: - | W38: Antônio Ribeiro | X38: 35 | Y38: - | Z38: - | AA38: - | AB38: Antônio Ribeiro | AC38: 35 | AD38: - | AE38: - | AF38: - | AG38: Antônio Ribeiro | AH38: 35 | AI38: - | AJ38: - | AK38: -
B39: XXXXX | D39: XXXXX | F39: X | H39: XXX | J39: XXX | L39: XXX | N39: XXX | P39: XXX | R39: XXXXXX | T39: - | U39: - | V39: - | W39: XXX | Y39: - | Z39: - | AA39: - | AB39: XXX | AD39: - | AE39: - | AF39: - | AG39: XXX | AI39: - | AJ39: - | AK39: -
B40: XXXXX | C40: 0 | D40: XXXXX | E40: 0 | F40: X | G40: 0 | H40: XXX | I40: 0 | J40: XXX | K40: 0 | L40: XXX | M40: 0 | N40: XXX | O40: 0 | P40: XXX | Q40: 0 | R40: XXXXXX | S40: 0 | T40: - | U40: - | V40: - | W40: XXX | X40: 0 | Y40: - | Z40: - | AA40: - | AB40: XXX | AC40: 0 | AD40: - | AE40: - | AF40: - | AG40: XXX | AH40: 0 | AI40: - | AJ40: - | AK40: -
A41: 7º | B41: AST Estrutura | C41: 19 | D41: AST Estrutura | E41: 82 | F41: Inovesa | G41: 102 | H41: Inovesa | I41: 106 | J41: Inovesa | K41: 154 | L41: Inovesa | M41: 202 | N41: Inovesa | O41: 231 | P41: Inovesa | Q41: 258 | R41: Inovesa | S41: 284 | T41: =S5-S41 -> 224 | U41: =S$17-S41 -> 193 | V41: =S35-S41 -> 116 | W41: Inovesa | X41: 313 | Y41: =X5-X41 -> 278 | Z41: =X$17-X41 -> 223 | AA41: =X35-X41 -> 137 | AB41: Inovesa | AC41: 339 | AD41: =AC5-AC41 -> 328 | AE41: =AC$17-AC41 -> 252 | AF41: =AC35-AC41 -> 151 | AG41: Inovesa | AH41: 367 | AI41: =AH5-AH41 -> 366 | AJ41: =AH$17-AH41 -> 286 | AK41: =AH35-AH41 -> 150
B42: Joanes Gouvea | C42: 0 | D42: Joanes Gouvea | E42: 35 | F42: Lúcio Chequer | G42: 23 | H42: Lúcio Chequer | I42: 29 | J42: Lúcio Chequer | K42: 52 | L42: Lúcio Chequer | M42: 77 | N42: Lúcio Chequer | O42: 106 | P42: Lúcio Chequer | Q42: 133 | R42: Lúcio Chequer | S42: 159 | T42: - | U42: - | V42: - | W42: Lúcio Chequer | X42: 188 | Y42: - | Z42: - | AA42: - | AB42: Lúcio Chequer | AC42: 214 | AD42: - | AE42: - | AF42: - | AG42: Lúcio Chequer | AH42: 242 | AI42: - | AJ42: - | AK42: -
B43: Arthur Santiago | C43: 19 | D43: Arthur Santiago | E43: 19 | F43: Aparecido Arantes | G43: 26 | H43: Aparecido Arantes | I43: 49 | J43: Aparecido Arantes | K43: 49 | L43: Aparecido Arantes | M43: 72 | N43: Aparecido Arantes | O43: 72 | P43: Aparecido Arantes | Q43: 72 | R43: Aparecido Arantes | S43: 72 | T43: - | U43: - | V43: - | W43: Aparecido Arantes | X43: 72 | Y43: - | Z43: - | AA43: - | AB43: Aparecido Arantes | AC43: 72 | AD43: - | AE43: - | AF43: - | AG43: Aparecido Arantes | AH43: 72 | AI43: - | AJ43: - | AK43: -
B44: Hélio Pedrolli | C44: 0 | D44: Hélio Pedrolli | E44: 28 | F44: Leandro Leite | G44: 53 | H44: Leandro Leite | I44: 28 | J44: Leandro Leite | K44: 53 | L44: Leandro Leite | M44: 53 | N44: Leandro Leite | O44: 53 | P44: Leandro Leite | Q44: 53 | R44: Leandro Leite | S44: 53 | T44: - | U44: - | V44: - | W44: Leandro Leite | X44: 53 | Y44: - | Z44: - | AA44: - | AB44: Leandro Leite | AC44: 53 | AD44: - | AE44: - | AF44: - | AG44: Leandro Leite | AH44: 53 | AI44: - | AJ44: - | AK44: -
B45: XXXX | C45: 0 | D45: XXXX | E45: 0 | F45: XXXXX | H45: XXXXX | J45: XXXXX | L45: XXXXX | N45: XXXXX | P45: XXXXX | R45: XXXXX | T45: - | U45: - | V45: - | W45: XXXXX | Y45: - | Z45: - | AA45: - | AB45: XXXXX | AD45: - | AE45: - | AF45: - | AG45: XXXXX | AI45: - | AJ45: - | AK45: -
B46: XXXX | C46: 0 | D46: XXXX | E46: 0 | F46: XXXXX | G46: 0 | H46: XXXXX | I46: 0 | J46: XXXXX | K46: 0 | L46: XXXXX | M46: 0 | N46: XXXXX | O46: 0 | P46: XXXXX | Q46: 0 | R46: XXXXX | S46: 0 | T46: - | U46: - | V46: - | W46: XXXXX | X46: 0 | Y46: - | Z46: - | AA46: - | AB46: XXXXX | AC46: 0 | AD46: - | AE46: - | AF46: - | AG46: XXXXX | AH46: 0 | AI46: - | AJ46: - | AK46: -
A47: 8º | AI47: =AH5-AH47 -> 733 | AJ47: =AH$17-AH47 -> 653 | AK47: =AH41-AH47 -> 367
AI48: - | AJ48: - | AK48: -
AI49: - | AJ49: - | AK49: -
AI50: - | AJ50: - | AK50: -
AI51: - | AJ51: - | AK51: -
AI52: - | AJ52: - | AK52: -
A53: 9º | AI53: =AH5-AH53 -> 733 | AJ53: =AH$17-AH53 -> 653 | AK53: =AH47-AH53 -> 0
AI54: - | AJ54: - | AK54: -
AI55: - | AJ55: - | AK55: -
AI56: - | AJ56: - | AK56: -
AI57: - | AJ57: - | AK57: -
AI58: - | AJ58: - | AK58: -

Sheet TABELA
A1: 2023 | E1: OK | I1: OK | M1: OK | Q1: OK | U1: OK | Y1: OK | AC1: OK | AG1: OK | AK1: OK | AO1: OK | AS1: OK | AW1: OK
D2: 2023-01-19 | H2: 2023-02-02 | L2: 2023-03-02 | P2: 2023-05-04 | T2: 2023-06-01 | X2: 2023-07-06 | AB2: 2023-08-03 | AF2: 2023-09-14 | AJ2: 2023-09-26 | AN2: 2023-10-05 | AR2: 2023-11-09 | AV2: 2023-12-07
B4: Nome do (a) Piloto (a) | C4: Pontuação Geral | D4: Posição | E4: Pontos | F4: Bônus | G4: Penalidade | H4: Posição | I4: Pontos | J4: Bônus | K4: Penalidade | L4: Posição | M4: Pontos | N4: Bônus | O4: Penalidade | P4: Posição | Q4: Pontos | R4: Bônus | S4: Penalidade | T4: Posição | U4: Pontos | V4: Bônus | W4: Penalidade | X4: Posição | Y4: Pontos | Z4: Bônus | AA4: Penalidade | AB4: Posição | AC4: Pontos | AD4: Bônus | AE4: Penalidade | AF4: Posição | AG4: Pontos | AH4: Bônus | AI4: Penalidade | AJ4: Posição | AK4: Pontos | AL4: Bônus | AM4: Penalidade | AN4: Posição | AO4: Pontos | AP4: Bônus | AQ4: Penalidade | AR4: Posição | AS4: Pontos | AT4: Bônus | AU4: Penalidade | AV4: Posição | AW4: Pontos | AX4: Bônus | AY4: Penalidade | AZ4: 1º LUGAR | BA4: 2º LUGAR | BB4: 3º LUGAR | BC4: 4º LUGAR | BD4: 5º LUGAR | BE4: 6º LUGAR | BF4: 7º LUGAR | BG4: 8º LUGAR | BH4: 9º LUGAR | BI4: 10º LUGAR | BJ4: 11º LUGAR | BK4: 12º LUGAR | BL4: 13º LUGAR | BM4: 14º LUGAR | BN4: 15º LUGAR | BO4: 16º LUGAR | BP4: 17º LUGAR | BQ4: 18º LUGAR | BR4: 19º LUGAR | BS4: 20º LUGAR | BT4: 21º LUGAR | BU4: 22º LUGAR | BV4: 23º LUGAR | BW4: 24º LUGAR | BX4: 25º LUGAR | BY4: 26º LUGAR | BZ4: 27º LUGAR | CA4: 28º LUGAR | CB4: 29º LUGAR | CC4: 30º LUGAR | CD4: 31º LUGAR | CE4: 32º LUGAR | CF4: 33º LUGAR | CG4: 34º LUGAR | CH4: 35º LUGAR | CI4: 36º LUGAR | CJ4: 37º LUGAR | CK4: 38º LUGAR | CL4: 39º LUGAR | CM4: 40º LUGAR | CN4: 41º LUGAR
A5: 1 | B5: Agostinho Neves | C5: 31 | D5: 6 | E5: 31 | I5: 0 | M5: 0 | Q5: 0 | U5: 0 | Y5: 0 | AC5: 0 | AG5: 0 | AK5: 0 | AO5: 0 | AS5: 0 | AW5: 0 | AZ5: 0 | BA5: 0 | BB5: 0 | BC5: 0 | BD5: 0 | BE5: 1 | BF5: 0 | BG5: 0 | BH5: 0 | BI5: 0 | BJ5: 0 | BK5: 0 | BL5: 0 | BM5: 0 | BN5: 0 | BO5: 0 | BP5: 0 | BQ5: 0 | BR5: 0 | BS5: 0 | BT5: 0 | BU5: 0 | BV5: 0 | BW5: 0 | BX5: 0 | BY5: 0 | BZ5: 0 | CA5: 0 | CB5: 0 | CC5: 0 | CD5: 0 | CE5: 0 | CF5: 0 | CG5: 0 | CH5: 0 | CI5: 0 | CJ5: 0 | CK5: 0 | CL5: 0 | CM5: 0 | CN5: 0
A6: 2 | B6: Alexandre Melillo | C6: 385 | D6: 9 | E6: 27 | H6: 15 | I6: 21 | L6: 9 | M6: 27 | P6: 10 | Q6: 26 | T6: 8 | U6: 28 | X6: 3 | Y6: 37 | AB6: 1 | AC6: 45 | AD6: 1 | AF6: 6 | AG6: 31 | AJ6: 4 | AK6: 35 | AN6: 5 | AO6: 33 | AR6: 5 | AS6: 33 | AV6: 2 | AW6: 40 | AX6: 1 | AZ6: 1 | BA6: 1 | BB6: 1 | BC6: 1 | BD6: 2 | BE6: 1 | BF6: 0 | BG6: 1 | BH6: 2 | BI6: 1 | BJ6: 0 | BK6: 0 | BL6: 0 | BM6: 0 | BN6: 1 | BO6: 0 | BP6: 0 | BQ6: 0 | BR6: 0 | BS6: 0 | BT6: 0 | BU6: 0 | BV6: 0 | BW6: 0 | BX6: 0 | BY6: 0 | BZ6: 0 | CA6: 0 | CB6: 0 | CC6: 0 | CD6: 0 | CE6: 0 | CF6: 0 | CG6: 0 | CH6: 0 | CI6: 0 | CJ6: 0 | CK6: 0 | CL6: 0 | CM6: 0 | CN6: 0
A7: 3 | B7: Antônio Ribeiro | C7: 57 | D7: 4 | E7: 35 | H7: 14 | I7: 22 | K7: SIM | M7: 0 | Q7: 0 | U7: 0 | Y7: 0 | AC7: 0 | AG7: 0 | AK7: 0 | AO7: 0 | AS7: 0 | AW7: 0 | AZ7: 0 | BA7: 0 | BB7: 0 | BC7: 1 | BD7: 0 | BE7: 0 | BF7: 0 | BG7: 0 | BH7: 0 | BI7: 0 | BJ7: 0 | BK7: 0 | BL7: 0 | BM7: 1 | BN7: 0 | BO7: 0 | BP7: 0 | BQ7: 0 | BR7: 0 | BS7: 0 | BT7: 0 | BU7: 0 | BV7: 0 | BW7: 0 | BX7: 0 | BY7: 0 | BZ7: 0 | CA7: 0 | CB7: 0 | CC7: 0 | CD7: 0 | CE7: 0 | CF7: 0 | CG7: 0 | CH7: 0 | CI7: 0 | CJ7: 0 | CK7: 0 | CL7: 0 | CM7: 0 | CN7: 0
A8: 4 | B8: Aparecido Arantes | C8: 72 | E8: 0 | H8: 13 | I8: 23 | L8: 10 | M8: 26 | P8: 13 | Q8: 23 | U8: 0 | Y8: 0 | AC8: 0 | AG8: 0 | AK8: 0 | AO8: 0 | AS8: 0 | AW8: 0 | AZ8: 0 | BA8: 0 | BB8: 0 | BC8: 0 | BD8: 0 | BE8: 0 | BF8: 0 | BG8: 0 | BH8: 0 | BI8: 1 | BJ8: 0 | BK8: 0 | BL8: 2 | BM8: 0 | BN8: 0 | BO8: 0 | BP8: 0 | BQ8: 0 | BR8: 0 | BS8: 0 | BT8: 0 | BU8: 0 | BV8: 0 | BW8: 0 | BX8: 0 | BY8: 0 | BZ8: 0 | CA8: 0 | CB8: 0 | CC8: 0 | CD8: 0 | CE8: 0 | CF8: 0 | CG8: 0 | CH8: 0 | CI8: 0 | CJ8: 0 | CK8: 0 | CL8: 0 | CM8: 0 | CN8: 0
A9: 5 | B9: Arthur Santiago | C9: 144 | D9: 17 | E9: 19 | G9: SIM | I9: 0 | L9: 19 | M9: 17 | P9: 16 | Q9: 20 | T9: 6 | U9: 31 | X9: 28 | Y9: 8 | AA9: SIM | AC9: 0 | AF9: 9 | AG9: 27 | AK9: 0 | AN9: 14 | AO9: 22 | AS9: 0 | AW9: 0 | AZ9: 0 | BA9: 0 | BB9: 0 | BC9: 0 | BD9: 0 | BE9: 1 | BF9: 0 | BG9: 0 | BH9: 1 | BI9: 0 | BJ9: 0 | BK9: 0 | BL9: 0 | BM9: 1 | BN9: 0 | BO9: 1 | BP9: 1 | BQ9: 0 | BR9: 1 | BS9: 0 | BT9: 0 | BU9: 0 | BV9: 0 | BW9: 0 | BX9: 0 | BY9: 0 | BZ9: 0 | CA9: 1 | CB9: 0 | CC9: 0 | CD9: 0 | CE9: 0 | CF9: 0 | CG9: 0 | CH9: 0 | CI9: 0 | CJ9: 0 | CK9: 0 | CL9: 0 | CM9: 0 | CN9: 0
A10: 6 | B10: Fernando Mota | C10: 393 | D10: 14 | E10: 22 | I10: 0 | L10: 5 | M10: 33 | P10: 2 | Q10: 40 | T10: 1 | U10: 45 | V10: 1 | X10: 1 | Y10: 45 | AB10: 2 | AC10: 40 | AF10: 2 | AG10: 40 | AH10: 1 | AJ10: 1 | AK10: 45 | AL10: 1 | AN10: 17 | AO10: 19 | AR10: 12 | AS10: 24 | AU10: SIM | AV10: 3 | AW10: 37 | AZ10: 3 | BA10: 3 | BB10: 1 | BC10: 0 | BD10: 1 | BE10: 0 | BF10: 0 | BG10: 0 | BH10: 0 | BI10: 0 | BJ10: 0 | BK10: 1 | BL10: 0 | BM10: 1 | BN10: 0 | BO10: 0 | BP10: 1 | BQ10: 0 | BR10: 0 | BS10: 0 | BT10: 0 | BU10: 0 | BV10: 0 | BW10: 0 | BX10: 0 | BY10: 0 | BZ10: 0 | CA10: 0 | CB10: 0 | CC10: 0 | CD10: 0 | CE10: 0 | CF10: 0 | CG10: 0 | CH10: 0 | CI10: 0 | CJ10: 0 | CK10: 0 | CL10: 0 | CM10: 0 | CN10: 0
A11: 7 | B11: Gladson Souza | C11: 275 | D11: 12 | E11: 24 | H11: 7 | I11: 29 | L11: 16 | M11: 20 | P11: 12 | Q11: 24 | T11: 10 | U11: 26 | X11: 11 | Y11: 25 | AB11: 10 | AC11: 26 | AF11: 13 | AG11: 23 | AK11: 0 | AN11: 9 | AO11: 27 | AR11: 9 | AS11: 27 | AV11: 12 | AW11: 24 | AZ11: 0 | BA11: 0 | BB11: 0 | BC11: 0 | BD11: 0 | BE11: 0 | BF11: 1 | BG11: 0 | BH11: 2 | BI11: 2 | BJ11: 1 | BK11: 3 | BL11: 1 | BM11: 0 | BN11: 0 | BO11: 1 | BP11: 0 | BQ11: 0 | BR11: 0 | BS11: 0 | BT11: 0 | BU11: 0 | BV11: 0 | BW11: 0 | BX11: 0 | BY11: 0 | BZ11: 0 | CA11: 0 | CB11: 0 | CC11: 0 | CD11: 0 | CE11: 0 | CF11: 0 | CG11: 0 | CH11: 0 | CI11: 0 | CJ11: 0 | CK11: 0 | CL11: 0 | CM11: 0 | CN11: 0
A12: 8 | B12: Hélio Pedrolli | C12: 204 | E12: 0 | H12: 8 | I12: 28 | L12: 13 | M12: 23 | Q12: 0 | U12: 0 | X12: 12 | Y12: 24 | AB12: 13 | AC12: 23 | AG12: 0 | AJ12: 8 | AK12: 28 | AN12: 12 | AO12: 24 | AR12: 8 | AS12: 28 | AV12: 10 | AW12: 26 | AZ12: 0 | BA12: 0 | BB12: 0 | BC12: 0 | BD12: 0 | BE12: 0 | BF12: 0 | BG12: 3 | BH12: 0 | BI12: 1 | BJ12: 0 | BK12: 2 | BL12: 2 | BM12: 0 | BN12: 0 | BO12: 0 | BP12: 0 | BQ12: 0 | BR12: 0 | BS12: 0 | BT12: 0 | BU12: 0 | BV12: 0 | BW12: 0 | BX12: 0 | BY12: 0 | BZ12: 0 | CA12: 0 | CB12: 0 | CC12: 0 | CD12: 0 | CE12: 0 | CF12: 0 | CG12: 0 | CH12: 0 | CI12: 0 | CJ12: 0 | CK12: 0 | CL12: 0 | CM12: 0 | CN12: 0
A13: 9 | B13: Leandro Leite | C13: 74 | D13: 11 | E13: 25 | I13: 0 | L13: 8 | M13: 28 | Q13: 0 | U13: 0 | Y13: 0 | AC13: 0 | AF13: 15 | AG13: 21 | AK13: 0 | AO13: 0 | AS13: 0 | AW13: 0 | AZ13: 0 | BA13: 0 | BB13: 0 | BC13: 0 | BD13: 0 | BE13: 0 | BF13: 0 | BG13: 1 | BH13: 0 | BI13: 0 | BJ13: 1 | BK13: 0 | BL13: 0 | BM13: 0 | BN13: 1 | BO13: 0 | BP13: 0 | BQ13: 0 | BR13: 0 | BS13: 0 | BT13: 0 | BU13: 0 | BV13: 0 | BW13: 0 | BX13: 0 | BY13: 0 | BZ13: 0 | CA13: 0 | CB13: 0 | CC13: 0 | CD13: 0 | CE13: 0 | CF13: 0 | CG13: 0 | CH13: 0 | CI13: 0 | CJ13: 0 | CK13: 0 | CL13: 0 | CM13: 0 | CN13: 0
A14: 10 | B14: Leodegario Junior | C14: 246 | D14: 10 | E14: 26 | I14: 0 | L14: 17 | M14: 19 | P14: 14 | Q14: 22 | T14: 23 | U14: 13 | W14: SIM | X14: 9 | Y14: 27 | AB14: 12 | AC14: 24 | AF14: 12 | AG14: 24 | AJ14: 11 | AK14: 25 | AN14: 15 | AO14: 21 | AR14: 13 | AS14: 23 | AV14: 14 | AW14: 22 | AZ14: 0 | BA14: 0 | BB14: 0 | BC14: 0 | BD14: 0 | BE14: 0 | BF14: 0 | BG14: 0 | BH14: 1 | BI14: 1 | BJ14: 1 | BK14: 2 | BL14: 1 | BM14: 2 | BN14: 1 | BO14: 0 | BP14: 1 | BQ14: 0 | BR14: 0 | BS14: 0 | BT14: 0 | BU14: 0 | BV14: 1 | BW14: 0 | BX14: 0 | BY14: 0 | BZ14: 0 | CA14: 0 | CB14: 0 | CC14: 0 | CD14: 0 | CE14: 0 | CF14: 0 | CG14: 0 | CH14: 0 | CI14: 0 | CJ14: 0 | CK14: 0 | CL14: 0 | CM14: 0 | CN14: 0
A15: 11 | B15: Leonardo Mattioda | C15: 353 | D15: 3 | E15: 37 | H15: 1 | I15: 45 | L15: 1 | M15: 45 | P15: 3 | Q15: 37 | R15: 1 | T15: 3 | U15: 37 | X15: 10 | Y15: 26 | AC15: 0 | AF15: 14 | AG15: 22 | AJ15: 13 | AK15: 23 | AN15: 4 | AO15: 35 | AS15: 0 | AV15: 1 | AW15: 45 | AZ15: 3 | BA15: 0 | BB15: 3 | BC15: 1 | BD15: 0 | BE15: 0 | BF15: 0 | BG15: 0 | BH15: 0 | BI15: 1 | BJ15: 0 | BK15: 0 | BL15: 1 | BM15: 1 | BN15: 0 | BO15: 0 | BP15: 0 | BQ15: 0 | BR15: 0 | BS15: 0 | BT15: 0 | BU15: 0 | BV15: 0 | BW15: 0 | BX15: 0 | BY15: 0 | BZ15: 0 | CA15: 0 | CB15: 0 | CC15: 0 | CD15: 0 | CE15: 0 | CF15: 0 | CG15: 0 | CH15: 0 | CI15: 0 | CJ15: 0 | CK15: 0 | CL15: 0 | CM15: 0 | CN15: 0
A16: 12 | B16: Luciano Brandão | C16: 384 | D16: 1 | E16: 45 | H16: 3 | I16: 37 | L16: 6 | M16: 31 | P16: 5 | Q16: 33 | T16: 7 | U16: 29 | X16: 2 | Y16: 40 | Z16: 1 | AB16: 11 | AC16: 25 | AF16: 3 | AG16: 37 | AJ16: 12 | AK16: 24 | AN16: 10 | AO16: 26 | AR16: 7 | AS16: 29 | AV16: 9 | AW16: 27 | AZ16: 1 | BA16: 1 | BB16: 2 | BC16: 0 | BD16: 1 | BE16: 1 | BF16: 2 | BG16: 0 | BH16: 1 | BI16: 1 | BJ16: 1 | BK16: 1 | BL16: 0 | BM16: 0 | BN16: 0 | BO16: 0 | BP16: 0 | BQ16: 0 | BR16: 0 | BS16: 0 | BT16: 0 | BU16: 0 | BV16: 0 | BW16: 0 | BX16: 0 | BY16: 0 | BZ16: 0 | CA16: 0 | CB16: 0 | CC16: 0 | CD16: 0 | CE16: 0 | CF16: 0 | CG16: 0 | CH16: 0 | CI16: 0 | CJ16: 0 | CK16: 0 | CL16: 0 | CM16: 0 | CN16: 0
A17: 13 | B17: Lúcio Chequer | C17: 288 | D17: 13 | E17: 23 | H17: 11 | I17: 25 | L17: 12 | M17: 24 | P17: 7 | Q17: 29 | T17: 9 | U17: 27 | X17: 14 | Y17: 22 | AB17: 7 | AC17: 29 | AG17: 0 | AJ17: 10 | AK17: 26 | AN17: 7 | AO17: 29 | AR17: 10 | AS17: 26 | AV17: 8 | AW17: 28 | AZ17: 0 | BA17: 0 | BB17: 0 | BC17: 0 | BD17: 0 | BE17: 0 | BF17: 3 | BG17: 1 | BH17: 1 | BI17: 2 | BJ17: 1 | BK17: 1 | BL17: 1 | BM17: 1 | BN17: 0 | BO17: 0 | BP17: 0 | BQ17: 0 | BR17: 0 | BS17: 0 | BT17: 0 | BU17: 0 | BV17: 0 | BW17: 0 | BX17: 0 | BY17: 0 | BZ17: 0 | CA17: 0 | CB17: 0 | CC17: 0 | CD17: 0 | CE17: 0 | CF17: 0 | CG17: 0 | CH17: 0 | CI17: 0 | CJ17: 0 | CK17: 0 | CL17: 0 | CM17: 0 | CN17: 0
A18: 14 | B18: Matheus Dias | C18: 415 | D18: 7 | E18: 29 | H18: 5 | I18: 33 | J18: 1 | L18: 11 | M18: 25 | P18: 4 | Q18: 35 | T18: 2 | U18: 40 | X18: 7 | Y18: 29 | AB18: 3 | AC18: 37 | AF18: 4 | AG18: 35 | AJ18: 3 | AK18: 37 | AN18: 2 | AO18: 40 | AR18: 1 | AS18: 45 | AV18: 7 | AW18: 29 | AZ18: 1 | BA18: 2 | BB18: 2 | BC18: 2 | BD18: 1 | BE18: 0 | BF18: 3 | BG18: 0 | BH18: 0 | BI18: 0 | BJ18: 1 | BK18: 0 | BL18: 0 | BM18: 0 | BN18: 0 | BO18: 0 | BP18: 0 | BQ18: 0 | BR18: 0 | BS18: 0 | BT18: 0 | BU18: 0 | BV18: 0 | BW18: 0 | BX18: 0 | BY18: 0 | BZ18: 0 | CA18: 0 | CB18: 0 | CC18: 0 | CD18: 0 | CE18: 0 | CF18: 0 | CG18: 0 | CH18: 0 | CI18: 0 | CJ18: 0 | CK18: 0 | CL18: 0 | CM18: 0 | CN18: 0
A19: 15 | B19: Mathias Almeida | C19: 165 | E19: 0 | I19: 0 | L19: 15 | M19: 21 | N19: 1 | O19: SIM | P19: 15 | Q19: 21 | U19: 0 | Y19: 0 | AB19: 4 | AC19: 35 | AG19: 0 | AK19: 0 | AN19: 13 | AO19: 23 | AR19: 6 | AS19: 31 | AV19: 5 | AW19: 33 | AZ19: 0 | BA19: 0 | BB19: 0 | BC19: 1 | BD19: 1 | BE19: 1 | BF19: 0 | BG19: 0 | BH19: 0 | BI19: 0 | BJ19: 0 | BK19: 0 | BL19: 1 | BM19: 0 | BN19: 2 | BO19: 0 | BP19: 0 | BQ19: 0 | BR19: 0 | BS19: 0 | BT19: 0 | BU19: 0 | BV19: 0 | BW19: 0 | BX19: 0 | BY19: 0 | BZ19: 0 | CA19: 0 | CB19: 0 | CC19: 0 | CD19: 0 | CE19: 0 | CF19: 0 | CG19: 0 | CH19: 0 | CI19: 0 | CJ19: 0 | CK19: 0 | CL19: 0 | CM19: 0 | CN19: 0
A20: 16 | B20: Wilson Cristofani | C20: 287 | D20: 8 | E20: 28 | H20: 12 | I20: 24 | L20: 3 | M20: 37 | P20: 8 | Q20: 28 | U20: 0 | Y20: 0 | AB20: 8 | AC20: 28 | AF20: 7 | AG20: 29 | AK20: 0 | AN20: 1 | AO20: 45 | AP20: 1 | AR20: 4 | AS20: 35 | AT20: 1 | AV20: 6 | AW20: 31 | AZ20: 1 | BA20: 0 | BB20: 1 | BC20: 1 | BD20: 0 | BE20: 1 | BF20: 1 | BG20: 3 | BH20: 0 | BI20: 0 | BJ20: 0 | BK20: 1 | BL20: 0 | BM20: 0 | BN20: 0 | BO20: 0 | BP20: 0 | BQ20: 0 | BR20: 0 | BS20: 0 | BT20: 0 | BU20: 0 | BV20: 0 | BW20: 0 | BX20: 0 | BY20: 0 | BZ20: 0 | CA20: 0 | CB20: 0 | CC20: 0 | CD20: 0 | CE20: 0 | CF20: 0 | CG20: 0 | CH20: 0 | CI20: 0 | CJ20: 0 | CK20: 0 | CL20: 0 | CM20: 0 | CN20: 0
A21: 17 | B21: Vitor Diniz | C21: 287 | D21: 5 | E21: 33 | F21: 1 | H21: 10 | I21: 26 | L21: 18 | M21: 18 | P21: 11 | Q21: 25 | T21: 12 | U21: 24 | X21: 8 | Y21: 28 | AB21: 9 | AC21: 27 | AF21: 11 | AG21: 25 | AJ21: 9 | AK21: 27 | AN21: 8 | AO21: 28 | AS21: 0 | AV21: 11 | AW21: 25 | AZ21: 0 | BA21: 0 | BB21: 0 | BC21: 0 | BD21: 1 | BE21: 0 | BF21: 0 | BG21: 2 | BH21: 2 | BI21: 1 | BJ21: 3 | BK21: 1 | BL21: 0 | BM21: 0 | BN21: 0 | BO21: 0 | BP21: 0 | BQ21: 1 | BR21: 0 | BS21: 0 | BT21: 0 | BU21: 0 | BV21: 0 | BW21: 0 | BX21: 0 | BY21: 0 | BZ21: 0 | CA21: 0 | CB21: 0 | CC21: 0 | CD21: 0 | CE21: 0 | CF21: 0 | CG21: 0 | CH21: 0 | CI21: 0 | CJ21: 0 | CK21: 0 | CL21: 0 | CM21: 0 | CN21: 0
A22: 18 | B22: Guilherme Rocha | C22: 417 | D22: 2 | E22: 40 | H22: 2 | I22: 40 | L22: 7 | M22: 29 | P22: 9 | Q22: 27 | T22: 11 | U22: 25 | X22: 4 | Y22: 35 | AB22: 6 | AC22: 31 | AF22: 1 | AG22: 45 | AJ22: 5 | AK22: 33 | AN22: 3 | AO22: 37 | AR22: 2 | AS22: 40 | AV22: 4 | AW22: 35 | AZ22: 1 | BA22: 3 | BB22: 1 | BC22: 2 | BD22: 1 | BE22: 1 | BF22: 1 | BG22: 0 | BH22: 1 | BI22: 0 | BJ22: 1 | BK22: 0 | BL22: 0 | BM22: 0 | BN22: 0 | BO22: 0 | BP22: 0 | BQ22: 0 | BR22: 0 | BS22: 0 | BT22: 0 | BU22: 0 | BV22: 0 | BW22: 0 | BX22: 0 | BY22: 0 | BZ22: 0 | CA22: 0 | CB22: 0 | CC22: 0 | CD22: 0 | CE22: 0 | CF22: 0 | CG22: 0 | CH22: 0 | CI22: 0 | CJ22: 0 | CK22: 0 | CL22: 0 | CM22: 0 | CN22: 0
A23: 19 | B23: Anderson Oliveira | C23: 235 | E23: 0 | H23: 6 | I23: 31 | L23: 14 | M23: 22 | Q23: 0 | U23: 0 | X23: 13 | Y23: 23 | AB23: 5 | AC23: 33 | AF23: 10 | AG23: 26 | AJ23: 7 | AK23: 29 | AN23: 11 | AO23: 25 | AR23: 11 | AS23: 25 | AV23: 15 | AW23: 21 | AZ23: 0 | BA23: 0 | BB23: 0 | BC23: 0 | BD23: 1 | BE23: 1 | BF23: 1 | BG23: 0 | BH23: 0 | BI23: 1 | BJ23: 2 | BK23: 0 | BL23: 1 | BM23: 1 | BN23: 1 | BO23: 0 | BP23: 0 | BQ23: 0 | BR23: 0 | BS23: 0 | BT23: 0 | BU23: 0 | BV23: 0 | BW23: 0 | BX23: 0 | BY23: 0 | BZ23: 0 | CA23: 0 | CB23: 0 | CC23: 0 | CD23: 0 | CE23: 0 | CF23: 0 | CG23: 0 | CH23: 0 | CI23: 0 | CJ23: 0 | CK23: 0 | CL23: 0 | CM23: 0 | CN23: 0
A24: 20 | B24: Anderson Teixeira | C24: 257 | E24: 0 | H24: 9 | I24: 27 | L24: 2 | M24: 40 | P24: 6 | Q24: 31 | T24: 4 | U24: 35 | X24: 6 | Y24: 31 | AC24: 0 | AF24: 5 | AG24: 33 | AJ24: 2 | AK24: 40 | AN24: 16 | AO24: 20 | AS24: 0 | AW24: 0 | AZ24: 0 | BA24: 2 | BB24: 0 | BC24: 1 | BD24: 1 | BE24: 2 | BF24: 0 | BG24: 0 | BH24: 1 | BI24: 0 | BJ24: 0 | BK24: 0 | BL24: 0 | BM24: 0 | BN24: 0 | BO24: 1 | BP24: 0 | BQ24: 0 | BR24: 0 | BS24: 0 | BT24: 0 | BU24: 0 | BV24: 0 | BW24: 0 | BX24: 0 | BY24: 0 | BZ24: 0 | CA24: 0 | CB24: 0 | CC24: 0 | CD24: 0 | CE24: 0 | CF24: 0 | CG24: 0 | CH24: 0 | CI24: 0 | CJ24: 0 | CK24: 0 | CL24: 0 | CM24: 0 | CN24: 0
A25: 21 | B25: Joanes Gouvea | C25: 331 | E25: 0 | H25: 4 | I25: 35 | L25: 4 | M25: 35 | P25: 1 | Q25: 45 | T25: 5 | U25: 33 | X25: 5 | Y25: 33 | AC25: 0 | AF25: 8 | AG25: 28 | AJ25: 6 | AK25: 31 | AN25: 6 | AO25: 31 | AR25: 3 | AS25: 37 | AV25: 13 | AW25: 23 | AZ25: 1 | BA25: 0 | BB25: 1 | BC25: 2 | BD25: 2 | BE25: 2 | BF25: 0 | BG25: 1 | BH25: 0 | BI25: 0 | BJ25: 0 | BK25: 0 | BL25: 1 | BM25: 0 | BN25: 0 | BO25: 0 | BP25: 0 | BQ25: 0 | BR25: 0 | BS25: 0 | BT25: 0 | BU25: 0 | BV25: 0 | BW25: 0 | BX25: 0 | BY25: 0 | BZ25: 0 | CA25: 0 | CB25: 0 | CC25: 0 | CD25: 0 | CE25: 0 | CF25: 0 | CG25: 0 | CH25: 0 | CI25: 0 | CJ25: 0 | CK25: 0 | CL25: 0 | CM25: 0 | CN25: 0
A26: 22 | C26: 0 | E26: 0 | I26: 0 | M26: 0 | Q26: 0 | U26: 0 | Y26: 0 | AC26: 0 | AG26: 0 | AK26: 0 | AO26: 0 | AS26: 0 | AW26: 0 | AZ26: 0 | BA26: 0 | BB26: 0 | BC26: 0 | BD26: 0 | BE26: 0 | BF26: 0 | BG26: 0 | BH26: 0 | BI26: 0 | BJ26: 0 | BK26: 0 | BL26: 0 | BM26: 0 | BN26: 0 | BO26: 0 | BP26: 0 | BQ26: 0 | BR26: 0 | BS26: 0 | BT26: 0 | BU26: 0 | BV26: 0 | BW26: 0 | BX26: 0 | BY26: 0 | BZ26: 0 | CA26: 0 | CB26: 0 | CC26: 0 | CD26: 0 | CE26: 0 | CF26: 0 | CG26: 0 | CH26: 0 | CI26: 0 | CJ26: 0 | CK26: 0 | CL26: 0 | CM26: 0 | CN26: 0
A27: 23 | C27: 0 | E27: 0 | I27: 0 | M27: 0 | Q27: 0 | U27: 0 | Y27: 0 | AC27: 0 | AG27: 0 | AK27: 0 | AO27: 0 | AS27: 0 | AW27: 0 | AZ27: 0 | BA27: 0 | BB27: 0 | BC27: 0 | BD27: 0 | BE27: 0 | BF27: 0 | BG27: 0 | BH27: 0 | BI27: 0 | BJ27: 0 | BK27: 0 | BL27: 0 | BM27: 0 | BN27: 0 | BO27: 0 | BP27: 0 | BQ27: 0 | BR27: 0 | BS27: 0 | BT27: 0 | BU27: 0 | BV27: 0 | BW27: 0 | BX27: 0 | BY27: 0 | BZ27: 0 | CA27: 0 | CB27: 0 | CC27: 0 | CD27: 0 | CE27: 0 | CF27: 0 | CG27: 0 | CH27: 0 | CI27: 0 | CJ27: 0 | CK27: 0 | CL27: 0 | CM27: 0 | CN27: 0
A28: 24 | C28: 0 | E28: 0 | I28: 0 | M28: 0 | Q28: 0 | U28: 0 | Y28: 0 | AC28: 0 | AG28: 0 | AK28: 0 | AO28: 0 | AS28: 0 | AW28: 0 | AZ28: 0 | BA28: 0 | BB28: 0 | BC28: 0 | BD28: 0 | BE28: 0 | BF28: 0 | BG28: 0 | BH28: 0 | BI28: 0 | BJ28: 0 | BK28: 0 | BL28: 0 | BM28: 0 | BN28: 0 | BO28: 0 | BP28: 0 | BQ28: 0 | BR28: 0 | BS28: 0 | BT28: 0 | BU28: 0 | BV28: 0 | BW28: 0 | BX28: 0 | BY28: 0 | BZ28: 0 | CA28: 0 | CB28: 0 | CC28: 0 | CD28: 0 | CE28: 0 | CF28: 0 | CG28: 0 | CH28: 0 | CI28: 0 | CJ28: 0 | CK28: 0 | CL28: 0 | CM28: 0 | CN28: 0
A29: 25 | C29: 0 | E29: 0 | I29: 0 | M29: 0 | Q29: 0 | U29: 0 | Y29: 0 | AC29: 0 | AG29: 0 | AK29: 0 | AO29: 0 | AS29: 0 | AW29: 0 | AZ29: 0 | BA29: 0 | BB29: 0 | BC29: 0 | BD29: 0 | BE29: 0 | BF29: 0 | BG29: 0 | BH29: 0 | BI29: 0 | BJ29: 0 | BK29: 0 | BL29: 0 | BM29: 0 | BN29: 0 | BO29: 0 | BP29: 0 | BQ29: 0 | BR29: 0 | BS29: 0 | BT29: 0 | BU29: 0 | BV29: 0 | BW29: 0 | BX29: 0 | BY29: 0 | BZ29: 0 | CA29: 0 | CB29: 0 | CC29: 0 | CD29: 0 | CE29: 0 | CF29: 0 | CG29: 0 | CH29: 0 | CI29: 0 | CJ29: 0 | CK29: 0 | CL29: 0 | CM29: 0 | CN29: 0
A30: 26 | C30: 0 | E30: 0 | I30: 0 | M30: 0 | Q30: 0 | U30: 0 | Y30: 0 | AC30: 0 | AG30: 0 | AK30: 0 | AO30: 0 | AS30: 0 | AW30: 0 | AZ30: 0 | BA30: 0 | BB30: 0 | BC30: 0 | BD30: 0 | BE30: 0 | BF30: 0 | BG30: 0 | BH30: 0 | BI30: 0 | BJ30: 0 | BK30: 0 | BL30: 0 | BM30: 0 | BN30: 0 | BO30: 0 | BP30: 0 | BQ30: 0 | BR30: 0 | BS30: 0 | BT30: 0 | BU30: 0 | BV30: 0 | BW30: 0 | BX30: 0 | BY30: 0 | BZ30: 0 | CA30: 0 | CB30: 0 | CC30: 0 | CD30: 0 | CE30: 0 | CF30: 0 | CG30: 0 | CH30: 0 | CI30: 0 | CJ30: 0 | CK30: 0 | CL30: 0 | CM30: 0 | CN30: 0
A31: 27 | C31: 0 | E31: 0 | I31: 0 | M31: 0 | Q31: 0 | U31: 0 | Y31: 0 | AC31: 0 | AG31: 0 | AK31: 0 | AO31: 0 | AS31: 0 | AW31: 0 | AZ31: 0 | BA31: 0 | BB31: 0 | BC31: 0 | BD31: 0 | BE31: 0 | BF31: 0 | BG31: 0 | BH31: 0 | BI31: 0 | BJ31: 0 | BK31: 0 | BL31: 0 | BM31: 0 | BN31: 0 | BO31: 0 | BP31: 0 | BQ31: 0 | BR31: 0 | BS31: 0 | BT31: 0 | BU31: 0 | BV31: 0 | BW31: 0 | BX31: 0 | BY31: 0 | BZ31: 0 | CA31: 0 | CB31: 0 | CC31: 0 | CD31: 0 | CE31: 0 | CF31: 0 | CG31: 0 | CH31: 0 | CI31: 0 | CJ31: 0 | CK31: 0 | CL31: 0 | CM31: 0 | CN31: 0
A32: 28 | C32: 0 | E32: 0 | I32: 0 | M32: 0 | Q32: 0 | U32: 0 | Y32: 0 | AC32: 0 | AG32: 0 | AK32: 0 | AO32: 0 | AS32: 0 | AW32: 0 | AZ32: 0 | BA32: 0 | BB32: 0 | BC32: 0 | BD32: 0 | BE32: 0 | BF32: 0 | BG32: 0 | BH32: 0 | BI32: 0 | BJ32: 0 | BK32: 0 | BL32: 0 | BM32: 0 | BN32: 0 | BO32: 0 | BP32: 0 | BQ32: 0 | BR32: 0 | BS32: 0 | BT32: 0 | BU32: 0 | BV32: 0 | BW32: 0 | BX32: 0 | BY32: 0 | BZ32: 0 | CA32: 0 | CB32: 0 | CC32: 0 | CD32: 0 | CE32: 0 | CF32: 0 | CG32: 0 | CH32: 0 | CI32: 0 | CJ32: 0 | CK32: 0 | CL32: 0 | CM32: 0 | CN32: 0
A33: 29 | C33: 0 | E33: 0 | I33: 0 | M33: 0 | Q33: 0 | U33: 0 | Y33: 0 | AC33: 0 | AG33: 0 | AK33: 0 | AO33: 0 | AS33: 0 | AW33: 0 | AZ33: 0 | BA33: 0 | BB33: 0 | BC33: 0 | BD33: 0 | BE33: 0 | BF33: 0 | BG33: 0 | BH33: 0 | BI33: 0 | BJ33: 0 | BK33: 0 | BL33: 0 | BM33: 0 | BN33: 0 | BO33: 0 | BP33: 0 | BQ33: 0 | BR33: 0 | BS33: 0 | BT33: 0 | BU33: 0 | BV33: 0 | BW33: 0 | BX33: 0 | BY33: 0 | BZ33: 0 | CA33: 0 | CB33: 0 | CC33: 0 | CD33: 0 | CE33: 0 | CF33: 0 | CG33: 0 | CH33: 0 | CI33: 0 | CJ33: 0 | CK33: 0 | CL33: 0 | CM33: 0 | CN33: 0
A34: 30 | C34: 0 | E34: 0 | I34: 0 | M34: 0 | Q34: 0 | U34: 0 | Y34: 0 | AC34: 0 | AG34: 0 | AK34: 0 | AO34: 0 | AS34: 0 | AW34: 0 | AZ34: 0 | BA34: 0 | BB34: 0 | BC34: 0 | BD34: 0 | BE34: 0 | BF34: 0 | BG34: 0 | BH34: 0 | BI34: 0 | BJ34: 0 | BK34: 0 | BL34: 0 | BM34: 0 | BN34: 0 | BO34: 0 | BP34: 0 | BQ34: 0 | BR34: 0 | BS34: 0 | BT34: 0 | BU34: 0 | BV34: 0 | BW34: 0 | BX34: 0 | BY34: 0 | BZ34: 0 | CA34: 0 | CB34: 0 | CC34: 0 | CD34: 0 | CE34: 0 | CF34: 0 | CG34: 0 | CH34: 0 | CI34: 0 | CJ34: 0 | CK34: 0 | CL34: 0 | CM34: 0 | CN34: 0
A35: 31 | C35: 0 | E35: 0 | I35: 0 | M35: 0 | Q35: 0 | U35: 0 | Y35: 0 | AC35: 0 | AG35: 0 | AK35: 0 | AO35: 0 | AS35: 0 | AW35: 0 | AZ35: 0 | BA35: 0 | BB35: 0 | BC35: 0 | BD35: 0 | BE35: 0 | BF35: 0 | BG35: 0 | BH35: 0 | BI35: 0 | BJ35: 0 | BK35: 0 | BL35: 0 | BM35: 0 | BN35: 0 | BO35: 0 | BP35: 0 | BQ35: 0 | BR35: 0 | BS35: 0 | BT35: 0 | BU35: 0 | BV35: 0 | BW35: 0 | BX35: 0 | BY35: 0 | BZ35: 0 | CA35: 0 | CB35: 0 | CC35: 0 | CD35: 0 | CE35: 0 | CF35: 0 | CG35: 0 | CH35: 0 | CI35: 0 | CJ35: 0 | CK35: 0 | CL35: 0 | CM35: 0 | CN35: 0
A36: 32 | C36: 0 | E36: 0 | I36: 0 | M36: 0 | Q36: 0 | U36: 0 | Y36: 0 | AC36: 0 | AG36: 0 | AK36: 0 | AO36: 0 | AS36: 0 | AW36: 0 | AZ36: 0 | BA36: 0 | BB36: 0 | BC36: 0 | BD36: 0 | BE36: 0 | BF36: 0 | BG36: 0 | BH36: 0 | BI36: 0 | BJ36: 0 | BK36: 0 | BL36: 0 | BM36: 0 | BN36: 0 | BO36: 0 | BP36: 0 | BQ36: 0 | BR36: 0 | BS36: 0 | BT36: 0 | BU36: 0 | BV36: 0 | BW36: 0 | BX36: 0 | BY36: 0 | BZ36: 0 | CA36: 0 | CB36: 0 | CC36: 0 | CD36: 0 | CE36: 0 | CF36: 0 | CG36: 0 | CH36: 0 | CI36: 0 | CJ36: 0 | CK36: 0 | CL36: 0 | CM36: 0 | CN36: 0
A37: 33 | C37: 0 | E37: 0 | I37: 0 | M37: 0 | Q37: 0 | U37: 0 | Y37: 0 | AC37: 0 | AG37: 0 | AK37: 0 | AO37: 0 | AS37: 0 | AW37: 0 | AZ37: 0 | BA37: 0 | BB37: 0 | BC37: 0 | BD37: 0 | BE37: 0 | BF37: 0 | BG37: 0 | BH37: 0 | BI37: 0 | BJ37: 0 | BK37: 0 | BL37: 0 | BM37: 0 | BN37: 0 | BO37: 0 | BP37: 0 | BQ37: 0 | BR37: 0 | BS37: 0 | BT37: 0 | BU37: 0 | BV37: 0 | BW37: 0 | BX37: 0 | BY37: 0 | BZ37: 0 | CA37: 0 | CB37: 0 | CC37: 0 | CD37: 0 | CE37: 0 | CF37: 0 | CG37: 0 | CH37: 0 | CI37: 0 | CJ37: 0 | CK37: 0 | CL37: 0 | CM37: 0 | CN37: 0
A38: 34 | C38: 0 | E38: 0 | I38: 0 | M38: 0 | Q38: 0 | U38: 0 | Y38: 0 | AC38: 0 | AG38: 0 | AK38: 0 | AO38: 0 | AS38: 0 | AW38: 0 | AZ38: 0 | BA38: 0 | BB38: 0 | BC38: 0 | BD38: 0 | BE38: 0 | BF38: 0 | BG38: 0 | BH38: 0 | BI38: 0 | BJ38: 0 | BK38: 0 | BL38: 0 | BM38: 0 | BN38: 0 | BO38: 0 | BP38: 0 | BQ38: 0 | BR38: 0 | BS38: 0 | BT38: 0 | BU38: 0 | BV38: 0 | BW38: 0 | BX38: 0 | BY38: 0 | BZ38: 0 | CA38: 0 | CB38: 0 | CC38: 0 | CD38: 0 | CE38: 0 | CF38: 0 | CG38: 0 | CH38: 0 | CI38: 0 | CJ38: 0 | CK38: 0 | CL38: 0 | CM38: 0 | CN38: 0
A39: 35 | C39: 0 | E39: 0 | I39: 0 | M39: 0 | Q39: 0 | U39: 0 | Y39: 0 | AC39: 0 | AG39: 0 | AK39: 0 | AO39: 0 | AS39: 0 | AW39: 0 | AZ39: 0 | BA39: 0 | BB39: 0 | BC39: 0 | BD39: 0 | BE39: 0 | BF39: 0 | BG39: 0 | BH39: 0 | BI39: 0 | BJ39: 0 | BK39: 0 | BL39: 0 | BM39: 0 | BN39: 0 | BO39: 0 | BP39: 0 | BQ39: 0 | BR39: 0 | BS39: 0 | BT39: 0 | BU39: 0 | BV39: 0 | BW39: 0 | BX39: 0 | BY39: 0 | BZ39: 0 | CA39: 0 | CB39: 0 | CC39: 0 | CD39: 0 | CE39: 0 | CF39: 0 | CG39: 0 | CH39: 0 | CI39: 0 | CJ39: 0 | CK39: 0 | CL39: 0 | CM39: 0 | CN39: 0
A40: 36 | C40: 0 | E40: 0 | I40: 0 | M40: 0 | Q40: 0 | U40: 0 | Y40: 0 | AC40: 0 | AG40: 0 | AK40: 0 | AO40: 0 | AS40: 0 | AW40: 0 | AZ40: 0 | BA40: 0 | BB40: 0 | BC40: 0 | BD40: 0 | BE40: 0 | BF40: 0 | BG40: 0 | BH40: 0 | BI40: 0 | BJ40: 0 | BK40: 0 | BL40: 0 | BM40: 0 | BN40: 0 | BO40: 0 | BP40: 0 | BQ40: 0 | BR40: 0 | BS40: 0 | BT40: 0 | BU40: 0 | BV40: 0 | BW40: 0 | BX40: 0 | BY40: 0 | BZ40: 0 | CA40: 0 | CB40: 0 | CC40: 0 | CD40: 0 | CE40: 0 | CF40: 0 | CG40: 0 | CH40: 0 | CI40: 0 | CJ40: 0 | CK40: 0 | CL40: 0 | CM40: 0 | CN40: 0
A41: 37 | C41: 0 | E41: 0 | I41: 0 | M41: 0 | Q41: 0 | U41: 0 | Y41: 0 | AC41: 0 | AG41: 0 | AK41: 0 | AO41: 0 | AS41: 0 | AW41: 0 | AZ41: 0 | BA41: 0 | BB41: 0 | BC41: 0 | BD41: 0 | BE41: 0 | BF41: 0 | BG41: 0 | BH41: 0 | BI41: 0 | BJ41: 0 | BK41: 0 | BL41: 0 | BM41: 0 | BN41: 0 | BO41: 0 | BP41: 0 | BQ41: 0 | BR41: 0 | BS41: 0 | BT41: 0 | BU41: 0 | BV41: 0 | BW41: 0 | BX41: 0 | BY41: 0 | BZ41: 0 | CA41: 0 | CB41: 0 | CC41: 0 | CD41: 0 | CE41: 0 | CF41: 0 | CG41: 0 | CH41: 0 | CI41: 0 | CJ41: 0 | CK41: 0 | CL41: 0 | CM41: 0 | CN41: 0
A42: 38 | C42: 0 | E42: 0 | I42: 0 | M42: 0 | Q42: 0 | U42: 0 | Y42: 0 | AC42: 0 | AG42: 0 | AK42: 0 | AO42: 0 | AS42: 0 | AW42: 0 | AZ42: 0 | BA42: 0 | BB42: 0 | BC42: 0 | BD42: 0 | BE42: 0 | BF42: 0 | BG42: 0 | BH42: 0 | BI42: 0 | BJ42: 0 | BK42: 0 | BL42: 0 | BM42: 0 | BN42: 0 | BO42: 0 | BP42: 0 | BQ42: 0 | BR42: 0 | BS42: 0 | BT42: 0 | BU42: 0 | BV42: 0 | BW42: 0 | BX42: 0 | BY42: 0 | BZ42: 0 | CA42: 0 | CB42: 0 | CC42: 0 | CD42: 0 | CE42: 0 | CF42: 0 | CG42: 0 | CH42: 0 | CI42: 0 | CJ42: 0 | CK42: 0 | CL42: 0 | CM42: 0 | CN42: 0
A43: 39 | C43: 0 | E43: 0 | I43: 0 | M43: 0 | Q43: 0 | U43: 0 | Y43: 0 | AC43: 0 | AG43: 0 | AK43: 0 | AO43: 0 | AS43: 0 | AW43: 0 | AZ43: 0 | BA43: 0 | BB43: 0 | BC43: 0 | BD43: 0 | BE43: 0 | BF43: 0 | BG43: 0 | BH43: 0 | BI43: 0 | BJ43: 0 | BK43: 0 | BL43: 0 | BM43: 0 | BN43: 0 | BO43: 0 | BP43: 0 | BQ43: 0 | BR43: 0 | BS43: 0 | BT43: 0 | BU43: 0 | BV43: 0 | BW43: 0 | BX43: 0 | BY43: 0 | BZ43: 0 | CA43: 0 | CB43: 0 | CC43: 0 | CD43: 0 | CE43: 0 | CF43: 0 | CG43: 0 | CH43: 0 | CI43: 0 | CJ43: 0 | CK43: 0 | CL43: 0 | CM43: 0 | CN43: 0
A44: 40 | C44: 0 | E44: 0 | I44: 0 | M44: 0 | Q44: 0 | U44: 0 | Y44: 0 | AC44: 0 | AG44: 0 | AK44: 0 | AO44: 0 | AS44: 0 | AW44: 0 | AZ44: 0 | BA44: 0 | BB44: 0 | BC44: 0 | BD44: 0 | BE44: 0 | BF44: 0 | BG44: 0 | BH44: 0 | BI44: 0 | BJ44: 0 | BK44: 0 | BL44: 0 | BM44: 0 | BN44: 0 | BO44: 0 | BP44: 0 | BQ44: 0 | BR44: 0 | BS44: 0 | BT44: 0 | BU44: 0 | BV44: 0 | BW44: 0 | BX44: 0 | BY44: 0 | BZ44: 0 | CA44: 0 | CB44: 0 | CC44: 0 | CD44: 0 | CE44: 0 | CF44: 0 | CG44: 0 | CH44: 0 | CI44: 0 | CJ44: 0 | CK44: 0 | CL44: 0 | CM44: 0 | CN44: 0
A45: 41 | C45: 0 | E45: 0 | I45: 0 | M45: 0 | Q45: 0 | U45: 0 | Y45: 0 | AC45: 0 | AG45: 0 | AK45: 0 | AO45: 0 | AS45: 0 | AW45: 0 | AZ45: 0 | BA45: 0 | BB45: 0 | BC45: 0 | BD45: 0 | BE45: 0 | BF45: 0 | BG45: 0 | BH45: 0 | BI45: 0 | BJ45: 0 | BK45: 0 | BL45: 0 | BM45: 0 | BN45: 0 | BO45: 0 | BP45: 0 | BQ45: 0 | BR45: 0 | BS45: 0 | BT45: 0 | BU45: 0 | BV45: 0 | BW45: 0 | BX45: 0 | BY45: 0 | BZ45: 0 | CA45: 0 | CB45: 0 | CC45: 0 | CD45: 0 | CE45: 0 | CF45: 0 | CG45: 0 | CH45: 0 | CI45: 0 | CJ45: 0 | CK45: 0 | CL45: 0 | CM45: 0 | CN45: 0
A46: 42 | C46: 0 | E46: 0 | I46: 0 | M46: 0 | Q46: 0 | U46: 0 | Y46: 0 | AC46: 0 | AG46: 0 | AK46: 0 | AO46: 0 | AS46: 0 | AW46: 0 | AZ46: 0 | BA46: 0 | BB46: 0 | BC46: 0 | BD46: 0 | BE46: 0 | BF46: 0 | BG46: 0 | BH46: 0 | BI46: 0 | BJ46: 0 | BK46: 0 | BL46: 0 | BM46: 0 | BN46: 0 | BO46: 0 | BP46: 0 | BQ46: 0 | BR46: 0 | BS46: 0 | BT46: 0 | BU46: 0 | BV46: 0 | BW46: 0 | BX46: 0 | BY46: 0 | BZ46: 0 | CA46: 0 | CB46: 0 | CC46: 0 | CD46: 0 | CE46: 0 | CF46: 0 | CG46: 0 | CH46: 0 | CI46: 0 | CJ46: 0 | CK46: 0 | CL46: 0 | CM46: 0 | CN46: 0
A47: 43 | C47: 0 | E47: 0 | I47: 0 | M47: 0 | Q47: 0 | U47: 0 | Y47: 0 | AC47: 0 | AG47: 0 | AK47: 0 | AO47: 0 | AS47: 0 | AW47: 0 | AZ47: 0 | BA47: 0 | BB47: 0 | BC47: 0 | BD47: 0 | BE47: 0 | BF47: 0 | BG47: 0 | BH47: 0 | BI47: 0 | BJ47: 0 | BK47: 0 | BL47: 0 | BM47: 0 | BN47: 0 | BO47: 0 | BP47: 0 | BQ47: 0 | BR47: 0 | BS47: 0 | BT47: 0 | BU47: 0 | BV47: 0 | BW47: 0 | BX47: 0 | BY47: 0 | BZ47: 0 | CA47: 0 | CB47: 0 | CC47: 0 | CD47: 0 | CE47: 0 | CF47: 0 | CG47: 0 | CH47: 0 | CI47: 0 | CJ47: 0 | CK47: 0 | CL47: 0 | CM47: 0 | CN47: 0
A48: 44 | C48: 0 | E48: 0 | I48: 0 | M48: 0 | Q48: 0 | U48: 0 | Y48: 0 | AC48: 0 | AG48: 0 | AK48: 0 | AO48: 0 | AS48: 0 | AW48: 0 | AZ48: 0 | BA48: 0 | BB48: 0 | BC48: 0 | BD48: 0 | BE48: 0 | BF48: 0 | BG48: 0 | BH48: 0 | BI48: 0 | BJ48: 0 | BK48: 0 | BL48: 0 | BM48: 0 | BN48: 0 | BO48: 0 | BP48: 0 | BQ48: 0 | BR48: 0 | BS48: 0 | BT48: 0 | BU48: 0 | BV48: 0 | BW48: 0 | BX48: 0 | BY48: 0 | BZ48: 0 | CA48: 0 | CB48: 0 | CC48: 0 | CD48: 0 | CE48: 0 | CF48: 0 | CG48: 0 | CH48: 0 | CI48: 0 | CJ48: 0 | CK48: 0 | CL48: 0 | CM48: 0 | CN48: 0
A49: 45 | C49: 0 | E49: 0 | I49: 0 | M49: 0 | Q49: 0 | U49: 0 | Y49: 0 | AC49: 0 | AG49: 0 | AK49: 0 | AO49: 0 | AS49: 0 | AW49: 0 | AZ49: 0 | BA49: 0 | BB49: 0 | BC49: 0 | BD49: 0 | BE49: 0 | BF49: 0 | BG49: 0 | BH49: 0 | BI49: 0 | BJ49: 0 | BK49: 0 | BL49: 0 | BM49: 0 | BN49: 0 | BO49: 0 | BP49: 0 | BQ49: 0 | BR49: 0 | BS49: 0 | BT49: 0 | BU49: 0 | BV49: 0 | BW49: 0 | BX49: 0 | BY49: 0 | BZ49: 0 | CA49: 0 | CB49: 0 | CC49: 0 | CD49: 0 | CE49: 0 | CF49: 0 | CG49: 0 | CH49: 0 | CI49: 0 | CJ49: 0 | CK49: 0 | CL49: 0 | CM49: 0 | CN49: 0

Sheet Classificação Geral
A1: 2023 | E1: OK | I1: OK | M1: OK | Q1: OK | U1: OK | Y1: OK | AC1: OK | AG1: OK | AK1: OK | AO1: OK | AS1: OK | AW1: OK
D2: 2023-01-19 | H2: 2023-02-02 | L2: 2023-03-02 | P2: 2023-05-04 | T2: 2023-06-01 | X2: 2023-07-06 | AB2: 2023-08-03 | AF2: 2023-09-14 | AJ2: 2023-09-26 | AN2: 2023-10-05 | AR2: 2023-11-09 | AV2: 2023-12-07
B4: Nome do (a) Piloto (a) | C4: Pontuação Geral | D4: Posição | E4: Pontos | F4: Bônus | G4: Penalidade | H4: Posição | I4: Pontos | J4: Bônus | K4: Penalidade | L4: Posição | M4: Pontos | N4: Bônus | O4: Penalidade | P4: Posição | Q4: Pontos | R4: Bônus | S4: Penalidade | T4: Posição | U4: Pontos | V4: Bônus | W4: Penalidade | X4: Posição | Y4: Pontos | Z4: Bônus | AA4: Penalidade | AB4: Posição | AC4: Pontos | AD4: Bônus | AE4: Penalidade | AF4: Posição | AG4: Pontos | AH4: Bônus | AI4: Penalidade | AJ4: Posição | AK4: Pontos | AL4: Bônus | AM4: Penalidade | AN4: Posição | AO4: Pontos | AP4: Bônus | AQ4: Penalidade | AR4: Posição | AS4: Pontos | AT4: Bônus | AU4: Penalidade | AV4: Posição | AW4: Pontos | AX4: Bônus | AY4: Penalidade | AZ4: 1º LUGAR | BA4: 2º LUGAR | BB4: 3º LUGAR | BC4: 4º LUGAR | BD4: 5º LUGAR | BE4: 6º LUGAR | BF4: 7º LUGAR | BG4: 8º LUGAR | BH4: 9º LUGAR | BI4: 10º LUGAR | BJ4: 11º LUGAR | BK4: 12º LUGAR | BL4: 13º LUGAR | BM4: 14º LUGAR | BN4: 15º LUGAR | BO4: 16º LUGAR | BP4: 17º LUGAR | BQ4: 18º LUGAR | BR4: 19º LUGAR | BS4: 20º LUGAR | BT4: 21º LUGAR | BU4: 22º LUGAR | BV4: 23º LUGAR | BW4: 24º LUGAR | BX4: 25º LUGAR | BY4: 26º LUGAR | BZ4: 27º LUGAR | CA4: 28º LUGAR | CB4: 29º LUGAR | CC4: 30º LUGAR | CD4: 31º LUGAR | CE4: 32º LUGAR | CF4: 33º LUGAR | CG4: 34º LUGAR | CH4: 35º LUGAR | CI4: 36º LUGAR | CJ4: 37º LUGAR | CK4: 38º LUGAR | CL4: 39º LUGAR | CM4: 40º LUGAR | CN4: 41º LUGAR
A5: 1 | B5: Guilherme Rocha | C5: 417 | D5: 2 | E5: 40 | H5: 2 | I5: 40 | L5: 7 | M5: 29 | P5: 9 | Q5: 27 | T5: 11 | U5: 25 | X5: 4 | Y5: 35 | AB5: 6 | AC5: 31 | AF5: 1 | AG5: 45 | AJ5: 5 | AK5: 33 | AN5: 3 | AO5: 37 | AR5: 2 | AS5: 40 | AV5: 4 | AW5: 35 | AZ5: 1 | BA5: 3 | BB5: 1 | BC5: 2 | BD5: 1 | BE5: 1 | BF5: 1 | BG5: 0 | BH5: 1 | BI5: 0 | BJ5: 1 | BK5: 0 | BL5: 0 | BM5: 0 | BN5: 0 | BO5: 0 | BP5: 0 | BQ5: 0 | BR5: 0 | BS5: 0 | BT5: 0 | BU5: 0 | BV5: 0 | BW5: 0 | BX5: 0 | BY5: 0 | BZ5: 0 | CA5: 0 | CB5: 0 | CC5: 0 | CD5: 0 | CE5: 0 | CF5: 0 | CG5: 0 | CH5: 0 | CI5: 0 | CJ5: 0 | CK5: 0 | CL5: 0 | CM5: 0 | CN5: 0
A6: 2 | B6: Matheus Dias | C6: 415 | D6: 7 | E6: 29 | H6: 5 | I6: 33 | J6: 1 | L6: 11 | M6: 25 | P6: 4 | Q6: 35 | T6: 2 | U6: 40 | X6: 7 | Y6: 29 | AB6: 3 | AC6: 37 | AF6: 4 | AG6: 35 | AJ6: 3 | AK6: 37 | AN6: 2 | AO6: 40 | AR6: 1 | AS6: 45 | AV6: 7 | AW6: 29 | AZ6: 1 | BA6: 2 | BB6: 2 | BC6: 2 | BD6: 1 | BE6: 0 | BF6: 3 | BG6: 0 | BH6: 0 | BI6: 0 | BJ6: 1 | BK6: 0 | BL6: 0 | BM6: 0 | BN6: 0 | BO6: 0 | BP6: 0 | BQ6: 0 | BR6: 0 | BS6: 0 | BT6: 0 | BU6: 0 | BV6: 0 | BW6: 0 | BX6: 0 | BY6: 0 | BZ6: 0 | CA6: 0 | CB6: 0 | CC6: 0 | CD6: 0 | CE6: 0 | CF6: 0 | CG6: 0 | CH6: 0 | CI6: 0 | CJ6: 0 | CK6: 0 | CL6: 0 | CM6: 0 | CN6: 0
A7: 3 | B7: Fernando Mota | C7: 393 | D7: 14 | E7: 22 | I7: 0 | L7: 5 | M7: 33 | P7: 2 | Q7: 40 | T7: 1 | U7: 45 | V7: 1 | X7: 1 | Y7: 45 | AB7: 2 | AC7: 40 | AF7: 2 | AG7: 40 | AH7: 1 | AJ7: 1 | AK7: 45 | AL7: 1 | AN7: 17 | AO7: 19 | AR7: 12 | AS7: 24 | AU7: SIM | AV7: 3 | AW7: 37 | AZ7: 3 | BA7: 3 | BB7: 1 | BC7: 0 | BD7: 1 | BE7: 0 | BF7: 0 | BG7: 0 | BH7: 0 | BI7: 0 | BJ7: 0 | BK7: 1 | BL7: 0 | BM7: 1 | BN7: 0 | BO7: 0 | BP7: 1 | BQ7: 0 | BR7: 0 | BS7: 0 | BT7: 0 | BU7: 0 | BV7: 0 | BW7: 0 | BX7: 0 | BY7: 0 | BZ7: 0 | CA7: 0 | CB7: 0 | CC7: 0 | CD7: 0 | CE7: 0 | CF7: 0 | CG7: 0 | CH7: 0 | CI7: 0 | CJ7: 0 | CK7: 0 | CL7: 0 | CM7: 0 | CN7: 0
A8: 4 | B8: Alexandre Melillo | C8: 385 | D8: 9 | E8: 27 | H8: 15 | I8: 21 | L8: 9 | M8: 27 | P8: 10 | Q8: 26 | T8: 8 | U8: 28 | X8: 3 | Y8: 37 | AB8: 1 | AC8: 45 | AD8: 1 | AF8: 6 | AG8: 31 | AJ8: 4 | AK8: 35 | AN8: 5 | AO8: 33 | AR8: 5 | AS8: 33 | AV8: 2 | AW8: 40 | AX8: 1 | AZ8: 1 | BA8: 1 | BB8: 1 | BC8: 1 | BD8: 2 | BE8: 1 | BF8: 0 | BG8: 1 | BH8: 2 | BI8: 1 | BJ8: 0 | BK8: 0 | BL8: 0 | BM8: 0 | BN8: 1 | BO8: 0 | BP8: 0 | BQ8: 0 | BR8: 0 | BS8: 0 | BT8: 0 | BU8: 0 | BV8: 0 | BW8: 0 | BX8: 0 | BY8: 0 | BZ8: 0 | CA8: 0 | CB8: 0 | CC8: 0 | CD8: 0 | CE8: 0 | CF8: 0 | CG8: 0 | CH8: 0 | CI8: 0 | CJ8: 0 | CK8: 0 | CL8: 0 | CM8: 0 | CN8: 0
A9: 5 | B9: Luciano Brandão | C9: 384 | D9: 1 | E9: 45 | H9: 3 | I9: 37 | L9: 6 | M9: 31 | P9: 5 | Q9: 33 | T9: 7 | U9: 29 | X9: 2 | Y9: 40 | Z9: 1 | AB9: 11 | AC9: 25 | AF9: 3 | AG9: 37 | AJ9: 12 | AK9: 24 | AN9: 10 | AO9: 26 | AR9: 7 | AS9: 29 | AV9: 9 | AW9: 27 | AZ9: 1 | BA9: 1 | BB9: 2 | BC9: 0 | BD9: 1 | BE9: 1 | BF9: 2 | BG9: 0 | BH9: 1 | BI9: 1 | BJ9: 1 | BK9: 1 | BL9: 0 | BM9: 0 | BN9: 0 | BO9: 0 | BP9: 0 | BQ9: 0 | BR9: 0 | BS9: 0 | BT9: 0 | BU9: 0 | BV9: 0 | BW9: 0 | BX9: 0 | BY9: 0 | BZ9: 0 | CA9: 0 | CB9: 0 | CC9: 0 | CD9: 0 | CE9: 0 | CF9: 0 | CG9: 0 | CH9: 0 | CI9: 0 | CJ9: 0 | CK9: 0 | CL9: 0 | CM9: 0 | CN9: 0
A10: 6 | B10: Leonardo Mattioda | C10: 353 | D10: 3 | E10: 37 | H10: 1 | I10: 45 | L10: 1 | M10: 45 | P10: 3 | Q10: 37 | R10: 1 | T10: 3 | U10: 37 | X10: 10 | Y10: 26 | AC10: 0 | AF10: 14 | AG10: 22 | AJ10: 13 | AK10: 23 | AN10: 4 | AO10: 35 | AS10: 0 | AV10: 1 | AW10: 45 | AZ10: 3 | BA10: 0 | BB10: 3 | BC10: 1 | BD10: 0 | BE10: 0 | BF10: 0 | BG10: 0 | BH10: 0 | BI10: 1 | BJ10: 0 | BK10: 0 | BL10: 1 | BM10: 1 | BN10: 0 | BO10: 0 | BP10: 0 | BQ10: 0 | BR10: 0 | BS10: 0 | BT10: 0 | BU10: 0 | BV10: 0 | BW10: 0 | BX10: 0 | BY10: 0 | BZ10: 0 | CA10: 0 | CB10: 0 | CC10: 0 | CD10: 0 | CE10: 0 | CF10: 0 | CG10: 0 | CH10: 0 | CI10: 0 | CJ10: 0 | CK10: 0 | CL10: 0 | CM10: 0 | CN10: 0
A11: 7 | B11: Joanes Gouvea | C11: 331 | E11: 0 | H11: 4 | I11: 35 | L11: 4 | M11: 35 | P11: 1 | Q11: 45 | T11: 5 | U11: 33 | X11: 5 | Y11: 33 | AC11: 0 | AF11: 8 | AG11: 28 | AJ11: 6 | AK11: 31 | AN11: 6 | AO11: 31 | AR11: 3 | AS11: 37 | AV11: 13 | AW11: 23 | AZ11: 1 | BA11: 0 | BB11: 1 | BC11: 2 | BD11: 2 | BE11: 2 | BF11: 0 | BG11: 1 | BH11: 0 | BI11: 0 | BJ11: 0 | BK11: 0 | BL11: 1 | BM11: 0 | BN11: 0 | BO11: 0 | BP11: 0 | BQ11: 0 | BR11: 0 | BS11: 0 | BT11: 0 | BU11: 0 | BV11: 0 | BW11: 0 | BX11: 0 | BY11: 0 | BZ11: 0 | CA11: 0 | CB11: 0 | CC11: 0 | CD11: 0 | CE11: 0 | CF11: 0 | CG11: 0 | CH11: 0 | CI11: 0 | CJ11: 0 | CK11: 0 | CL11: 0 | CM11: 0 | CN11: 0
A12: 8 | B12: Lúcio Chequer | C12: 288 | D12: 13 | E12: 23 | H12: 11 | I12: 25 | L12: 12 | M12: 24 | P12: 7 | Q12: 29 | T12: 9 | U12: 27 | X12: 14 | Y12: 22 | AB12: 7 | AC12: 29 | AG12: 0 | AJ12: 10 | AK12: 26 | AN12: 7 | AO12: 29 | AR12: 10 | AS12: 26 | AV12: 8 | AW12: 28 | AZ12: 0 | BA12: 0 | BB12: 0 | BC12: 0 | BD12: 0 | BE12: 0 | BF12: 3 | BG12: 1 | BH12: 1 | BI12: 2 | BJ12: 1 | BK12: 1 | BL12: 1 | BM12: 1 | BN12: 0 | BO12: 0 | BP12: 0 | BQ12: 0 | BR12: 0 | BS12: 0 | BT12: 0 | BU12: 0 | BV12: 0 | BW12: 0 | BX12: 0 | BY12: 0 | BZ12: 0 | CA12: 0 | CB12: 0 | CC12: 0 | CD12: 0 | CE12: 0 | CF12: 0 | CG12: 0 | CH12: 0 | CI12: 0 | CJ12: 0 | CK12: 0 | CL12: 0 | CM12: 0 | CN12: 0
A13: 9 | B13: Wilson Cristofani | C13: 287 | D13: 8 | E13: 28 | H13: 12 | I13: 24 | L13: 3 | M13: 37 | P13: 8 | Q13: 28 | U13: 0 | Y13: 0 | AB13: 8 | AC13: 28 | AF13: 7 | AG13: 29 | AK13: 0 | AN13: 1 | AO13: 45 | AP13: 1 | AR13: 4 | AS13: 35 | AT13: 1 | AV13: 6 | AW13: 31 | AZ13: 1 | BA13: 0 | BB13: 1 | BC13: 1 | BD13: 0 | BE13: 1 | BF13: 1 | BG13: 3 | BH13: 0 | BI13: 0 | BJ13: 0 | BK13: 1 | BL13: 0 | BM13: 0 | BN13: 0 | BO13: 0 | BP13: 0 | BQ13: 0 | BR13: 0 | BS13: 0 | BT13: 0 | BU13: 0 | BV13: 0 | BW13: 0 | BX13: 0 | BY13: 0 | BZ13: 0 | CA13: 0 | CB13: 0 | CC13: 0 | CD13: 0 | CE13: 0 | CF13: 0 | CG13: 0 | CH13: 0 | CI13: 0 | CJ13: 0 | CK13: 0 | CL13: 0 | CM13: 0 | CN13: 0
A14: 10 | B14: Vitor Diniz | C14: 287 | D14: 5 | E14: 33 | F14: 1 | H14: 10 | I14: 26 | L14: 18 | M14: 18 | P14: 11 | Q14: 25 | T14: 12 | U14: 24 | X14: 8 | Y14: 28 | AB14: 9 | AC14: 27 | AF14: 11 | AG14: 25 | AJ14: 9 | AK14: 27 | AN14: 8 | AO14: 28 | AS14: 0 | AV14: 11 | AW14: 25 | AZ14: 0 | BA14: 0 | BB14: 0 | BC14: 0 | BD14: 1 | BE14: 0 | BF14: 0 | BG14: 2 | BH14: 2 | BI14: 1 | BJ14: 3 | BK14: 1 | BL14: 0 | BM14: 0 | BN14: 0 | BO14: 0 | BP14: 0 | BQ14: 1 | BR14: 0 | BS14: 0 | BT14: 0 | BU14: 0 | BV14: 0 | BW14: 0 | BX14: 0 | BY14: 0 | BZ14: 0 | CA14: 0 | CB14: 0 | CC14: 0 | CD14: 0 | CE14: 0 | CF14: 0 | CG14: 0 | CH14: 0 | CI14: 0 | CJ14: 0 | CK14: 0 | CL14: 0 | CM14: 0 | CN14: 0
A15: 11 | B15: Gladson Souza | C15: 275 | D15: 12 | E15: 24 | H15: 7 | I15: 29 | L15: 16 | M15: 20 | P15: 12 | Q15: 24 | T15: 10 | U15: 26 | X15: 11 | Y15: 25 | AB15: 10 | AC15: 26 | AF15: 13 | AG15: 23 | AK15: 0 | AN15: 9 | AO15: 27 | AR15: 9 | AS15: 27 | AV15: 12 | AW15: 24 | AZ15: 0 | BA15: 0 | BB15: 0 | BC15: 0 | BD15: 0 | BE15: 0 | BF15: 1 | BG15: 0 | BH15: 2 | BI15: 2 | BJ15: 1 | BK15: 3 | BL15: 1 | BM15: 0 | BN15: 0 | BO15: 1 | BP15: 0 | BQ15: 0 | BR15: 0 | BS15: 0 | BT15: 0 | BU15: 0 | BV15: 0 | BW15: 0 | BX15: 0 | BY15: 0 | BZ15: 0 | CA15: 0 | CB15: 0 | CC15: 0 | CD15: 0 | CE15: 0 | CF15: 0 | CG15: 0 | CH15: 0 | CI15: 0 | CJ15: 0 | CK15: 0 | CL15: 0 | CM15: 0 | CN15: 0
A16: 12 | B16: Anderson Teixeira | C16: 257 | E16: 0 | H16: 9 | I16: 27 | L16: 2 | M16: 40 | P16: 6 | Q16: 31 | T16: 4 | U16: 35 | X16: 6 | Y16: 31 | AC16: 0 | AF16: 5 | AG16: 33 | AJ16: 2 | AK16: 40 | AN16: 16 | AO16: 20 | AS16: 0 | AW16: 0 | AZ16: 0 | BA16: 2 | BB16: 0 | BC16: 1 | BD16: 1 | BE16: 2 | BF16: 0 | BG16: 0 | BH16: 1 | BI16: 0 | BJ16: 0 | BK16: 0 | BL16: 0 | BM16: 0 | BN16: 0 | BO16: 1 | BP16: 0 | BQ16: 0 | BR16: 0 | BS16: 0 | BT16: 0 | BU16: 0 | BV16: 0 | BW16: 0 | BX16: 0 | BY16: 0 | BZ16: 0 | CA16: 0 | CB16: 0 | CC16: 0 | CD16: 0 | CE16: 0 | CF16: 0 | CG16: 0 | CH16: 0 | CI16: 0 | CJ16: 0 | CK16: 0 | CL16: 0 | CM16: 0 | CN16: 0
A17: 13 | B17: Leodegario Junior | C17: 246 | D17: 10 | E17: 26 | I17: 0 | L17: 17 | M17: 19 | P17: 14 | Q17: 22 | T17: 23 | U17: 13 | W17: SIM | X17: 9 | Y17: 27 | AB17: 12 | AC17: 24 | AF17: 12 | AG17: 24 | AJ17: 11 | AK17: 25 | AN17: 15 | AO17: 21 | AR17: 13 | AS17: 23 | AV17: 14 | AW17: 22 | AZ17: 0 | BA17: 0 | BB17: 0 | BC17: 0 | BD17: 0 | BE17: 0 | BF17: 0 | BG17: 0 | BH17: 1 | BI17: 1 | BJ17: 1 | BK17: 2 | BL17: 1 | BM17: 2 | BN17: 1 | BO17: 0 | BP17: 1 | BQ17: 0 | BR17: 0 | BS17: 0 | BT17: 0 | BU17: 0 | BV17: 1 | BW17: 0 | BX17: 0 | BY17: 0 | BZ17: 0 | CA17: 0 | CB17: 0 | CC17: 0 | CD17: 0 | CE17: 0 | CF17: 0 | CG17: 0 | CH17: 0 | CI17: 0 | CJ17: 0 | CK17: 0 | CL17: 0 | CM17: 0 | CN17: 0
A18: 14 | B18: Anderson Oliveira | C18: 235 | E18: 0 | H18: 6 | I18: 31 | L18: 14 | M18: 22 | Q18: 0 | U18: 0 | X18: 13 | Y18: 23 | AB18: 5 | AC18: 33 | AF18: 10 | AG18: 26 | AJ18: 7 | AK18: 29 | AN18: 11 | AO18: 25 | AR18: 11 | AS18: 25 | AV18: 15 | AW18: 21 | AZ18: 0 | BA18: 0 | BB18: 0 | BC18: 0 | BD18: 1 | BE18: 1 | BF18: 1 | BG18: 0 | BH18: 0 | BI18: 1 | BJ18: 2 | BK18: 0 | BL18: 1 | BM18: 1 | BN18: 1 | BO18: 0 | BP18: 0 | BQ18: 0 | BR18: 0 | BS18: 0 | BT18: 0 | BU18: 0 | BV18: 0 | BW18: 0 | BX18: 0 | BY18: 0 | BZ18: 0 | CA18: 0 | CB18: 0 | CC18: 0 | CD18: 0 | CE18: 0 | CF18: 0 | CG18: 0 | CH18: 0 | CI18: 0 | CJ18: 0 | CK18: 0 | CL18: 0 | CM18: 0 | CN18: 0
A19: 15 | B19: Hélio Pedrolli | C19: 204 | E19: 0 | H19: 8 | I19: 28 | L19: 13 | M19: 23 | Q19: 0 | U19: 0 | X19: 12 | Y19: 24 | AB19: 13 | AC19: 23 | AG19: 0 | AJ19: 8 | AK19: 28 | AN19: 12 | AO19: 24 | AR19: 8 | AS19: 28 | AV19: 10 | AW19: 26 | AZ19: 0 | BA19: 0 | BB19: 0 | BC19: 0 | BD19: 0 | BE19: 0 | BF19: 0 | BG19: 3 | BH19: 0 | BI19: 1 | BJ19: 0 | BK19: 2 | BL19: 2 | BM19: 0 | BN19: 0 | BO19: 0 | BP19: 0 | BQ19: 0 | BR19: 0 | BS19: 0 | BT19: 0 | BU19: 0 | BV19: 0 | BW19: 0 | BX19: 0 | BY19: 0 | BZ19: 0 | CA19: 0 | CB19: 0 | CC19: 0 | CD19: 0 | CE19: 0 | CF19: 0 | CG19: 0 | CH19: 0 | CI19: 0 | CJ19: 0 | CK19: 0 | CL19: 0 | CM19: 0 | CN19: 0
A20: 16 | B20: Mathias Almeida | C20: 165 | E20: 0 | I20: 0 | L20: 15 | M20: 21 | N20: 1 | O20: SIM | P20: 15 | Q20: 21 | U20: 0 | Y20: 0 | AB20: 4 | AC20: 35 | AG20: 0 | AK20: 0 | AN20: 13 | AO20: 23 | AR20: 6 | AS20: 31 | AV20: 5 | AW20: 33 | AZ20: 0 | BA20: 0 | BB20: 0 | BC20: 1 | BD20: 1 | BE20: 1 | BF20: 0 | BG20: 0 | BH20: 0 | BI20: 0 | BJ20: 0 | BK20: 0 | BL20: 1 | BM20: 0 | BN20: 2 | BO20: 0 | BP20: 0 | BQ20: 0 | BR20: 0 | BS20: 0 | BT20: 0 | BU20: 0 | BV20: 0 | BW20: 0 | BX20: 0 | BY20: 0 | BZ20: 0 | CA20: 0 | CB20: 0 | CC20: 0 | CD20: 0 | CE20: 0 | CF20: 0 | CG20: 0 | CH20: 0 | CI20: 0 | CJ20: 0 | CK20: 0 | CL20: 0 | CM20: 0 | CN20: 0
A21: 17 | B21: Arthur Santiago | C21: 144 | D21: 17 | E21: 19 | G21: SIM | I21: 0 | L21: 19 | M21: 17 | P21: 16 | Q21: 20 | T21: 6 | U21: 31 | X21: 28 | Y21: 8 | AA21: SIM | AC21: 0 | AF21: 9 | AG21: 27 | AK21: 0 | AN21: 14 | AO21: 22 | AS21: 0 | AW21: 0 | AZ21: 0 | BA21: 0 | BB21: 0 | BC21: 0 | BD21: 0 | BE21: 1 | BF21: 0 | BG21: 0 | BH21: 1 | BI21: 0 | BJ21: 0 | BK21: 0 | BL21: 0 | BM21: 1 | BN21: 0 | BO21: 1 | BP21: 1 | BQ21: 0 | BR21: 1 | BS21: 0 | BT21: 0 | BU21: 0 | BV21: 0 | BW21: 0 | BX21: 0 | BY21: 0 | BZ21: 0 | CA21: 1 | CB21: 0 | CC21: 0 | CD21: 0 | CE21: 0 | CF21: 0 | CG21: 0 | CH21: 0 | CI21: 0 | CJ21: 0 | CK21: 0 | CL21: 0 | CM21: 0 | CN21: 0
A22: 18 | B22: Leandro Leite | C22: 74 | D22: 11 | E22: 25 | I22: 0 | L22: 8 | M22: 28 | Q22: 0 | U22: 0 | Y22: 0 | AC22: 0 | AF22: 15 | AG22: 21 | AK22: 0 | AO22: 0 | AS22: 0 | AW22: 0 | AZ22: 0 | BA22: 0 | BB22: 0 | BC22: 0 | BD22: 0 | BE22: 0 | BF22: 0 | BG22: 1 | BH22: 0 | BI22: 0 | BJ22: 1 | BK22: 0 | BL22: 0 | BM22: 0 | BN22: 1 | BO22: 0 | BP22: 0 | BQ22: 0 | BR22: 0 | BS22: 0 | BT22: 0 | BU22: 0 | BV22: 0 | BW22: 0 | BX22: 0 | BY22: 0 | BZ22: 0 | CA22: 0 | CB22: 0 | CC22: 0 | CD22: 0 | CE22: 0 | CF22: 0 | CG22: 0 | CH22: 0 | CI22: 0 | CJ22: 0 | CK22: 0 | CL22: 0 | CM22: 0 | CN22: 0
A23: 19 | B23: Aparecido Arantes | C23: 72 | E23: 0 | H23: 13 | I23: 23 | L23: 10 | M23: 26 | P23: 13 | Q23: 23 | U23: 0 | Y23: 0 | AC23: 0 | AG23: 0 | AK23: 0 | AO23: 0 | AS23: 0 | AW23: 0 | AZ23: 0 | BA23: 0 | BB23: 0 | BC23: 0 | BD23: 0 | BE23: 0 | BF23: 0 | BG23: 0 | BH23: 0 | BI23: 1 | BJ23: 0 | BK23: 0 | BL23: 2 | BM23: 0 | BN23: 0 | BO23: 0 | BP23: 0 | BQ23: 0 | BR23: 0 | BS23: 0 | BT23: 0 | BU23: 0 | BV23: 0 | BW23: 0 | BX23: 0 | BY23: 0 | BZ23: 0 | CA23: 0 | CB23: 0 | CC23: 0 | CD23: 0 | CE23: 0 | CF23: 0 | CG23: 0 | CH23: 0 | CI23: 0 | CJ23: 0 | CK23: 0 | CL23: 0 | CM23: 0 | CN23: 0
A24: 20 | B24: Antônio Ribeiro | C24: 57 | D24: 4 | E24: 35 | H24: 14 | I24: 22 | K24: SIM | M24: 0 | Q24: 0 | U24: 0 | Y24: 0 | AC24: 0 | AG24: 0 | AK24: 0 | AO24: 0 | AS24: 0 | AW24: 0 | AZ24: 0 | BA24: 0 | BB24: 0 | BC24: 1 | BD24: 0 | BE24: 0 | BF24: 0 | BG24: 0 | BH24: 0 | BI24: 0 | BJ24: 0 | BK24: 0 | BL24: 0 | BM24: 1 | BN24: 0 | BO24: 0 | BP24: 0 | BQ24: 0 | BR24: 0 | BS24: 0 | BT24: 0 | BU24: 0 | BV24: 0 | BW24: 0 | BX24: 0 | BY24: 0 | BZ24: 0 | CA24: 0 | CB24: 0 | CC24: 0 | CD24: 0 | CE24: 0 | CF24: 0 | CG24: 0 | CH24: 0 | CI24: 0 | CJ24: 0 | CK24: 0 | CL24: 0 | CM24: 0 | CN24: 0
A25: 21 | B25: Agostinho Neves | C25: 31 | D25: 6 | E25: 31 | I25: 0 | M25: 0 | Q25: 0 | U25: 0 | Y25: 0 | AC25: 0 | AG25: 0 | AK25: 0 | AO25: 0 | AS25: 0 | AW25: 0 | AZ25: 0 | BA25: 0 | BB25: 0 | BC25: 0 | BD25: 0 | BE25: 1 | BF25: 0 | BG25: 0 | BH25: 0 | BI25: 0 | BJ25: 0 | BK25: 0 | BL25: 0 | BM25: 0 | BN25: 0 | BO25: 0 | BP25: 0 | BQ25: 0 | BR25: 0 | BS25: 0 | BT25: 0 | BU25: 0 | BV25: 0 | BW25: 0 | BX25: 0 | BY25: 0 | BZ25: 0 | CA25: 0 | CB25: 0 | CC25: 0 | CD25: 0 | CE25: 0 | CF25: 0 | CG25: 0 | CH25: 0 | CI25: 0 | CJ25: 0 | CK25: 0 | CL25: 0 | CM25: 0 | CN25: 0
A26: 22 | C26: 0 | E26: 0 | I26: 0 | M26: 0 | Q26: 0 | U26: 0 | Y26: 0 | AC26: 0 | AG26: 0 | AK26: 0 | AO26: 0 | AS26: 0 | AW26: 0 | AZ26: 0 | BA26: 0 | BB26: 0 | BC26: 0 | BD26: 0 | BE26: 0 | BF26: 0 | BG26: 0 | BH26: 0 | BI26: 0 | BJ26: 0 | BK26: 0 | BL26: 0 | BM26: 0 | BN26: 0 | BO26: 0 | BP26: 0 | BQ26: 0 | BR26: 0 | BS26: 0 | BT26: 0 | BU26: 0 | BV26: 0 | BW26: 0 | BX26: 0 | BY26: 0 | BZ26: 0 | CA26: 0 | CB26: 0 | CC26: 0 | CD26: 0 | CE26: 0 | CF26: 0 | CG26: 0 | CH26: 0 | CI26: 0 | CJ26: 0 | CK26: 0 | CL26: 0 | CM26: 0 | CN26: 0
A27: 23 | C27: 0 | E27: 0 | I27: 0 | M27: 0 | Q27: 0 | U27: 0 | Y27: 0 | AC27: 0 | AG27: 0 | AK27: 0 | AO27: 0 | AS27: 0 | AW27: 0 | AZ27: 0 | BA27: 0 | BB27: 0 | BC27: 0 | BD27: 0 | BE27: 0 | BF27: 0 | BG27: 0 | BH27: 0 | BI27: 0 | BJ27: 0 | BK27: 0 | BL27: 0 | BM27: 0 | BN27: 0 | BO27: 0 | BP27: 0 | BQ27: 0 | BR27: 0 | BS27: 0 | BT27: 0 | BU27: 0 | BV27: 0 | BW27: 0 | BX27: 0 | BY27: 0 | BZ27: 0 | CA27: 0 | CB27: 0 | CC27: 0 | CD27: 0 | CE27: 0 | CF27: 0 | CG27: 0 | CH27: 0 | CI27: 0 | CJ27: 0 | CK27: 0 | CL27: 0 | CM27: 0 | CN27: 0
A28: 24 | C28: 0 | E28: 0 | I28: 0 | M28: 0 | Q28: 0 | U28: 0 | Y28: 0 | AC28: 0 | AG28: 0 | AK28: 0 | AO28: 0 | AS28: 0 | AW28: 0 | AZ28: 0 | BA28: 0 | BB28: 0 | BC28: 0 | BD28: 0 | BE28: 0 | BF28: 0 | BG28: 0 | BH28: 0 | BI28: 0 | BJ28: 0 | BK28: 0 | BL28: 0 | BM28: 0 | BN28: 0 | BO28: 0 | BP28: 0 | BQ28: 0 | BR28: 0 | BS28: 0 | BT28: 0 | BU28: 0 | BV28: 0 | BW28: 0 | BX28: 0 | BY28: 0 | BZ28: 0 | CA28: 0 | CB28: 0 | CC28: 0 | CD28: 0 | CE28: 0 | CF28: 0 | CG28: 0 | CH28: 0 | CI28: 0 | CJ28: 0 | CK28: 0 | CL28: 0 | CM28: 0 | CN28: 0
A29: 25 | C29: 0 | E29: 0 | I29: 0 | M29: 0 | Q29: 0 | U29: 0 | Y29: 0 | AC29: 0 | AG29: 0 | AK29: 0 | AO29: 0 | AS29: 0 | AW29: 0 | AZ29: 0 | BA29: 0 | BB29: 0 | BC29: 0 | BD29: 0 | BE29: 0 | BF29: 0 | BG29: 0 | BH29: 0 | BI29: 0 | BJ29: 0 | BK29: 0 | BL29: 0 | BM29: 0 | BN29: 0 | BO29: 0 | BP29: 0 | BQ29: 0 | BR29: 0 | BS29: 0 | BT29: 0 | BU29: 0 | BV29: 0 | BW29: 0 | BX29: 0 | BY29: 0 | BZ29: 0 | CA29: 0 | CB29: 0 | CC29: 0 | CD29: 0 | CE29: 0 | CF29: 0 | CG29: 0 | CH29: 0 | CI29: 0 | CJ29: 0 | CK29: 0 | CL29: 0 | CM29: 0 | CN29: 0
A30: 26 | C30: 0 | E30: 0 | I30: 0 | M30: 0 | Q30: 0 | U30: 0 | Y30: 0 | AC30: 0 | AG30: 0 | AK30: 0 | AO30: 0 | AS30: 0 | AW30: 0 | AZ30: 0 | BA30: 0 | BB30: 0 | BC30: 0 | BD30: 0 | BE30: 0 | BF30: 0 | BG30: 0 | BH30: 0 | BI30: 0 | BJ30: 0 | BK30: 0 | BL30: 0 | BM30: 0 | BN30: 0 | BO30: 0 | BP30: 0 | BQ30: 0 | BR30: 0 | BS30: 0 | BT30: 0 | BU30: 0 | BV30: 0 | BW30: 0 | BX30: 0 | BY30: 0 | BZ30: 0 | CA30: 0 | CB30: 0 | CC30: 0 | CD30: 0 | CE30: 0 | CF30: 0 | CG30: 0 | CH30: 0 | CI30: 0 | CJ30: 0 | CK30: 0 | CL30: 0 | CM30: 0 | CN30: 0
A31: 27 | C31: 0 | E31: 0 | I31: 0 | M31: 0 | Q31: 0 | U31: 0 | Y31: 0 | AC31: 0 | AG31: 0 | AK31: 0 | AO31: 0 | AS31: 0 | AW31: 0 | AZ31: 0 | BA31: 0 | BB31: 0 | BC31: 0 | BD31: 0 | BE31: 0 | BF31: 0 | BG31: 0 | BH31: 0 | BI31: 0 | BJ31: 0 | BK31: 0 | BL31: 0 | BM31: 0 | BN31: 0 | BO31: 0 | BP31: 0 | BQ31: 0 | BR31: 0 | BS31: 0 | BT31: 0 | BU31: 0 | BV31: 0 | BW31: 0 | BX31: 0 | BY31: 0 | BZ31: 0 | CA31: 0 | CB31: 0 | CC31: 0 | CD31: 0 | CE31: 0 | CF31: 0 | CG31: 0 | CH31: 0 | CI31: 0 | CJ31: 0 | CK31: 0 | CL31: 0 | CM31: 0 | CN31: 0
A32: 28 | C32: 0 | E32: 0 | I32: 0 | M32: 0 | Q32: 0 | U32: 0 | Y32: 0 | AC32: 0 | AG32: 0 | AK32: 0 | AO32: 0 | AS32: 0 | AW32: 0 | AZ32: 0 | BA32: 0 | BB32: 0 | BC32: 0 | BD32: 0 | BE32: 0 | BF32: 0 | BG32: 0 | BH32: 0 | BI32: 0 | BJ32: 0 | BK32: 0 | BL32: 0 | BM32: 0 | BN32: 0 | BO32: 0 | BP32: 0 | BQ32: 0 | BR32: 0 | BS32: 0 | BT32: 0 | BU32: 0 | BV32: 0 | BW32: 0 | BX32: 0 | BY32: 0 | BZ32: 0 | CA32: 0 | CB32: 0 | CC32: 0 | CD32: 0 | CE32: 0 | CF32: 0 | CG32: 0 | CH32: 0 | CI32: 0 | CJ32: 0 | CK32: 0 | CL32: 0 | CM32: 0 | CN32: 0
A33: 29 | C33: 0 | E33: 0 | I33: 0 | M33: 0 | Q33: 0 | U33: 0 | Y33: 0 | AC33: 0 | AG33: 0 | AK33: 0 | AO33: 0 | AS33: 0 | AW33: 0 | AZ33: 0 | BA33: 0 | BB33: 0 | BC33: 0 | BD33: 0 | BE33: 0 | BF33: 0 | BG33: 0 | BH33: 0 | BI33: 0 | BJ33: 0 | BK33: 0 | BL33: 0 | BM33: 0 | BN33: 0 | BO33: 0 | BP33: 0 | BQ33: 0 | BR33: 0 | BS33: 0 | BT33: 0 | BU33: 0 | BV33: 0 | BW33: 0 | BX33: 0 | BY33: 0 | BZ33: 0 | CA33: 0 | CB33: 0 | CC33: 0 | CD33: 0 | CE33: 0 | CF33: 0 | CG33: 0 | CH33: 0 | CI33: 0 | CJ33: 0 | CK33: 0 | CL33: 0 | CM33: 0 | CN33: 0
A34: 30 | C34: 0 | E34: 0 | I34: 0 | M34: 0 | Q34: 0 | U34: 0 | Y34: 0 | AC34: 0 | AG34: 0 | AK34: 0 | AO34: 0 | AS34: 0 | AW34: 0 | AZ34: 0 | BA34: 0 | BB34: 0 | BC34: 0 | BD34: 0 | BE34: 0 | BF34: 0 | BG34: 0 | BH34: 0 | BI34: 0 | BJ34: 0 | BK34: 0 | BL34: 0 | BM34: 0 | BN34: 0 | BO34: 0 | BP34: 0 | BQ34: 0 | BR34: 0 | BS34: 0 | BT34: 0 | BU34: 0 | BV34: 0 | BW34: 0 | BX34: 0 | BY34: 0 | BZ34: 0 | CA34: 0 | CB34: 0 | CC34: 0 | CD34: 0 | CE34: 0 | CF34: 0 | CG34: 0 | CH34: 0 | CI34: 0 | CJ34: 0 | CK34: 0 | CL34: 0 | CM34: 0 | CN34: 0
A35: 31 | C35: 0 | E35: 0 | I35: 0 | M35: 0 | Q35: 0 | U35: 0 | Y35: 0 | AC35: 0 | AG35: 0 | AK35: 0 | AO35: 0 | AS35: 0 | AW35: 0 | AZ35: 0 | BA35: 0 | BB35: 0 | BC35: 0 | BD35: 0 | BE35: 0 | BF35: 0 | BG35: 0 | BH35: 0 | BI35: 0 | BJ35: 0 | BK35: 0 | BL35: 0 | BM35: 0 | BN35: 0 | BO35: 0 | BP35: 0 | BQ35: 0 | BR35: 0 | BS35: 0 | BT35: 0 | BU35: 0 | BV35: 0 | BW35: 0 | BX35: 0 | BY35: 0 | BZ35: 0 | CA35: 0 | CB35: 0 | CC35: 0 | CD35: 0 | CE35: 0 | CF35: 0 | CG35: 0 | CH35: 0 | CI35: 0 | CJ35: 0 | CK35: 0 | CL35: 0 | CM35: 0 | CN35: 0
A36: 32 | C36: 0 | E36: 0 | I36: 0 | M36: 0 | Q36: 0 | U36: 0 | Y36: 0 | AC36: 0 | AG36: 0 | AK36: 0 | AO36: 0 | AS36: 0 | AW36: 0 | AZ36: 0 | BA36: 0 | BB36: 0 | BC36: 0 | BD36: 0 | BE36: 0 | BF36: 0 | BG36: 0 | BH36: 0 | BI36: 0 | BJ36: 0 | BK36: 0 | BL36: 0 | BM36: 0 | BN36: 0 | BO36: 0 | BP36: 0 | BQ36: 0 | BR36: 0 | BS36: 0 | BT36: 0 | BU36: 0 | BV36: 0 | BW36: 0 | BX36: 0 | BY36: 0 | BZ36: 0 | CA36: 0 | CB36: 0 | CC36: 0 | CD36: 0 | CE36: 0 | CF36: 0 | CG36: 0 | CH36: 0 | CI36: 0 | CJ36: 0 | CK36: 0 | CL36: 0 | CM36: 0 | CN36: 0
A37: 33 | C37: 0 | E37: 0 | I37: 0 | M37: 0 | Q37: 0 | U37: 0 | Y37: 0 | AC37: 0 | AG37: 0 | AK37: 0 | AO37: 0 | AS37: 0 | AW37: 0 | AZ37: 0 | BA37: 0 | BB37: 0 | BC37: 0 | BD37: 0 | BE37: 0 | BF37: 0 | BG37: 0 | BH37: 0 | BI37: 0 | BJ37: 0 | BK37: 0 | BL37: 0 | BM37: 0 | BN37: 0 | BO37: 0 | BP37: 0 | BQ37: 0 | BR37: 0 | BS37: 0 | BT37: 0 | BU37: 0 | BV37: 0 | BW37: 0 | BX37: 0 | BY37: 0 | BZ37: 0 | CA37: 0 | CB37: 0 | CC37: 0 | CD37: 0 | CE37: 0 | CF37: 0 | CG37: 0 | CH37: 0 | CI37: 0 | CJ37: 0 | CK37: 0 | CL37: 0 | CM37: 0 | CN37: 0
A38: 34 | C38: 0 | E38: 0 | I38: 0 | M38: 0 | Q38: 0 | U38: 0 | Y38: 0 | AC38: 0 | AG38: 0 | AK38: 0 | AO38: 0 | AS38: 0 | AW38: 0 | AZ38: 0 | BA38: 0 | BB38: 0 | BC38: 0 | BD38: 0 | BE38: 0 | BF38: 0 | BG38: 0 | BH38: 0 | BI38: 0 | BJ38: 0 | BK38: 0 | BL38: 0 | BM38: 0 | BN38: 0 | BO38: 0 | BP38: 0 | BQ38: 0 | BR38: 0 | BS38: 0 | BT38: 0 | BU38: 0 | BV38: 0 | BW38: 0 | BX38: 0 | BY38: 0 | BZ38: 0 | CA38: 0 | CB38: 0 | CC38: 0 | CD38: 0 | CE38: 0 | CF38: 0 | CG38: 0 | CH38: 0 | CI38: 0 | CJ38: 0 | CK38: 0 | CL38: 0 | CM38: 0 | CN38: 0
A39: 35 | C39: 0 | E39: 0 | I39: 0 | M39: 0 | Q39: 0 | U39: 0 | Y39: 0 | AC39: 0 | AG39: 0 | AK39: 0 | AO39: 0 | AS39: 0 | AW39: 0 | AZ39: 0 | BA39: 0 | BB39: 0 | BC39: 0 | BD39: 0 | BE39: 0 | BF39: 0 | BG39: 0 | BH39: 0 | BI39: 0 | BJ39: 0 | BK39: 0 | BL39: 0 | BM39: 0 | BN39: 0 | BO39: 0 | BP39: 0 | BQ39: 0 | BR39: 0 | BS39: 0 | BT39: 0 | BU39: 0 | BV39: 0 | BW39: 0 | BX39: 0 | BY39: 0 | BZ39: 0 | CA39: 0 | CB39: 0 | CC39: 0 | CD39: 0 | CE39: 0 | CF39: 0 | CG39: 0 | CH39: 0 | CI39: 0 | CJ39: 0 | CK39: 0 | CL39: 0 | CM39: 0 | CN39: 0
A40: 36 | C40: 0 | E40: 0 | I40: 0 | M40: 0 | Q40: 0 | U40: 0 | Y40: 0 | AC40: 0 | AG40: 0 | AK40: 0 | AO40: 0 | AS40: 0 | AW40: 0 | AZ40: 0 | BA40: 0 | BB40: 0 | BC40: 0 | BD40: 0 | BE40: 0 | BF40: 0 | BG40: 0 | BH40: 0 | BI40: 0 | BJ40: 0 | BK40: 0 | BL40: 0 | BM40: 0 | BN40: 0 | BO40: 0 | BP40: 0 | BQ40: 0 | BR40: 0 | BS40: 0 | BT40: 0 | BU40: 0 | BV40: 0 | BW40: 0 | BX40: 0 | BY40: 0 | BZ40: 0 | CA40: 0 | CB40: 0 | CC40: 0 | CD40: 0 | CE40: 0 | CF40: 0 | CG40: 0 | CH40: 0 | CI40: 0 | CJ40: 0 | CK40: 0 | CL40: 0 | CM40: 0 | CN40: 0
A41: 37 | C41: 0 | E41: 0 | I41: 0 | M41: 0 | Q41: 0 | U41: 0 | Y41: 0 | AC41: 0 | AG41: 0 | AK41: 0 | AO41: 0 | AS41: 0 | AW41: 0 | AZ41: 0 | BA41: 0 | BB41: 0 | BC41: 0 | BD41: 0 | BE41: 0 | BF41: 0 | BG41: 0 | BH41: 0 | BI41: 0 | BJ41: 0 | BK41: 0 | BL41: 0 | BM41: 0 | BN41: 0 | BO41: 0 | BP41: 0 | BQ41: 0 | BR41: 0 | BS41: 0 | BT41: 0 | BU41: 0 | BV41: 0 | BW41: 0 | BX41: 0 | BY41: 0 | BZ41: 0 | CA41: 0 | CB41: 0 | CC41: 0 | CD41: 0 | CE41: 0 | CF41: 0 | CG41: 0 | CH41: 0 | CI41: 0 | CJ41: 0 | CK41: 0 | CL41: 0 | CM41: 0 | CN41: 0
A42: 38 | C42: 0 | E42: 0 | I42: 0 | M42: 0 | Q42: 0 | U42: 0 | Y42: 0 | AC42: 0 | AG42: 0 | AK42: 0 | AO42: 0 | AS42: 0 | AW42: 0 | AZ42: 0 | BA42: 0 | BB42: 0 | BC42: 0 | BD42: 0 | BE42: 0 | BF42: 0 | BG42: 0 | BH42: 0 | BI42: 0 | BJ42: 0 | BK42: 0 | BL42: 0 | BM42: 0 | BN42: 0 | BO42: 0 | BP42: 0 | BQ42: 0 | BR42: 0 | BS42: 0 | BT42: 0 | BU42: 0 | BV42: 0 | BW42: 0 | BX42: 0 | BY42: 0 | BZ42: 0 | CA42: 0 | CB42: 0 | CC42: 0 | CD42: 0 | CE42: 0 | CF42: 0 | CG42: 0 | CH42: 0 | CI42: 0 | CJ42: 0 | CK42: 0 | CL42: 0 | CM42: 0 | CN42: 0
A43: 39 | C43: 0 | E43: 0 | I43: 0 | M43: 0 | Q43: 0 | U43: 0 | Y43: 0 | AC43: 0 | AG43: 0 | AK43: 0 | AO43: 0 | AS43: 0 | AW43: 0 | AZ43: 0 | BA43: 0 | BB43: 0 | BC43: 0 | BD43: 0 | BE43: 0 | BF43: 0 | BG43: 0 | BH43: 0 | BI43: 0 | BJ43: 0 | BK43: 0 | BL43: 0 | BM43: 0 | BN43: 0 | BO43: 0 | BP43: 0 | BQ43: 0 | BR43: 0 | BS43: 0 | BT43: 0 | BU43: 0 | BV43: 0 | BW43: 0 | BX43: 0 | BY43: 0 | BZ43: 0 | CA43: 0 | CB43: 0 | CC43: 0 | CD43: 0 | CE43: 0 | CF43: 0 | CG43: 0 | CH43: 0 | CI43: 0 | CJ43: 0 | CK43: 0 | CL43: 0 | CM43: 0 | CN43: 0
A44: 40 | C44: 0 | E44: 0 | I44: 0 | M44: 0 | Q44: 0 | U44: 0 | Y44: 0 | AC44: 0 | AG44: 0 | AK44: 0 | AO44: 0 | AS44: 0 | AW44: 0 | AZ44: 0 | BA44: 0 | BB44: 0 | BC44: 0 | BD44: 0 | BE44: 0 | BF44: 0 | BG44: 0 | BH44: 0 | BI44: 0 | BJ44: 0 | BK44: 0 | BL44: 0 | BM44: 0 | BN44: 0 | BO44: 0 | BP44: 0 | BQ44: 0 | BR44: 0 | BS44: 0 | BT44: 0 | BU44: 0 | BV44: 0 | BW44: 0 | BX44: 0 | BY44: 0 | BZ44: 0 | CA44: 0 | CB44: 0 | CC44: 0 | CD44: 0 | CE44: 0 | CF44: 0 | CG44: 0 | CH44: 0 | CI44: 0 | CJ44: 0 | CK44: 0 | CL44: 0 | CM44: 0 | CN44: 0
A45: 41 | C45: 0 | E45: 0 | I45: 0 | M45: 0 | Q45: 0 | U45: 0 | Y45: 0 | AC45: 0 | AG45: 0 | AK45: 0 | AO45: 0 | AS45: 0 | AW45: 0 | AZ45: 0 | BA45: 0 | BB45: 0 | BC45: 0 | BD45: 0 | BE45: 0 | BF45: 0 | BG45: 0 | BH45: 0 | BI45: 0 | BJ45: 0 | BK45: 0 | BL45: 0 | BM45: 0 | BN45: 0 | BO45: 0 | BP45: 0 | BQ45: 0 | BR45: 0 | BS45: 0 | BT45: 0 | BU45: 0 | BV45: 0 | BW45: 0 | BX45: 0 | BY45: 0 | BZ45: 0 | CA45: 0 | CB45: 0 | CC45: 0 | CD45: 0 | CE45: 0 | CF45: 0 | CG45: 0 | CH45: 0 | CI45: 0 | CJ45: 0 | CK45: 0 | CL45: 0 | CM45: 0 | CN45: 0
A46: 42 | C46: 0 | E46: 0 | I46: 0 | M46: 0 | Q46: 0 | U46: 0 | Y46: 0 | AC46: 0 | AG46: 0 | AK46: 0 | AO46: 0 | AS46: 0 | AW46: 0 | AZ46: 0 | BA46: 0 | BB46: 0 | BC46: 0 | BD46: 0 | BE46: 0 | BF46: 0 | BG46: 0 | BH46: 0 | BI46: 0 | BJ46: 0 | BK46: 0 | BL46: 0 | BM46: 0 | BN46: 0 | BO46: 0 | BP46: 0 | BQ46: 0 | BR46: 0 | BS46: 0 | BT46: 0 | BU46: 0 | BV46: 0 | BW46: 0 | BX46: 0 | BY46: 0 | BZ46: 0 | CA46: 0 | CB46: 0 | CC46: 0 | CD46: 0 | CE46: 0 | CF46: 0 | CG46: 0 | CH46: 0 | CI46: 0 | CJ46: 0 | CK46: 0 | CL46: 0 | CM46: 0 | CN46: 0
A47: 43 | C47: 0 | E47: 0 | I47: 0 | M47: 0 | Q47: 0 | U47: 0 | Y47: 0 | AC47: 0 | AG47: 0 | AK47: 0 | AO47: 0 | AS47: 0 | AW47: 0 | AZ47: 0 | BA47: 0 | BB47: 0 | BC47: 0 | BD47: 0 | BE47: 0 | BF47: 0 | BG47: 0 | BH47: 0 | BI47: 0 | BJ47: 0 | BK47: 0 | BL47: 0 | BM47: 0 | BN47: 0 | BO47: 0 | BP47: 0 | BQ47: 0 | BR47: 0 | BS47: 0 | BT47: 0 | BU47: 0 | BV47: 0 | BW47: 0 | BX47: 0 | BY47: 0 | BZ47: 0 | CA47: 0 | CB47: 0 | CC47: 0 | CD47: 0 | CE47: 0 | CF47: 0 | CG47: 0 | CH47: 0 | CI47: 0 | CJ47: 0 | CK47: 0 | CL47: 0 | CM47: 0 | CN47: 0
A48: 44 | C48: 0 | E48: 0 | I48: 0 | M48: 0 | Q48: 0 | U48: 0 | Y48: 0 | AC48: 0 | AG48: 0 | AK48: 0 | AO48: 0 | AS48: 0 | AW48: 0 | AZ48: 0 | BA48: 0 | BB48: 0 | BC48: 0 | BD48: 0 | BE48: 0 | BF48: 0 | BG48: 0 | BH48: 0 | BI48: 0 | BJ48: 0 | BK48: 0 | BL48: 0 | BM48: 0 | BN48: 0 | BO48: 0 | BP48: 0 | BQ48: 0 | BR48: 0 | BS48: 0 | BT48: 0 | BU48: 0 | BV48: 0 | BW48: 0 | BX48: 0 | BY48: 0 | BZ48: 0 | CA48: 0 | CB48: 0 | CC48: 0 | CD48: 0 | CE48: 0 | CF48: 0 | CG48: 0 | CH48: 0 | CI48: 0 | CJ48: 0 | CK48: 0 | CL48: 0 | CM48: 0 | CN48: 0
A49: 45 | C49: 0 | E49: 0 | I49: 0 | M49: 0 | Q49: 0 | U49: 0 | Y49: 0 | AC49: 0 | AG49: 0 | AK49: 0 | AO49: 0 | AS49: 0 | AW49: 0 | AZ49: 0 | BA49: 0 | BB49: 0 | BC49: 0 | BD49: 0 | BE49: 0 | BF49: 0 | BG49: 0 | BH49: 0 | BI49: 0 | BJ49: 0 | BK49: 0 | BL49: 0 | BM49: 0 | BN49: 0 | BO49: 0 | BP49: 0 | BQ49: 0 | BR49: 0 | BS49: 0 | BT49: 0 | BU49: 0 | BV49: 0 | BW49: 0 | BX49: 0 | BY49: 0 | BZ49: 0 | CA49: 0 | CB49: 0 | CC49: 0 | CD49: 0 | CE49: 0 | CF49: 0 | CG49: 0 | CH49: 0 | CI49: 0 | CJ49: 0 | CK49: 0 | CL49: 0 | CM49: 0 | CN49: 0

Sheet Class. elimin. 2 piores res
A1: 2023 | E1: OK | I1: OK | M1: OK | Q1: OK | U1: OK | Y1: OK | AC1: OK | AG1: OK | AK1: OK | AO1: OK | AS1: OK | AW1: OK
D2: 2023-01-19 | H2: 2023-02-02 | L2: 2023-03-02 | P2: 2023-05-04 | T2: 2023-06-01 | X2: 2023-07-06 | AB2: 2023-08-03 | AF2: 2023-09-14 | AJ2: 2023-09-26 | AN2: 2023-10-05 | AR2: 2023-11-09 | AV2: 2023-12-07
B4: Nome do (a) Piloto (a) | C4: Pontuação Geral | D4: Posição | E4: Pontos | F4: Bônus | G4: Penalidade | H4: Posição | I4: Pontos | J4: Bônus | K4: Penalidade | L4: Posição | M4: Pontos | N4: Bônus | O4: Penalidade | P4: Posição | Q4: Pontos | R4: Bônus | S4: Penalidade | T4: Posição | U4: Pontos | V4: Bônus | W4: Penalidade | X4: Posição | Y4: Pontos | Z4: Bônus | AA4: Penalidade | AB4: Posição | AC4: Pontos | AD4: Bônus | AE4: Penalidade | AF4: Posição | AG4: Pontos | AH4: Bônus | AI4: Penalidade | AJ4: Posição | AK4: Pontos | AL4: Bônus | AM4: Penalidade | AN4: Posição | AO4: Pontos | AP4: Bônus | AQ4: Penalidade | AR4: Posição | AS4: Pontos | AT4: Bônus | AU4: Penalidade | AV4: Posição | AW4: Pontos | AX4: Bônus | AY4: Penalidade | AZ4: 1º LUGAR | BA4: 2º LUGAR | BB4: 3º LUGAR | BC4: 4º LUGAR | BD4: 5º LUGAR | BE4: 6º LUGAR | BF4: 7º LUGAR | BG4: 8º LUGAR | BH4: 9º LUGAR | BI4: 10º LUGAR | BJ4: 11º LUGAR | BK4: 12º LUGAR | BL4: 13º LUGAR | BM4: 14º LUGAR | BN4: 15º LUGAR | BO4: 16º LUGAR | BP4: 17º LUGAR | BQ4: 18º LUGAR | BR4: 19º LUGAR | BS4: 20º LUGAR | BT4: 21º LUGAR | BU4: 22º LUGAR | BV4: 23º LUGAR | BW4: 24º LUGAR | BX4: 25º LUGAR | BY4: 26º LUGAR | BZ4: 27º LUGAR | CA4: 28º LUGAR | CB4: 29º LUGAR | CC4: 30º LUGAR | CD4: 31º LUGAR | CE4: 32º LUGAR | CF4: 33º LUGAR | CG4: 34º LUGAR | CH4: 35º LUGAR | CI4: 36º LUGAR | CJ4: 37º LUGAR | CK4: 38º LUGAR | CL4: 39º LUGAR | CM4: 40º LUGAR | CN4: 41º LUGAR
A5: 1 | B5: Fernando Mota | C5: 374 | D5: 14 | E5: 22 | I5: 0* | L5: 5 | M5: 33 | P5: 2 | Q5: 40 | T5: 1 | U5: 45 | V5: 1 | X5: 1 | Y5: 45 | AB5: 2 | AC5: 40 | AF5: 2 | AG5: 40 | AH5: 1 | AJ5: 1 | AK5: 45 | AL5: 1 | AN5: 17 | AO5: 19* | AR5: 12 | AS5: 24 | AU5: SIM | AV5: 3 | AW5: 37 | AZ5: 3 | BA5: 3 | BB5: 1 | BC5: 0 | BD5: 1 | BE5: 0 | BF5: 0 | BG5: 0 | BH5: 0 | BI5: 0 | BJ5: 0 | BK5: 1 | BL5: 0 | BM5: 1 | BN5: 0 | BO5: 0 | BP5: 1 | BQ5: 0 | BR5: 0 | BS5: 0 | BT5: 0 | BU5: 0 | BV5: 0 | BW5: 0 | BX5: 0 | BY5: 0 | BZ5: 0 | CA5: 0 | CB5: 0 | CC5: 0 | CD5: 0 | CE5: 0 | CF5: 0 | CG5: 0 | CH5: 0 | CI5: 0 | CJ5: 0 | CK5: 0 | CL5: 0 | CM5: 0 | CN5: 0
A6: 2 | B6: Guilherme Rocha | C6: 365 | D6: 2 | E6: 40 | H6: 2 | I6: 40 | L6: 7 | M6: 29 | P6: 9 | Q6: 27* | T6: 11 | U6: 25* | X6: 4 | Y6: 35 | AB6: 6 | AC6: 31 | AF6: 1 | AG6: 45 | AJ6: 5 | AK6: 33 | AN6: 3 | AO6: 37 | AR6: 2 | AS6: 40 | AV6: 4 | AW6: 35 | AZ6: 1 | BA6: 3 | BB6: 1 | BC6: 2 | BD6: 1 | BE6: 1 | BF6: 1 | BG6: 0 | BH6: 1 | BI6: 0 | BJ6: 1 | BK6: 0 | BL6: 0 | BM6: 0 | BN6: 0 | BO6: 0 | BP6: 0 | BQ6: 0 | BR6: 0 | BS6: 0 | BT6: 0 | BU6: 0 | BV6: 0 | BW6: 0 | BX6: 0 | BY6: 0 | BZ6: 0 | CA6: 0 | CB6: 0 | CC6: 0 | CD6: 0 | CE6: 0 | CF6: 0 | CG6: 0 | CH6: 0 | CI6: 0 | CJ6: 0 | CK6: 0 | CL6: 0 | CM6: 0 | CN6: 0
A7: 3 | B7: Matheus Dias | C7: 361 | D7: 7 | E7: 29* | H7: 5 | I7: 33 | J7: 1 | L7: 11 | M7: 25* | P7: 4 | Q7: 35 | T7: 2 | U7: 40 | X7: 7 | Y7: 29 | AB7: 3 | AC7: 37 | AF7: 4 | AG7: 35 | AJ7: 3 | AK7: 37 | AN7: 2 | AO7: 40 | AR7: 1 | AS7: 45 | AV7: 7 | AW7: 29 | AZ7: 1 | BA7: 2 | BB7: 2 | BC7: 2 | BD7: 1 | BE7: 0 | BF7: 3 | BG7: 0 | BH7: 0 | BI7: 0 | BJ7: 1 | BK7: 0 | BL7: 0 | BM7: 0 | BN7: 0 | BO7: 0 | BP7: 0 | BQ7: 0 | BR7: 0 | BS7: 0 | BT7: 0 | BU7: 0 | BV7: 0 | BW7: 0 | BX7: 0 | BY7: 0 | BZ7: 0 | CA7: 0 | CB7: 0 | CC7: 0 | CD7: 0 | CE7: 0 | CF7: 0 | CG7: 0 | CH7: 0 | CI7: 0 | CJ7: 0 | CK7: 0 | CL7: 0 | CM7: 0 | CN7: 0
A8: 4 | B8: Leonardo Mattioda | C8: 353 | D8: 3 | E8: 37 | H8: 1 | I8: 45 | L8: 1 | M8: 45 | P8: 3 | Q8: 37 | R8: 1 | T8: 3 | U8: 37 | X8: 10 | Y8: 26 | AC8: 0* | AF8: 14 | AG8: 22 | AJ8: 13 | AK8: 23 | AN8: 4 | AO8: 35 | AS8: 0* | AV8: 1 | AW8: 45 | AZ8: 3 | BA8: 0 | BB8: 3 | BC8: 1 | BD8: 0 | BE8: 0 | BF8: 0 | BG8: 0 | BH8: 0 | BI8: 1 | BJ8: 0 | BK8: 0 | BL8: 1 | BM8: 1 | BN8: 0 | BO8: 0 | BP8: 0 | BQ8: 0 | BR8: 0 | BS8: 0 | BT8: 0 | BU8: 0 | BV8: 0 | BW8: 0 | BX8: 0 | BY8: 0 | BZ8: 0 | CA8: 0 | CB8: 0 | CC8: 0 | CD8: 0 | CE8: 0 | CF8: 0 | CG8: 0 | CH8: 0 | CI8: 0 | CJ8: 0 | CK8: 0 | CL8: 0 | CM8: 0 | CN8: 0
A9: 5 | B9: Alexandre Melillo | C9: 338 | D9: 9 | E9: 27 | H9: 15 | I9: 21* | L9: 9 | M9: 27 | P9: 10 | Q9: 26* | T9: 8 | U9: 28 | X9: 3 | Y9: 37 | AB9: 1 | AC9: 45 | AD9: 1 | AF9: 6 | AG9: 31 | AJ9: 4 | AK9: 35 | AN9: 5 | AO9: 33 | AR9: 5 | AS9: 33 | AV9: 2 | AW9: 40 | AX9: 1 | AZ9: 1 | BA9: 1 | BB9: 1 | BC9: 1 | BD9: 2 | BE9: 1 | BF9: 0 | BG9: 1 | BH9: 2 | BI9: 1 | BJ9: 0 | BK9: 0 | BL9: 0 | BM9: 0 | BN9: 1 | BO9: 0 | BP9: 0 | BQ9: 0 | BR9: 0 | BS9: 0 | BT9: 0 | BU9: 0 | BV9: 0 | BW9: 0 | BX9: 0 | BY9: 0 | BZ9: 0 | CA9: 0 | CB9: 0 | CC9: 0 | CD9: 0 | CE9: 0 | CF9: 0 | CG9: 0 | CH9: 0 | CI9: 0 | CJ9: 0 | CK9: 0 | CL9: 0 | CM9: 0 | CN9: 0
A10: 6 | B10: Luciano Brandão | C10: 335 | D10: 1 | E10: 45 | H10: 3 | I10: 37 | L10: 6 | M10: 31 | P10: 5 | Q10: 33 | T10: 7 | U10: 29 | X10: 2 | Y10: 40 | Z10: 1 | AB10: 11 | AC10: 25* | AF10: 3 | AG10: 37 | AJ10: 12 | AK10: 24* | AN10: 10 | AO10: 26 | AR10: 7 | AS10: 29 | AV10: 9 | AW10: 27 | AZ10: 1 | BA10: 1 | BB10: 2 | BC10: 0 | BD10: 1 | BE10: 1 | BF10: 2 | BG10: 0 | BH10: 1 | BI10: 1 | BJ10: 1 | BK10: 1 | BL10: 0 | BM10: 0 | BN10: 0 | BO10: 0 | BP10: 0 | BQ10: 0 | BR10: 0 | BS10: 0 | BT10: 0 | BU10: 0 | BV10: 0 | BW10: 0 | BX10: 0 | BY10: 0 | BZ10: 0 | CA10: 0 | CB10: 0 | CC10: 0 | CD10: 0 | CE10: 0 | CF10: 0 | CG10: 0 | CH10: 0 | CI10: 0 | CJ10: 0 | CK10: 0 | CL10: 0 | CM10: 0 | CN10: 0
A11: 7 | B11: Joanes Gouvea | C11: 331 | E11: 0* | H11: 4 | I11: 35 | L11: 4 | M11: 35 | P11: 1 | Q11: 45 | T11: 5 | U11: 33 | X11: 5 | Y11: 33 | AC11: 0* | AF11: 8 | AG11: 28 | AJ11: 6 | AK11: 31 | AN11: 6 | AO11: 31 | AR11: 3 | AS11: 37 | AV11: 13 | AW11: 23 | AZ11: 1 | BA11: 0 | BB11: 1 | BC11: 2 | BD11: 2 | BE11: 2 | BF11: 0 | BG11: 1 | BH11: 0 | BI11: 0 | BJ11: 0 | BK11: 0 | BL11: 1 | BM11: 0 | BN11: 0 | BO11: 0 | BP11: 0 | BQ11: 0 | BR11: 0 | BS11: 0 | BT11: 0 | BU11: 0 | BV11: 0 | BW11: 0 | BX11: 0 | BY11: 0 | BZ11: 0 | CA11: 0 | CB11: 0 | CC11: 0 | CD11: 0 | CE11: 0 | CF11: 0 | CG11: 0 | CH11: 0 | CI11: 0 | CJ11: 0 | CK11: 0 | CL11: 0 | CM11: 0 | CN11: 0
A12: 8 | B12: Wilson Cristofani | C12: 287 | D12: 8 | E12: 28 | H12: 12 | I12: 24 | L12: 3 | M12: 37 | P12: 8 | Q12: 28 | U12: 0* | Y12: 0* | AB12: 8 | AC12: 28 | AF12: 7 | AG12: 29 | AK12: 0 | AN12: 1 | AO12: 45 | AP12: 1 | AR12: 4 | AS12: 35 | AT12: 1 | AV12: 6 | AW12: 31 | AZ12: 1 | BA12: 0 | BB12: 1 | BC12: 1 | BD12: 0 | BE12: 1 | BF12: 1 | BG12: 3 | BH12: 0 | BI12: 0 | BJ12: 0 | BK12: 1 | BL12: 0 | BM12: 0 | BN12: 0 | BO12: 0 | BP12: 0 | BQ12: 0 | BR12: 0 | BS12: 0 | BT12: 0 | BU12: 0 | BV12: 0 | BW12: 0 | BX12: 0 | BY12: 0 | BZ12: 0 | CA12: 0 | CB12: 0 | CC12: 0 | CD12: 0 | CE12: 0 | CF12: 0 | CG12: 0 | CH12: 0 | CI12: 0 | CJ12: 0 | CK12: 0 | CL12: 0 | CM12: 0 | CN12: 0
A13: 9 | B13: Vitor Diniz | C13: 269 | D13: 5 | E13: 33 | F13: 1 | H13: 10 | I13: 26 | L13: 18 | M13: 18* | P13: 11 | Q13: 25 | T13: 12 | U13: 24 | X13: 8 | Y13: 28 | AB13: 9 | AC13: 27 | AF13: 11 | AG13: 25 | AJ13: 9 | AK13: 27 | AN13: 8 | AO13: 28 | AS13: 0* | AV13: 11 | AW13: 25 | AZ13: 0 | BA13: 0 | BB13: 0 | BC13: 0 | BD13: 1 | BE13: 0 | BF13: 0 | BG13: 2 | BH13: 2 | BI13: 1 | BJ13: 3 | BK13: 1 | BL13: 0 | BM13: 0 | BN13: 0 | BO13: 0 | BP13: 0 | BQ13: 1 | BR13: 0 | BS13: 0 | BT13: 0 | BU13: 0 | BV13: 0 | BW13: 0 | BX13: 0 | BY13: 0 | BZ13: 0 | CA13: 0 | CB13: 0 | CC13: 0 | CD13: 0 | CE13: 0 | CF13: 0 | CG13: 0 | CH13: 0 | CI13: 0 | CJ13: 0 | CK13: 0 | CL13: 0 | CM13: 0 | CN13: 0
A14: 10 | B14: Lúcio Chequer | C14: 266 | D14: 13 | E14: 23 | H14: 11 | I14: 25 | L14: 12 | M14: 24 | P14: 7 | Q14: 29 | T14: 9 | U14: 27 | X14: 14 | Y14: 22* | AB14: 7 | AC14: 29 | AG14: 0* | AJ14: 10 | AK14: 26 | AN14: 7 | AO14: 29 | AR14: 10 | AS14: 26 | AV14: 8 | AW14: 28 | AZ14: 0 | BA14: 0 | BB14: 0 | BC14: 0 | BD14: 0 | BE14: 0 | BF14: 3 | BG14: 1 | BH14: 1 | BI14: 2 | BJ14: 1 | BK14: 1 | BL14: 1 | BM14: 1 | BN14: 0 | BO14: 0 | BP14: 0 | BQ14: 0 | BR14: 0 | BS14: 0 | BT14: 0 | BU14: 0 | BV14: 0 | BW14: 0 | BX14: 0 | BY14: 0 | BZ14: 0 | CA14: 0 | CB14: 0 | CC14: 0 | CD14: 0 | CE14: 0 | CF14: 0 | CG14: 0 | CH14: 0 | CI14: 0 | CJ14: 0 | CK14: 0 | CL14: 0 | CM14: 0 | CN14: 0
A15: 11 | B15: Anderson Teixeira | C15: 257 | E15: 0* | H15: 9 | I15: 27 | L15: 2 | M15: 40 | P15: 6 | Q15: 31 | T15: 4 | U15: 35 | X15: 6 | Y15: 31 | AC15: 0* | AF15: 5 | AG15: 33 | AJ15: 2 | AK15: 40 | AN15: 16 | AO15: 20 | AS15: 0 | AW15: 0 | AZ15: 0 | BA15: 2 | BB15: 0 | BC15: 1 | BD15: 1 | BE15: 2 | BF15: 0 | BG15: 0 | BH15: 1 | BI15: 0 | BJ15: 0 | BK15: 0 | BL15: 0 | BM15: 0 | BN15: 0 | BO15: 1 | BP15: 0 | BQ15: 0 | BR15: 0 | BS15: 0 | BT15: 0 | BU15: 0 | BV15: 0 | BW15: 0 | BX15: 0 | BY15: 0 | BZ15: 0 | CA15: 0 | CB15: 0 | CC15: 0 | CD15: 0 | CE15: 0 | CF15: 0 | CG15: 0 | CH15: 0 | CI15: 0 | CJ15: 0 | CK15: 0 | CL15: 0 | CM15: 0 | CN15: 0
A16: 12 | B16: Gladson Souza | C16: 255 | D16: 12 | E16: 24 | H16: 7 | I16: 29 | L16: 16 | M16: 20* | P16: 12 | Q16: 24 | T16: 10 | U16: 26 | X16: 11 | Y16: 25 | AB16: 10 | AC16: 26 | AF16: 13 | AG16: 23 | AK16: 0* | AN16: 9 | AO16: 27 | AR16: 9 | AS16: 27 | AV16: 12 | AW16: 24 | AZ16: 0 | BA16: 0 | BB16: 0 | BC16: 0 | BD16: 0 | BE16: 0 | BF16: 1 | BG16: 0 | BH16: 2 | BI16: 2 | BJ16: 1 | BK16: 3 | BL16: 1 | BM16: 0 | BN16: 0 | BO16: 1 | BP16: 0 | BQ16: 0 | BR16: 0 | BS16: 0 | BT16: 0 | BU16: 0 | BV16: 0 | BW16: 0 | BX16: 0 | BY16: 0 | BZ16: 0 | CA16: 0 | CB16: 0 | CC16: 0 | CD16: 0 | CE16: 0 | CF16: 0 | CG16: 0 | CH16: 0 | CI16: 0 | CJ16: 0 | CK16: 0 | CL16: 0 | CM16: 0 | CN16: 0
A17: 13 | B17: Anderson Oliveira | C17: 235 | E17: 0* | H17: 6 | I17: 31 | L17: 14 | M17: 22 | Q17: 0* | U17: 0 | X17: 13 | Y17: 23 | AB17: 5 | AC17: 33 | AF17: 10 | AG17: 26 | AJ17: 7 | AK17: 29 | AN17: 11 | AO17: 25 | AR17: 11 | AS17: 25 | AV17: 15 | AW17: 21 | AZ17: 0 | BA17: 0 | BB17: 0 | BC17: 0 | BD17: 1 | BE17: 1 | BF17: 1 | BG17: 0 | BH17: 0 | BI17: 1 | BJ17: 2 | BK17: 0 | BL17: 1 | BM17: 1 | BN17: 1 | BO17: 0 | BP17: 0 | BQ17: 0 | BR17: 0 | BS17: 0 | BT17: 0 | BU17: 0 | BV17: 0 | BW17: 0 | BX17: 0 | BY17: 0 | BZ17: 0 | CA17: 0 | CB17: 0 | CC17: 0 | CD17: 0 | CE17: 0 | CF17: 0 | CG17: 0 | CH17: 0 | CI17: 0 | CJ17: 0 | CK17: 0 | CL17: 0 | CM17: 0 | CN17: 0
A18: 14 | B18: Leodegario Junior | C18: 227 | D18: 10 | E18: 26 | I18: 0* | L18: 17 | M18: 19* | P18: 14 | Q18: 22 | T18: 23 | U18: 13 | W18: SIM | X18: 9 | Y18: 27 | AB18: 12 | AC18: 24 | AF18: 12 | AG18: 24 | AJ18: 11 | AK18: 25 | AN18: 15 | AO18: 21 | AR18: 13 | AS18: 23 | AV18: 14 | AW18: 22 | AZ18: 0 | BA18: 0 | BB18: 0 | BC18: 0 | BD18: 0 | BE18: 0 | BF18: 0 | BG18: 0 | BH18: 1 | BI18: 1 | BJ18: 1 | BK18: 2 | BL18: 1 | BM18: 2 | BN18: 1 | BO18: 0 | BP18: 1 | BQ18: 0 | BR18: 0 | BS18: 0 | BT18: 0 | BU18: 0 | BV18: 1 | BW18: 0 | BX18: 0 | BY18: 0 | BZ18: 0 | CA18: 0 | CB18: 0 | CC18: 0 | CD18: 0 | CE18: 0 | CF18: 0 | CG18: 0 | CH18: 0 | CI18: 0 | CJ18: 0 | CK18: 0 | CL18: 0 | CM18: 0 | CN18: 0
A19: 15 | B19: Hélio Pedrolli | C19: 204 | E19: 0* | H19: 8 | I19: 28 | L19: 13 | M19: 23 | Q19: 0* | U19: 0 | X19: 12 | Y19: 24 | AB19: 13 | AC19: 23 | AG19: 0 | AJ19: 8 | AK19: 28 | AN19: 12 | AO19: 24 | AR19: 8 | AS19: 28 | AV19: 10 | AW19: 26 | AZ19: 0 | BA19: 0 | BB19: 0 | BC19: 0 | BD19: 0 | BE19: 0 | BF19: 0 | BG19: 3 | BH19: 0 | BI19: 1 | BJ19: 0 | BK19: 2 | BL19: 2 | BM19: 0 | BN19: 0 | BO19: 0 | BP19: 0 | BQ19: 0 | BR19: 0 | BS19: 0 | BT19: 0 | BU19: 0 | BV19: 0 | BW19: 0 | BX19: 0 | BY19: 0 | BZ19: 0 | CA19: 0 | CB19: 0 | CC19: 0 | CD19: 0 | CE19: 0 | CF19: 0 | CG19: 0 | CH19: 0 | CI19: 0 | CJ19: 0 | CK19: 0 | CL19: 0 | CM19: 0 | CN19: 0
A20: 16 | B20: Mathias Almeida | C20: 165 | E20: 0* | I20: 0* | L20: 15 | M20: 21 | N20: 1 | O20: SIM | P20: 15 | Q20: 21 | U20: 0 | Y20: 0 | AB20: 4 | AC20: 35 | AG20: 0 | AK20: 0 | AN20: 13 | AO20: 23 | AR20: 6 | AS20: 31 | AV20: 5 | AW20: 33 | AZ20: 0 | BA20: 0 | BB20: 0 | BC20: 1 | BD20: 1 | BE20: 1 | BF20: 0 | BG20: 0 | BH20: 0 | BI20: 0 | BJ20: 0 | BK20: 0 | BL20: 1 | BM20: 0 | BN20: 2 | BO20: 0 | BP20: 0 | BQ20: 0 | BR20: 0 | BS20: 0 | BT20: 0 | BU20: 0 | BV20: 0 | BW20: 0 | BX20: 0 | BY20: 0 | BZ20: 0 | CA20: 0 | CB20: 0 | CC20: 0 | CD20: 0 | CE20: 0 | CF20: 0 | CG20: 0 | CH20: 0 | CI20: 0 | CJ20: 0 | CK20: 0 | CL20: 0 | CM20: 0 | CN20: 0
A21: 17 | B21: Arthur Santiago | C21: 144 | D21: 17 | E21: 19 | G21: SIM | I21: 0* | L21: 19 | M21: 17 | P21: 16 | Q21: 20 | T21: 6 | U21: 31 | X21: 28 | Y21: 8 | AA21: SIM | AC21: 0* | AF21: 9 | AG21: 27 | AK21: 0 | AN21: 14 | AO21: 22 | AS21: 0 | AW21: 0 | AZ21: 0 | BA21: 0 | BB21: 0 | BC21: 0 | BD21: 0 | BE21: 1 | BF21: 0 | BG21: 0 | BH21: 1 | BI21: 0 | BJ21: 0 | BK21: 0 | BL21: 0 | BM21: 1 | BN21: 0 | BO21: 1 | BP21: 1 | BQ21: 0 | BR21: 1 | BS21: 0 | BT21: 0 | BU21: 0 | BV21: 0 | BW21: 0 | BX21: 0 | BY21: 0 | BZ21: 0 | CA21: 1 | CB21: 0 | CC21: 0 | CD21: 0 | CE21: 0 | CF21: 0 | CG21: 0 | CH21: 0 | CI21: 0 | CJ21: 0 | CK21: 0 | CL21: 0 | CM21: 0 | CN21: 0
A22: 18 | B22: Leandro Leite | C22: 74 | D22: 11 | E22: 25 | I22: 0* | L22: 8 | M22: 28 | Q22: 0* | U22: 0 | Y22: 0 | AC22: 0 | AF22: 15 | AG22: 21 | AK22: 0 | AO22: 0 | AS22: 0 | AW22: 0 | AZ22: 0 | BA22: 0 | BB22: 0 | BC22: 0 | BD22: 0 | BE22: 0 | BF22: 0 | BG22: 1 | BH22: 0 | BI22: 0 | BJ22: 1 | BK22: 0 | BL22: 0 | BM22: 0 | BN22: 1 | BO22: 0 | BP22: 0 | BQ22: 0 | BR22: 0 | BS22: 0 | BT22: 0 | BU22: 0 | BV22: 0 | BW22: 0 | BX22: 0 | BY22: 0 | BZ22: 0 | CA22: 0 | CB22: 0 | CC22: 0 | CD22: 0 | CE22: 0 | CF22: 0 | CG22: 0 | CH22: 0 | CI22: 0 | CJ22: 0 | CK22: 0 | CL22: 0 | CM22: 0 | CN22: 0
A23: 19 | B23: Aparecido Arantes | C23: 72 | E23: 0* | H23: 13 | I23: 23 | L23: 10 | M23: 26 | P23: 13 | Q23: 23 | U23: 0* | Y23: 0 | AC23: 0 | AG23: 0 | AK23: 0 | AO23: 0 | AS23: 0 | AW23: 0 | AZ23: 0 | BA23: 0 | BB23: 0 | BC23: 0 | BD23: 0 | BE23: 0 | BF23: 0 | BG23: 0 | BH23: 0 | BI23: 1 | BJ23: 0 | BK23: 0 | BL23: 2 | BM23: 0 | BN23: 0 | BO23: 0 | BP23: 0 | BQ23: 0 | BR23: 0 | BS23: 0 | BT23: 0 | BU23: 0 | BV23: 0 | BW23: 0 | BX23: 0 | BY23: 0 | BZ23: 0 | CA23: 0 | CB23: 0 | CC23: 0 | CD23: 0 | CE23: 0 | CF23: 0 | CG23: 0 | CH23: 0 | CI23: 0 | CJ23: 0 | CK23: 0 | CL23: 0 | CM23: 0 | CN23: 0
A24: 20 | B24: Antônio Ribeiro | C24: 57 | D24: 4 | E24: 35 | H24: 14 | I24: 22 | K24: SIM | M24: 0* | Q24: 0* | U24: 0 | Y24: 0 | AC24: 0 | AG24: 0 | AK24: 0 | AO24: 0 | AS24: 0 | AW24: 0 | AZ24: 0 | BA24: 0 | BB24: 0 | BC24: 1 | BD24: 0 | BE24: 0 | BF24: 0 | BG24: 0 | BH24: 0 | BI24: 0 | BJ24: 0 | BK24: 0 | BL24: 0 | BM24: 1 | BN24: 0 | BO24: 0 | BP24: 0 | BQ24: 0 | BR24: 0 | BS24: 0 | BT24: 0 | BU24: 0 | BV24: 0 | BW24: 0 | BX24: 0 | BY24: 0 | BZ24: 0 | CA24: 0 | CB24: 0 | CC24: 0 | CD24: 0 | CE24: 0 | CF24: 0 | CG24: 0 | CH24: 0 | CI24: 0 | CJ24: 0 | CK24: 0 | CL24: 0 | CM24: 0 | CN24: 0
A25: 21 | B25: Agostinho Neves | C25: 31 | D25: 6 | E25: 31 | I25: 0* | M25: 0* | Q25: 0 | U25: 0 | Y25: 0 | AC25: 0 | AG25: 0 | AK25: 0 | AO25: 0 | AS25: 0 | AW25: 0 | AZ25: 0 | BA25: 0 | BB25: 0 | BC25: 0 | BD25: 0 | BE25: 1 | BF25: 0 | BG25: 0 | BH25: 0 | BI25: 0 | BJ25: 0 | BK25: 0 | BL25: 0 | BM25: 0 | BN25: 0 | BO25: 0 | BP25: 0 | BQ25: 0 | BR25: 0 | BS25: 0 | BT25: 0 | BU25: 0 | BV25: 0 | BW25: 0 | BX25: 0 | BY25: 0 | BZ25: 0 | CA25: 0 | CB25: 0 | CC25: 0 | CD25: 0 | CE25: 0 | CF25: 0 | CG25: 0 | CH25: 0 | CI25: 0 | CJ25: 0 | CK25: 0 | CL25: 0 | CM25: 0 | CN25: 0
A26: 22 | C26: 0 | E26: 0 | I26: 0 | M26: 0 | Q26: 0 | U26: 0 | Y26: 0 | AC26: 0 | AG26: 0 | AK26: 0 | AO26: 0 | AS26: 0 | AW26: 0 | AZ26: 0 | BA26: 0 | BB26: 0 | BC26: 0 | BD26: 0 | BE26: 0 | BF26: 0 | BG26: 0 | BH26: 0 | BI26: 0 | BJ26: 0 | BK26: 0 | BL26: 0 | BM26: 0 | BN26: 0 | BO26: 0 | BP26: 0 | BQ26: 0 | BR26: 0 | BS26: 0 | BT26: 0 | BU26: 0 | BV26: 0 | BW26: 0 | BX26: 0 | BY26: 0 | BZ26: 0 | CA26: 0 | CB26: 0 | CC26: 0 | CD26: 0 | CE26: 0 | CF26: 0 | CG26: 0 | CH26: 0 | CI26: 0 | CJ26: 0 | CK26: 0 | CL26: 0 | CM26: 0 | CN26: 0
A27: 23 | C27: 0 | E27: 0 | I27: 0 | M27: 0 | Q27: 0 | U27: 0 | Y27: 0 | AC27: 0 | AG27: 0 | AK27: 0 | AO27: 0 | AS27: 0 | AW27: 0 | AZ27: 0 | BA27: 0 | BB27: 0 | BC27: 0 | BD27: 0 | BE27: 0 | BF27: 0 | BG27: 0 | BH27: 0 | BI27: 0 | BJ27: 0 | BK27: 0 | BL27: 0 | BM27: 0 | BN27: 0 | BO27: 0 | BP27: 0 | BQ27: 0 | BR27: 0 | BS27: 0 | BT27: 0 | BU27: 0 | BV27: 0 | BW27: 0 | BX27: 0 | BY27: 0 | BZ27: 0 | CA27: 0 | CB27: 0 | CC27: 0 | CD27: 0 | CE27: 0 | CF27: 0 | CG27: 0 | CH27: 0 | CI27: 0 | CJ27: 0 | CK27: 0 | CL27: 0 | CM27: 0 | CN27: 0
A28: 24 | C28: 0 | E28: 0 | I28: 0 | M28: 0 | Q28: 0 | U28: 0 | Y28: 0 | AC28: 0 | AG28: 0 | AK28: 0 | AO28: 0 | AS28: 0 | AW28: 0 | AZ28: 0 | BA28: 0 | BB28: 0 | BC28: 0 | BD28: 0 | BE28: 0 | BF28: 0 | BG28: 0 | BH28: 0 | BI28: 0 | BJ28: 0 | BK28: 0 | BL28: 0 | BM28: 0 | BN28: 0 | BO28: 0 | BP28: 0 | BQ28: 0 | BR28: 0 | BS28: 0 | BT28: 0 | BU28: 0 | BV28: 0 | BW28: 0 | BX28: 0 | BY28: 0 | BZ28: 0 | CA28: 0 | CB28: 0 | CC28: 0 | CD28: 0 | CE28: 0 | CF28: 0 | CG28: 0 | CH28: 0 | CI28: 0 | CJ28: 0 | CK28: 0 | CL28: 0 | CM28: 0 | CN28: 0
A29: 25 | C29: 0 | E29: 0 | I29: 0 | M29: 0 | Q29: 0 | U29: 0 | Y29: 0 | AC29: 0 | AG29: 0 | AK29: 0 | AO29: 0 | AS29: 0 | AW29: 0 | AZ29: 0 | BA29: 0 | BB29: 0 | BC29: 0 | BD29: 0 | BE29: 0 | BF29: 0 | BG29: 0 | BH29: 0 | BI29: 0 | BJ29: 0 | BK29: 0 | BL29: 0 | BM29: 0 | BN29: 0 | BO29: 0 | BP29: 0 | BQ29: 0 | BR29: 0 | BS29: 0 | BT29: 0 | BU29: 0 | BV29: 0 | BW29: 0 | BX29: 0 | BY29: 0 | BZ29: 0 | CA29: 0 | CB29: 0 | CC29: 0 | CD29: 0 | CE29: 0 | CF29: 0 | CG29: 0 | CH29: 0 | CI29: 0 | CJ29: 0 | CK29: 0 | CL29: 0 | CM29: 0 | CN29: 0
A30: 26 | C30: 0 | E30: 0 | I30: 0 | M30: 0 | Q30: 0 | U30: 0 | Y30: 0 | AC30: 0 | AG30: 0 | AK30: 0 | AO30: 0 | AS30: 0 | AW30: 0 | AZ30: 0 | BA30: 0 | BB30: 0 | BC30: 0 | BD30: 0 | BE30: 0 | BF30: 0 | BG30: 0 | BH30: 0 | BI30: 0 | BJ30: 0 | BK30: 0 | BL30: 0 | BM30: 0 | BN30: 0 | BO30: 0 | BP30: 0 | BQ30: 0 | BR30: 0 | BS30: 0 | BT30: 0 | BU30: 0 | BV30: 0 | BW30: 0 | BX30: 0 | BY30: 0 | BZ30: 0 | CA30: 0 | CB30: 0 | CC30: 0 | CD30: 0 | CE30: 0 | CF30: 0 | CG30: 0 | CH30: 0 | CI30: 0 | CJ30: 0 | CK30: 0 | CL30: 0 | CM30: 0 | CN30: 0
A31: 27 | C31: 0 | E31: 0 | I31: 0 | M31: 0 | Q31: 0 | U31: 0 | Y31: 0 | AC31: 0 | AG31: 0 | AK31: 0 | AO31: 0 | AS31: 0 | AW31: 0 | AZ31: 0 | BA31: 0 | BB31: 0 | BC31: 0 | BD31: 0 | BE31: 0 | BF31: 0 | BG31: 0 | BH31: 0 | BI31: 0 | BJ31: 0 | BK31: 0 | BL31: 0 | BM31: 0 | BN31: 0 | BO31: 0 | BP31: 0 | BQ31: 0 | BR31: 0 | BS31: 0 | BT31: 0 | BU31: 0 | BV31: 0 | BW31: 0 | BX31: 0 | BY31: 0 | BZ31: 0 | CA31: 0 | CB31: 0 | CC31: 0 | CD31: 0 | CE31: 0 | CF31: 0 | CG31: 0 | CH31: 0 | CI31: 0 | CJ31: 0 | CK31: 0 | CL31: 0 | CM31: 0 | CN31: 0
A32: 28 | C32: 0 | E32: 0 | I32: 0 | M32: 0 | Q32: 0 | U32: 0 | Y32: 0 | AC32: 0 | AG32: 0 | AK32: 0 | AO32: 0 | AS32: 0 | AW32: 0 | AZ32: 0 | BA32: 0 | BB32: 0 | BC32: 0 | BD32: 0 | BE32: 0 | BF32: 0 | BG32: 0 | BH32: 0 | BI32: 0 | BJ32: 0 | BK32: 0 | BL32: 0 | BM32: 0 | BN32: 0 | BO32: 0 | BP32: 0 | BQ32: 0 | BR32: 0 | BS32: 0 | BT32: 0 | BU32: 0 | BV32: 0 | BW32: 0 | BX32: 0 | BY32: 0 | BZ32: 0 | CA32: 0 | CB32: 0 | CC32: 0 | CD32: 0 | CE32: 0 | CF32: 0 | CG32: 0 | CH32: 0 | CI32: 0 | CJ32: 0 | CK32: 0 | CL32: 0 | CM32: 0 | CN32: 0
A33: 29 | C33: 0 | E33: 0 | I33: 0 | M33: 0 | Q33: 0 | U33: 0 | Y33: 0 | AC33: 0 | AG33: 0 | AK33: 0 | AO33: 0 | AS33: 0 | AW33: 0 | AZ33: 0 | BA33: 0 | BB33: 0 | BC33: 0 | BD33: 0 | BE33: 0 | BF33: 0 | BG33: 0 | BH33: 0 | BI33: 0 | BJ33: 0 | BK33: 0 | BL33: 0 | BM33: 0 | BN33: 0 | BO33: 0 | BP33: 0 | BQ33: 0 | BR33: 0 | BS33: 0 | BT33: 0 | BU33: 0 | BV33: 0 | BW33: 0 | BX33: 0 | BY33: 0 | BZ33: 0 | CA33: 0 | CB33: 0 | CC33: 0 | CD33: 0 | CE33: 0 | CF33: 0 | CG33: 0 | CH33: 0 | CI33: 0 | CJ33: 0 | CK33: 0 | CL33: 0 | CM33: 0 | CN33: 0
A34: 30 | C34: 0 | E34: 0 | I34: 0 | M34: 0 | Q34: 0 | U34: 0 | Y34: 0 | AC34: 0 | AG34: 0 | AK34: 0 | AO34: 0 | AS34: 0 | AW34: 0 | AZ34: 0 | BA34: 0 | BB34: 0 | BC34: 0 | BD34: 0 | BE34: 0 | BF34: 0 | BG34: 0 | BH34: 0 | BI34: 0 | BJ34: 0 | BK34: 0 | BL34: 0 | BM34: 0 | BN34: 0 | BO34: 0 | BP34: 0 | BQ34: 0 | BR34: 0 | BS34: 0 | BT34: 0 | BU34: 0 | BV34: 0 | BW34: 0 | BX34: 0 | BY34: 0 | BZ34: 0 | CA34: 0 | CB34: 0 | CC34: 0 | CD34: 0 | CE34: 0 | CF34: 0 | CG34: 0 | CH34: 0 | CI34: 0 | CJ34: 0 | CK34: 0 | CL34: 0 | CM34: 0 | CN34: 0
A35: 31 | C35: 0 | E35: 0 | I35: 0 | M35: 0 | Q35: 0 | U35: 0 | Y35: 0 | AC35: 0 | AG35: 0 | AK35: 0 | AO35: 0 | AS35: 0 | AW35: 0 | AZ35: 0 | BA35: 0 | BB35: 0 | BC35: 0 | BD35: 0 | BE35: 0 | BF35: 0 | BG35: 0 | BH35: 0 | BI35: 0 | BJ35: 0 | BK35: 0 | BL35: 0 | BM35: 0 | BN35: 0 | BO35: 0 | BP35: 0 | BQ35: 0 | BR35: 0 | BS35: 0 | BT35: 0 | BU35: 0 | BV35: 0 | BW35: 0 | BX35: 0 | BY35: 0 | BZ35: 0 | CA35: 0 | CB35: 0 | CC35: 0 | CD35: 0 | CE35: 0 | CF35: 0 | CG35: 0 | CH35: 0 | CI35: 0 | CJ35: 0 | CK35: 0 | CL35: 0 | CM35: 0 | CN35: 0
A36: 32 | C36: 0 | E36: 0 | I36: 0 | M36: 0 | Q36: 0 | U36: 0 | Y36: 0 | AC36: 0 | AG36: 0 | AK36: 0 | AO36: 0 | AS36: 0 | AW36: 0 | AZ36: 0 | BA36: 0 | BB36: 0 | BC36: 0 | BD36: 0 | BE36: 0 | BF36: 0 | BG36: 0 | BH36: 0 | BI36: 0 | BJ36: 0 | BK36: 0 | BL36: 0 | BM36: 0 | BN36: 0 | BO36: 0 | BP36: 0 | BQ36: 0 | BR36: 0 | BS36: 0 | BT36: 0 | BU36: 0 | BV36: 0 | BW36: 0 | BX36: 0 | BY36: 0 | BZ36: 0 | CA36: 0 | CB36: 0 | CC36: 0 | CD36: 0 | CE36: 0 | CF36: 0 | CG36: 0 | CH36: 0 | CI36: 0 | CJ36: 0 | CK36: 0 | CL36: 0 | CM36: 0 | CN36: 0
A37: 33 | C37: 0 | E37: 0 | I37: 0 | M37: 0 | Q37: 0 | U37: 0 | Y37: 0 | AC37: 0 | AG37: 0 | AK37: 0 | AO37: 0 | AS37: 0 | AW37: 0 | AZ37: 0 | BA37: 0 | BB37: 0 | BC37: 0 | BD37: 0 | BE37: 0 | BF37: 0 | BG37: 0 | BH37: 0 | BI37: 0 | BJ37: 0 | BK37: 0 | BL37: 0 | BM37: 0 | BN37: 0 | BO37: 0 | BP37: 0 | BQ37: 0 | BR37: 0 | BS37: 0 | BT37: 0 | BU37: 0 | BV37: 0 | BW37: 0 | BX37: 0 | BY37: 0 | BZ37: 0 | CA37: 0 | CB37: 0 | CC37: 0 | CD37: 0 | CE37: 0 | CF37: 0 | CG37: 0 | CH37: 0 | CI37: 0 | CJ37: 0 | CK37: 0 | CL37: 0 | CM37: 0 | CN37: 0
A38: 34 | C38: 0 | E38: 0 | I38: 0 | M38: 0 | Q38: 0 | U38: 0 | Y38: 0 | AC38: 0 | AG38: 0 | AK38: 0 | AO38: 0 | AS38: 0 | AW38: 0 | AZ38: 0 | BA38: 0 | BB38: 0 | BC38: 0 | BD38: 0 | BE38: 0 | BF38: 0 | BG38: 0 | BH38: 0 | BI38: 0 | BJ38: 0 | BK38: 0 | BL38: 0 | BM38: 0 | BN38: 0 | BO38: 0 | BP38: 0 | BQ38: 0 | BR38: 0 | BS38: 0 | BT38: 0 | BU38: 0 | BV38: 0 | BW38: 0 | BX38: 0 | BY38: 0 | BZ38: 0 | CA38: 0 | CB38: 0 | CC38: 0 | CD38: 0 | CE38: 0 | CF38: 0 | CG38: 0 | CH38: 0 | CI38: 0 | CJ38: 0 | CK38: 0 | CL38: 0 | CM38: 0 | CN38: 0
A39: 35 | C39: 0 | E39: 0 | I39: 0 | M39: 0 | Q39: 0 | U39: 0 | Y39: 0 | AC39: 0 | AG39: 0 | AK39: 0 | AO39: 0 | AS39: 0 | AW39: 0 | AZ39: 0 | BA39: 0 | BB39: 0 | BC39: 0 | BD39: 0 | BE39: 0 | BF39: 0 | BG39: 0 | BH39: 0 | BI39: 0 | BJ39: 0 | BK39: 0 | BL39: 0 | BM39: 0 | BN39: 0 | BO39: 0 | BP39: 0 | BQ39: 0 | BR39: 0 | BS39: 0 | BT39: 0 | BU39: 0 | BV39: 0 | BW39: 0 | BX39: 0 | BY39: 0 | BZ39: 0 | CA39: 0 | CB39: 0 | CC39: 0 | CD39: 0 | CE39: 0 | CF39: 0 | CG39: 0 | CH39: 0 | CI39: 0 | CJ39: 0 | CK39: 0 | CL39: 0 | CM39: 0 | CN39: 0
A40: 36 | C40: 0 | E40: 0 | I40: 0 | M40: 0 | Q40: 0 | U40: 0 | Y40: 0 | AC40: 0 | AG40: 0 | AK40: 0 | AO40: 0 | AS40: 0 | AW40: 0 | AZ40: 0 | BA40: 0 | BB40: 0 | BC40: 0 | BD40: 0 | BE40: 0 | BF40: 0 | BG40: 0 | BH40: 0 | BI40: 0 | BJ40: 0 | BK40: 0 | BL40: 0 | BM40: 0 | BN40: 0 | BO40: 0 | BP40: 0 | BQ40: 0 | BR40: 0 | BS40: 0 | BT40: 0 | BU40: 0 | BV40: 0 | BW40: 0 | BX40: 0 | BY40: 0 | BZ40: 0 | CA40: 0 | CB40: 0 | CC40: 0 | CD40: 0 | CE40: 0 | CF40: 0 | CG40: 0 | CH40: 0 | CI40: 0 | CJ40: 0 | CK40: 0 | CL40: 0 | CM40: 0 | CN40: 0
A41: 37 | C41: 0 | E41: 0 | I41: 0 | M41: 0 | Q41: 0 | U41: 0 | Y41: 0 | AC41: 0 | AG41: 0 | AK41: 0 | AO41: 0 | AS41: 0 | AW41: 0 | AZ41: 0 | BA41: 0 | BB41: 0 | BC41: 0 | BD41: 0 | BE41: 0 | BF41: 0 | BG41: 0 | BH41: 0 | BI41: 0 | BJ41: 0 | BK41: 0 | BL41: 0 | BM41: 0 | BN41: 0 | BO41: 0 | BP41: 0 | BQ41: 0 | BR41: 0 | BS41: 0 | BT41: 0 | BU41: 0 | BV41: 0 | BW41: 0 | BX41: 0 | BY41: 0 | BZ41: 0 | CA41: 0 | CB41: 0 | CC41: 0 | CD41: 0 | CE41: 0 | CF41: 0 | CG41: 0 | CH41: 0 | CI41: 0 | CJ41: 0 | CK41: 0 | CL41: 0 | CM41: 0 | CN41: 0
A42: 38 | C42: 0 | E42: 0 | I42: 0 | M42: 0 | Q42: 0 | U42: 0 | Y42: 0 | AC42: 0 | AG42: 0 | AK42: 0 | AO42: 0 | AS42: 0 | AW42: 0 | AZ42: 0 | BA42: 0 | BB42: 0 | BC42: 0 | BD42: 0 | BE42: 0 | BF42: 0 | BG42: 0 | BH42: 0 | BI42: 0 | BJ42: 0 | BK42: 0 | BL42: 0 | BM42: 0 | BN42: 0 | BO42: 0 | BP42: 0 | BQ42: 0 | BR42: 0 | BS42: 0 | BT42: 0 | BU42: 0 | BV42: 0 | BW42: 0 | BX42: 0 | BY42: 0 | BZ42: 0 | CA42: 0 | CB42: 0 | CC42: 0 | CD42: 0 | CE42: 0 | CF42: 0 | CG42: 0 | CH42: 0 | CI42: 0 | CJ42: 0 | CK42: 0 | CL42: 0 | CM42: 0 | CN42: 0
A43: 39 | C43: 0 | E43: 0 | I43: 0 | M43: 0 | Q43: 0 | U43: 0 | Y43: 0 | AC43: 0 | AG43: 0 | AK43: 0 | AO43: 0 | AS43: 0 | AW43: 0 | AZ43: 0 | BA43: 0 | BB43: 0 | BC43: 0 | BD43: 0 | BE43: 0 | BF43: 0 | BG43: 0 | BH43: 0 | BI43: 0 | BJ43: 0 | BK43: 0 | BL43: 0 | BM43: 0 | BN43: 0 | BO43: 0 | BP43: 0 | BQ43: 0 | BR43: 0 | BS43: 0 | BT43: 0 | BU43: 0 | BV43: 0 | BW43: 0 | BX43: 0 | BY43: 0 | BZ43: 0 | CA43: 0 | CB43: 0 | CC43: 0 | CD43: 0 | CE43: 0 | CF43: 0 | CG43: 0 | CH43: 0 | CI43: 0 | CJ43: 0 | CK43: 0 | CL43: 0 | CM43: 0 | CN43: 0
A44: 40 | C44: 0 | E44: 0 | I44: 0 | M44: 0 | Q44: 0 | U44: 0 | Y44: 0 | AC44: 0 | AG44: 0 | AK44: 0 | AO44: 0 | AS44: 0 | AW44: 0 | AZ44: 0 | BA44: 0 | BB44: 0 | BC44: 0 | BD44: 0 | BE44: 0 | BF44: 0 | BG44: 0 | BH44: 0 | BI44: 0 | BJ44: 0 | BK44: 0 | BL44: 0 | BM44: 0 | BN44: 0 | BO44: 0 | BP44: 0 | BQ44: 0 | BR44: 0 | BS44: 0 | BT44: 0 | BU44: 0 | BV44: 0 | BW44: 0 | BX44: 0 | BY44: 0 | BZ44: 0 | CA44: 0 | CB44: 0 | CC44: 0 | CD44: 0 | CE44: 0 | CF44: 0 | CG44: 0 | CH44: 0 | CI44: 0 | CJ44: 0 | CK44: 0 | CL44: 0 | CM44: 0 | CN44: 0
A45: 41 | C45: 0 | E45: 0 | I45: 0 | M45: 0 | Q45: 0 | U45: 0 | Y45: 0 | AC45: 0 | AG45: 0 | AK45: 0 | AO45: 0 | AS45: 0 | AW45: 0 | AZ45: 0 | BA45: 0 | BB45: 0 | BC45: 0 | BD45: 0 | BE45: 0 | BF45: 0 | BG45: 0 | BH45: 0 | BI45: 0 | BJ45: 0 | BK45: 0 | BL45: 0 | BM45: 0 | BN45: 0 | BO45: 0 | BP45: 0 | BQ45: 0 | BR45: 0 | BS45: 0 | BT45: 0 | BU45: 0 | BV45: 0 | BW45: 0 | BX45: 0 | BY45: 0 | BZ45: 0 | CA45: 0 | CB45: 0 | CC45: 0 | CD45: 0 | CE45: 0 | CF45: 0 | CG45: 0 | CH45: 0 | CI45: 0 | CJ45: 0 | CK45: 0 | CL45: 0 | CM45: 0 | CN45: 0
A46: 42 | C46: 0 | E46: 0 | I46: 0 | M46: 0 | Q46: 0 | U46: 0 | Y46: 0 | AC46: 0 | AG46: 0 | AK46: 0 | AO46: 0 | AS46: 0 | AW46: 0 | AZ46: 0 | BA46: 0 | BB46: 0 | BC46: 0 | BD46: 0 | BE46: 0 | BF46: 0 | BG46: 0 | BH46: 0 | BI46: 0 | BJ46: 0 | BK46: 0 | BL46: 0 | BM46: 0 | BN46: 0 | BO46: 0 | BP46: 0 | BQ46: 0 | BR46: 0 | BS46: 0 | BT46: 0 | BU46: 0 | BV46: 0 | BW46: 0 | BX46: 0 | BY46: 0 | BZ46: 0 | CA46: 0 | CB46: 0 | CC46: 0 | CD46: 0 | CE46: 0 | CF46: 0 | CG46: 0 | CH46: 0 | CI46: 0 | CJ46: 0 | CK46: 0 | CL46: 0 | CM46: 0 | CN46: 0
A47: 43 | C47: 0 | E47: 0 | I47: 0 | M47: 0 | Q47: 0 | U47: 0 | Y47: 0 | AC47: 0 | AG47: 0 | AK47: 0 | AO47: 0 | AS47: 0 | AW47: 0 | AZ47: 0 | BA47: 0 | BB47: 0 | BC47: 0 | BD47: 0 | BE47: 0 | BF47: 0 | BG47: 0 | BH47: 0 | BI47: 0 | BJ47: 0 | BK47: 0 | BL47: 0 | BM47: 0 | BN47: 0 | BO47: 0 | BP47: 0 | BQ47: 0 | BR47: 0 | BS47: 0 | BT47: 0 | BU47: 0 | BV47: 0 | BW47: 0 | BX47: 0 | BY47: 0 | BZ47: 0 | CA47: 0 | CB47: 0 | CC47: 0 | CD47: 0 | CE47: 0 | CF47: 0 | CG47: 0 | CH47: 0 | CI47: 0 | CJ47: 0 | CK47: 0 | CL47: 0 | CM47: 0 | CN47: 0
A48: 44 | C48: 0 | E48: 0 | I48: 0 | M48: 0 | Q48: 0 | U48: 0 | Y48: 0 | AC48: 0 | AG48: 0 | AK48: 0 | AO48: 0 | AS48: 0 | AW48: 0 | AZ48: 0 | BA48: 0 | BB48: 0 | BC48: 0 | BD48: 0 | BE48: 0 | BF48: 0 | BG48: 0 | BH48: 0 | BI48: 0 | BJ48: 0 | BK48: 0 | BL48: 0 | BM48: 0 | BN48: 0 | BO48: 0 | BP48: 0 | BQ48: 0 | BR48: 0 | BS48: 0 | BT48: 0 | BU48: 0 | BV48: 0 | BW48: 0 | BX48: 0 | BY48: 0 | BZ48: 0 | CA48: 0 | CB48: 0 | CC48: 0 | CD48: 0 | CE48: 0 | CF48: 0 | CG48: 0 | CH48: 0 | CI48: 0 | CJ48: 0 | CK48: 0 | CL48: 0 | CM48: 0 | CN48: 0
A49: 45 | C49: 0 | E49: 0 | I49: 0 | M49: 0 | Q49: 0 | U49: 0 | Y49: 0 | AC49: 0 | AG49: 0 | AK49: 0 | AO49: 0 | AS49: 0 | AW49: 0 | AZ49: 0 | BA49: 0 | BB49: 0 | BC49: 0 | BD49: 0 | BE49: 0 | BF49: 0 | BG49: 0 | BH49: 0 | BI49: 0 | BJ49: 0 | BK49: 0 | BL49: 0 | BM49: 0 | BN49: 0 | BO49: 0 | BP49: 0 | BQ49: 0 | BR49: 0 | BS49: 0 | BT49: 0 | BU49: 0 | BV49: 0 | BW49: 0 | BX49: 0 | BY49: 0 | BZ49: 0 | CA49: 0 | CB49: 0 | CC49: 0 | CD49: 0 | CE49: 0 | CF49: 0 | CG49: 0 | CH49: 0 | CI49: 0 | CJ49: 0 | CK49: 0 | CL49: 0 | CM49: 0 | CN49: 0

Sheet Tabela Equipes
A1: 2023 | D1: OK | H1: OK | L1: OK | P1: OK | T1: OK | X1: OK | AB1: OK | AF1: OK | AJ1: OK | AN1: OK | AR1: OK | AV1: OK
C2: 44945 | G2: 44959 | K2: 44987 | O2: 45050 | S2: 45078 | W2: 45113 | AA2: 45141 | AE2: 45183 | AI2: 45195 | AM2: 45204 | AQ2: 45239 | AU2: 45267
C3: 00:00:00 | G3: 00:00:00 | K3: 00:00:00 | O3: 00:00:00 | S3: 00:00:00 | W3: 00:00:00 | AA3: 00:00:00 | AE3: 00:00:00 | AI3: 00:00:00 | AM3: 00:00:00 | AQ3: 00:00:00 | AU3: 00:00:00
A4: EQUIPES | B4: Pontuação Geral | C4: Posição | D4: Pontos | E4: Bônus | F4: Penalidade | G4: Posição | H4: Pontos | I4: Bônus | J4: Penalidade | K4: Posição | L4: Pontos | M4: Bônus | N4: Penalidade | O4: Posição | P4: Pontos | Q4: Bônus | R4: Penalidade | S4: Posição | T4: Pontos | U4: Bônus | V4: Penalidade | W4: Posição | X4: Pontos | Y4: Bônus | Z4: Penalidade | AA4: Posição | AB4: Pontos | AC4: Bônus | AD4: Penalidade | AE4: Posição | AF4: Pontos | AG4: Bônus | AH4: Penalidade | AI4: Posição | AJ4: Pontos | AK4: Bônus | AL4: Penalidade | AM4: Posição | AN4: Pontos | AO4: Bônus | AP4: Penalidade | AQ4: Posição | AR4: Pontos | AS4: Bônus | AT4: Penalidade | AU4: Posição | AV4: Pontos | AW4: Bônus | AX4: Penalidade
A5: Multiseg | B5: 915 | D5: 55 | E5: 1 | H5: 57 | I5: 0 | L5: 73 | M5: 0 | P5: 65 | Q5: 0 | T5: 69 | U5: 1 | X5: 96 | Y5: 0 | AB5: 100 | AC5: 0 | AF5: 91 | AG5: 1 | AJ5: 101 | AK5: 1 | AN5: 72 | AO5: 0 | AR5: 49 | AS5: 0 | AV5: 83 | AW5: 0
A6: Fernando Mota | B6: 393 | C6: 14 | D6: 22 | E6: 0 | H6: 0 | I6: 0 | K6: 5 | L6: 33 | M6: 0 | O6: 2 | P6: 40 | Q6: 0 | S6: 1 | T6: 45 | U6: 1 | W6: 1 | X6: 45 | Y6: 0 | AA6: 2 | AB6: 40 | AC6: 0 | AE6: 2 | AF6: 40 | AG6: 1 | AI6: 1 | AJ6: 45 | AK6: 1 | AM6: 17 | AN6: 19 | AO6: 0 | AQ6: 12 | AR6: 24 | AS6: 0 | AU6: 3 | AV6: 37 | AW6: 0
A7: Vitor Diniz | B7: 287 | C7: 5 | D7: 33 | E7: 1 | G7: 10 | H7: 26 | I7: 0 | K7: 18 | L7: 18 | M7: 0 | O7: 11 | P7: 25 | Q7: 0 | S7: 12 | T7: 24 | U7: 0 | W7: 8 | X7: 28 | Y7: 0 | AA7: 9 | AB7: 27 | AC7: 0 | AE7: 11 | AF7: 25 | AG7: 0 | AI7: 9 | AJ7: 27 | AK7: 0 | AM7: 8 | AN7: 28 | AO7: 0 | AR7: 0 | AS7: 0 | AU7: 11 | AV7: 25 | AW7: 0
A8: Anderson Oliveira | B8: 235 | D8: 0 | E8: 0 | G8: 6 | H8: 31 | I8: 0 | K8: 14 | L8: 22 | M8: 0 | P8: 0 | Q8: 0 | T8: 0 | U8: 0 | W8: 13 | X8: 23 | Y8: 0 | AA8: 5 | AB8: 33 | AC8: 0 | AE8: 10 | AF8: 26 | AG8: 0 | AI8: 7 | AJ8: 29 | AK8: 0 | AM8: 11 | AN8: 25 | AO8: 0 | AQ8: 11 | AR8: 25 | AS8: 0 | AU8: 15 | AV8: 21 | AW8: 0
A9: X
A10: X | B10: 0
A11: ComOferta | B11: 831 | D11: 87 | E11: 0 | H11: 54 | I11: 1 | L11: 52 | M11: 0 | P11: 61 | Q11: 0 | T11: 68 | U11: 0 | X11: 66 | Y11: 0 | AB11: 82 | AC11: 1 | AF11: 66 | AG11: 0 | AJ11: 72 | AK11: 0 | AN11: 73 | AO11: 0 | AR11: 78 | AS11: 0 | AV11: 69 | AW11: 1
A12: Alexandre Melillo | B12: 385 | C12: 9 | D12: 27 | E12: 0 | G12: 15 | H12: 21 | I12: 0 | K12: 9 | L12: 27 | M12: 0 | O12: 10 | P12: 26 | Q12: 0 | S12: 8 | T12: 28 | U12: 0 | W12: 3 | X12: 37 | Y12: 0 | AA12: 1 | AB12: 45 | AC12: 1 | AE12: 6 | AF12: 31 | AG12: 0 | AI12: 4 | AJ12: 35 | AK12: 0 | AM12: 5 | AN12: 33 | AO12: 0 | AQ12: 5 | AR12: 33 | AS12: 0 | AU12: 2 | AV12: 40 | AW12: 1
A13: Agostinho Neves | B13: 31 | C13: 6 | D13: 31 | E13: 0 | H13: 0 | I13: 0 | L13: 0 | M13: 0 | P13: 0 | Q13: 0 | T13: 0 | U13: 0 | X13: 0 | Y13: 0 | AB13: 0 | AC13: 0 | AF13: 0 | AG13: 0 | AJ13: 0 | AK13: 0 | AN13: 0 | AO13: 0 | AR13: 0 | AS13: 0 | AV13: 0 | AW13: 0
A14: Matheus Dias | B14: 415 | C14: 7 | D14: 29 | E14: 0 | G14: 5 | H14: 33 | I14: 1 | K14: 11 | L14: 25 | M14: 0 | O14: 4 | P14: 35 | Q14: 0 | S14: 2 | T14: 40 | U14: 0 | W14: 7 | X14: 29 | Y14: 0 | AA14: 3 | AB14: 37 | AC14: 0 | AE14: 4 | AF14: 35 | AG14: 0 | AI14: 3 | AJ14: 37 | AK14: 0 | AM14: 2 | AN14: 40 | AO14: 0 | AQ14: 1 | AR14: 45 | AS14: 0 | AU14: 7 | AV14: 29 | AW14: 0
A15: XX
A16: XX
A17: Essencia Studio | B17: 589 | D17: 59 | E17: 0 | H17: 78 | I17: 0 | L17: 60 | M17: 0 | P17: 55 | Q17: 0 | T17: 61 | U17: 0 | X17: 56 | Y17: 0 | AB17: 26 | AC17: 0 | AF17: 56 | AG17: 0 | AJ17: 40 | AK17: 0 | AN17: 47 | AO17: 0 | AR17: 27 | AS17: 0 | AV17: 24 | AW17: 0
A18: Anderson Teixeira | B18: 257 | D18: 0 | E18: 0 | G18: 9 | H18: 27 | I18: 0 | K18: 2 | L18: 40 | M18: 0 | O18: 6 | P18: 31 | Q18: 0 | S18: 4 | T18: 35 | U18: 0 | W18: 6 | X18: 31 | Y18: 0 | AB18: 0 | AC18: 0 | AE18: 5 | AF18: 33 | AG18: 0 | AI18: 2 | AJ18: 40 | AK18: 0 | AM18: 16 | AN18: 20 | AO18: 0 | AR18: 0 | AS18: 0 | AV18: 0 | AW18: 0
A19: Gladson Souza | B19: 275 | C19: 12 | D19: 24 | E19: 0 | G19: 7 | H19: 29 | I19: 0 | K19: 16 | L19: 20 | M19: 0 | O19: 12 | P19: 24 | Q19: 0 | S19: 10 | T19: 26 | U19: 0 | W19: 11 | X19: 25 | Y19: 0 | AA19: 10 | AB19: 26 | AC19: 0 | AE19: 13 | AF19: 23 | AG19: 0 | AJ19: 0 | AK19: 0 | AM19: 9 | AN19: 27 | AO19: 0 | AQ19: 9 | AR19: 27 | AS19: 0 | AU19: 12 | AV19: 24 | AW19: 0
A20: Antônio Ribeiro | B20: 57 | C20: 4 | D20: 35 | E20: 0 | G20: 14 | H20: 22 | I20: 0 | L20: 0 | M20: 0 | P20: 0 | Q20: 0 | T20: 0 | U20: 0 | X20: 0 | Y20: 0 | AB20: 0 | AC20: 0 | AF20: 0 | AG20: 0 | AJ20: 0 | AK20: 0 | AN20: 0 | AO20: 0 | AR20: 0 | AS20: 0 | AV20: 0 | AW20: 0
A21: XXX
A22: XXX | B22: 0
A23: AST Estrutura | B23: 679 | D23: 19 | E23: 0 | H23: 63 | I23: 0 | L23: 75 | M23: 0 | P23: 65 | Q23: 0 | T23: 64 | U23: 0 | X23: 65 | Y23: 0 | AB23: 23 | AC23: 0 | AF23: 55 | AG23: 0 | AJ23: 59 | AK23: 0 | AN23: 77 | AO23: 0 | AR23: 65 | AS23: 0 | AV23: 49 | AW23: 0
A24: Joanes Gouvea | B24: 331 | D24: 0 | E24: 0 | G24: 4 | H24: 35 | I24: 0 | K24: 4 | L24: 35 | M24: 0 | O24: 1 | P24: 45 | Q24: 0 | S24: 5 | T24: 33 | U24: 0 | W24: 5 | X24: 33 | Y24: 0 | AB24: 0 | AC24: 0 | AE24: 8 | AF24: 28 | AG24: 0 | AI24: 6 | AJ24: 31 | AK24: 0 | AM24: 6 | AN24: 31 | AO24: 0 | AQ24: 3 | AR24: 37 | AS24: 0 | AU24: 13 | AV24: 23 | AW24: 0
A25: Arthur Santiago | B25: 144 | C25: 17 | D25: 19 | E25: 0 | H25: 0 | I25: 0 | K25: 19 | L25: 17 | M25: 0 | O25: 16 | P25: 20 | Q25: 0 | S25: 6 | T25: 31 | U25: 0 | W25: 28 | X25: 8 | Y25: 0 | AB25: 0 | AC25: 0 | AE25: 9 | AF25: 27 | AG25: 0 | AJ25: 0 | AK25: 0 | AM25: 14 | AN25: 22 | AO25: 0 | AR25: 0 | AS25: 0 | AV25: 0 | AW25: 0
A26: Hélio Pedrolli | B26: 204 | D26: 0 | E26: 0 | G26: 8 | H26: 28 | I26: 0 | K26: 13 | L26: 23 | M26: 0 | P26: 0 | Q26: 0 | T26: 0 | U26: 0 | W26: 12 | X26: 24 | Y26: 0 | AA26: 13 | AB26: 23 | AC26: 0 | AF26: 0 | AG26: 0 | AI26: 8 | AJ26: 28 | AK26: 0 | AM26: 12 | AN26: 24 | AO26: 0 | AQ26: 8 | AR26: 28 | AS26: 0 | AU26: 10 | AV26: 26 | AW26: 0
A27: XXXX | B27: 0
A28: XXXX | B28: 0
A29: Inovesa | B29: 434 | D29: 48 | E29: 0 | H29: 48 | I29: 0 | L29: 78 | M29: 0 | P29: 52 | Q29: 0 | T29: 27 | U29: 0 | X29: 22 | Y29: 0 | AB29: 29 | AC29: 0 | AF29: 21 | AG29: 0 | AJ29: 26 | AK29: 0 | AN29: 29 | AO29: 0 | AR29: 26 | AS29: 0 | AV29: 28 | AW29: 0
A30: Lúcio Chequer | B30: 288 | C30: 13 | D30: 23 | E30: 0 | G30: 11 | H30: 25 | I30: 0 | K30: 12 | L30: 24 | M30: 0 | O30: 7 | P30: 29 | Q30: 0 | S30: 9 | T30: 27 | U30: 0 | W30: 14 | X30: 22 | Y30: 0 | AA30: 7 | AB30: 29 | AC30: 0 | AF30: 0 | AG30: 0 | AI30: 10 | AJ30: 26 | AK30: 0 | AM30: 7 | AN30: 29 | AO30: 0 | AQ30: 10 | AR30: 26 | AS30: 0 | AU30: 8 | AV30: 28 | AW30: 0
A31: Aparecido Arantes | B31: 72 | D31: 0 | E31: 0 | G31: 13 | H31: 23 | I31: 0 | K31: 10 | L31: 26 | M31: 0 | O31: 13 | P31: 23 | Q31: 0 | T31: 0 | U31: 0 | X31: 0 | Y31: 0 | AB31: 0 | AC31: 0 | AF31: 0 | AG31: 0 | AJ31: 0 | AK31: 0 | AN31: 0 | AO31: 0 | AR31: 0 | AS31: 0 | AV31: 0 | AW31: 0
A32: Leandro Leite | B32: 74 | C32: 11 | D32: 25 | E32: 0 | H32: 0 | I32: 0 | K32: 8 | L32: 28 | M32: 0 | P32: 0 | Q32: 0 | T32: 0 | U32: 0 | X32: 0 | Y32: 0 | AB32: 0 | AC32: 0 | AE32: 15 | AF32: 21 | AG32: 0 | AJ32: 0 | AK32: 0 | AN32: 0 | AO32: 0 | AR32: 0 | AS32: 0 | AV32: 0 | AW32: 0
A33: XXXXX
A34: XXXXX | B34: 0
A35: Grupo Santiago | B35: 764 | D35: 63 | E35: 0 | H35: 45 | I35: 0 | L35: 85 | M35: 1 | P35: 80 | Q35: 1 | T35: 50 | U35: 0 | X35: 53 | Y35: 0 | AB35: 59 | AC35: 0 | AF35: 46 | AG35: 0 | AJ35: 48 | AK35: 0 | AN35: 79 | AO35: 0 | AR35: 54 | AS35: 0 | AV35: 100 | AW35: 0
A36: Leonardo Mattioda | B36: 353 | C36: 3 | D36: 37 | E36: 0 | G36: 1 | H36: 45 | I36: 0 | K36: 1 | L36: 45 | M36: 0 | O36: 3 | P36: 37 | Q36: 1 | S36: 3 | T36: 37 | U36: 0 | W36: 10 | X36: 26 | Y36: 0 | AB36: 0 | AC36: 0 | AE36: 14 | AF36: 22 | AG36: 0 | AI36: 13 | AJ36: 23 | AK36: 0 | AM36: 4 | AN36: 35 | AO36: 0 | AR36: 0 | AS36: 0 | AU36: 1 | AV36: 45 | AW36: 0
A37: Leodegario Junior | B37: 246 | C37: 10 | D37: 26 | E37: 0 | H37: 0 | I37: 0 | K37: 17 | L37: 19 | M37: 0 | O37: 14 | P37: 22 | Q37: 0 | S37: 23 | T37: 13 | U37: 0 | W37: 9 | X37: 27 | Y37: 0 | AA37: 12 | AB37: 24 | AC37: 0 | AE37: 12 | AF37: 24 | AG37: 0 | AI37: 11 | AJ37: 25 | AK37: 0 | AM37: 15 | AN37: 21 | AO37: 0 | AQ37: 13 | AR37: 23 | AS37: 0 | AU37: 14 | AV37: 22 | AW37: 0
A38: Mathias Almeida | B38: 165 | D38: 0 | E38: 0 | H38: 0 | I38: 0 | K38: 15 | L38: 21 | M38: 1 | O38: 15 | P38: 21 | Q38: 0 | T38: 0 | U38: 0 | X38: 0 | Y38: 0 | AA38: 4 | AB38: 35 | AC38: 0 | AF38: 0 | AG38: 0 | AJ38: 0 | AK38: 0 | AM38: 13 | AN38: 23 | AO38: 0 | AQ38: 6 | AR38: 31 | AS38: 0 | AU38: 5 | AV38: 33 | AW38: 0
A39: XXXXXX
A40: XXXXXX | B40: 0
A41: Os Piratas | B41: 1088 | D41: 113 | E41: 0 | H41: 101 | I41: 0 | L41: 97 | M41: 0 | P41: 88 | Q41: 0 | T41: 54 | U41: 0 | X41: 75 | Y41: 1 | AB41: 84 | AC41: 0 | AF41: 111 | AG41: 0 | AJ41: 57 | AK41: 0 | AN41: 108 | AO41: 1 | AR41: 104 | AS41: 1 | AV41: 93 | AW41: 0
A42: Luciano Brandão | B42: 384 | C42: 1 | D42: 45 | E42: 0 | G42: 3 | H42: 37 | I42: 0 | K42: 6 | L42: 31 | M42: 0 | O42: 5 | P42: 33 | Q42: 0 | S42: 7 | T42: 29 | U42: 0 | W42: 2 | X42: 40 | Y42: 1 | AA42: 11 | AB42: 25 | AC42: 0 | AE42: 3 | AF42: 37 | AG42: 0 | AI42: 12 | AJ42: 24 | AK42: 0 | AM42: 10 | AN42: 26 | AO42: 0 | AQ42: 7 | AR42: 29 | AS42: 0 | AU42: 9 | AV42: 27 | AW42: 0
A43: Guilherme Rocha | B43: 417 | C43: 2 | D43: 40 | E43: 0 | G43: 2 | H43: 40 | I43: 0 | K43: 7 | L43: 29 | M43: 0 | O43: 9 | P43: 27 | Q43: 0 | S43: 11 | T43: 25 | U43: 0 | W43: 4 | X43: 35 | Y43: 0 | AA43: 6 | AB43: 31 | AC43: 0 | AE43: 1 | AF43: 45 | AG43: 0 | AI43: 5 | AJ43: 33 | AK43: 0 | AM43: 3 | AN43: 37 | AO43: 0 | AQ43: 2 | AR43: 40 | AS43: 0 | AU43: 4 | AV43: 35 | AW43: 0
A44: Wilson Cristofani | B44: 287 | C44: 8 | D44: 28 | E44: 0 | G44: 12 | H44: 24 | I44: 0 | K44: 3 | L44: 37 | M44: 0 | O44: 8 | P44: 28 | Q44: 0 | T44: 0 | U44: 0 | X44: 0 | Y44: 0 | AA44: 8 | AB44: 28 | AC44: 0 | AE44: 7 | AF44: 29 | AG44: 0 | AJ44: 0 | AK44: 0 | AM44: 1 | AN44: 45 | AO44: 1 | AQ44: 4 | AR44: 35 | AS44: 1 | AU44: 6 | AV44: 31 | AW44: 0
A45: XXXXXXX
A46: XXXXXXX | B46: 0

Sheet Class Elimin 2 Piores Equip
A1: 2023 | D1: OK | H1: OK | L1: OK | P1: OK | T1: OK | X1: OK | AB1: OK | AF1: OK | AJ1: OK | AN1: OK | AR1: OK | AV1: OK
C2: 44945 | G2: 44959 | K2: 44987 | O2: 45050 | S2: 45078 | W2: 45113 | AA2: 45141 | AE2: 45183 | AI2: 45195 | AM2: 45204 | AQ2: 45239 | AU2: 45267
C3: 00:00:00 | G3: 00:00:00 | K3: 00:00:00 | O3: 00:00:00 | S3: 00:00:00 | W3: 00:00:00 | AA3: 00:00:00 | AE3: 00:00:00 | AI3: 00:00:00 | AM3: 00:00:00 | AQ3: 00:00:00 | AU3: 00:00:00
A4: EQUIPES | B4: Pontuação Geral | C4: Posição | D4: Pontos | E4: Bônus | F4: Penalidade | G4: Posição | H4: Pontos | I4: Bônus | J4: Penalidade | K4: Posição | L4: Pontos | M4: Bônus | N4: Penalidade | O4: Posição | P4: Pontos | Q4: Bônus | R4: Penalidade | S4: Posição | T4: Pontos | U4: Bônus | V4: Penalidade | W4: Posição | X4: Pontos | Y4: Bônus | Z4: Penalidade | AA4: Posição | AB4: Pontos | AC4: Bônus | AD4: Penalidade | AE4: Posição | AF4: Pontos | AG4: Bônus | AH4: Penalidade | AI4: Posição | AJ4: Pontos | AK4: Bônus | AL4: Penalidade | AM4: Posição | AN4: Pontos | AO4: Bônus | AP4: Penalidade | AQ4: Posição | AR4: Pontos | AS4: Bônus | AT4: Penalidade | AU4: Posição | AV4: Pontos | AW4: Bônus | AX4: Penalidade
A5: Os Piratas | B5: 733 | D5: 85 | E5: 0 | H5: 77 | I5: 0 | L5: 68 | M5: 0 | P5: 61 | Q5: 0 | T5: 54* | U5: 0 | X5: 75 | Y5: 1 | AB5: 59 | AC5: 0 | AF5: 82 | AG5: 0 | AJ5: 57* | AK5: 0 | AN5: 82 | AO5: 1 | AR5: 75 | AS5: 1 | AV5: 66 | AW5: 0
A6: Luciano Brandão | B6: 224 | C6: 1 | D6: 45 | E6: 0 | G6: 3 | H6: 37 | I6: 0 | K6: 6 | L6: 31 | M6: 0 | O6: 5 | P6: 33 | Q6: 0 | S6: 7 | T6: 29* | U6: 0 | W6: 2 | X6: 40 | Y6: 1 | AA6: 11 | AB6: 25* | AC6: 0 | AE6: 3 | AF6: 37 | AG6: 0 | AI6: 12 | AJ6: 24* | AK6: 0 | AM6: 10 | AN6: 26* | AO6: 0 | AQ6: 7 | AR6: 29* | AS6: 0 | AU6: 9 | AV6: 27* | AW6: 0
A7: Guilherme Rocha | B7: 303 | C7: 2 | D7: 40 | E7: 0 | G7: 2 | H7: 40 | I7: 0 | K7: 7 | L7: 29* | M7: 0 | O7: 9 | P7: 27* | Q7: 0 | S7: 11 | T7: 25* | U7: 0 | W7: 4 | X7: 35 | Y7: 0 | AA7: 6 | AB7: 31 | AC7: 0 | AE7: 1 | AF7: 45 | AG7: 0 | AI7: 5 | AJ7: 33* | AK7: 0 | AM7: 3 | AN7: 37 | AO7: 0 | AQ7: 2 | AR7: 40 | AS7: 0 | AU7: 4 | AV7: 35 | AW7: 0
A8: Wilson Cristofani | B8: 206 | C8: 8 | D8: 28* | E8: 0 | G8: 12 | H8: 24* | I8: 0 | K8: 3 | L8: 37 | M8: 0 | O8: 8 | P8: 28 | Q8: 0 | T8: 0* | U8: 0 | X8: 0 | Y8: 0 | AA8: 8 | AB8: 28 | AC8: 0 | AE8: 7 | AF8: 29* | AG8: 0 | AJ8: 0* | AK8: 0 | AM8: 1 | AN8: 45 | AO8: 1 | AQ8: 4 | AR8: 35 | AS8: 1 | AU8: 6 | AV8: 31 | AW8: 0
A9: XXXXXXX | T9: * | AJ9: *
A10: XXXXXXX | B10: 0 | T10: * | AJ10: *
A11: ComOferta | B11: 698 | D11: 60 | E11: 0 | H11: 54* | I11: 1 | L11: 52* | M11: 0 | P11: 61 | Q11: 0 | T11: 68 | U11: 0 | X11: 66 | Y11: 0 | AB11: 82 | AC11: 1 | AF11: 66 | AG11: 0 | AJ11: 72 | AK11: 0 | AN11: 73 | AO11: 0 | AR11: 78 | AS11: 0 | AV11: 69 | AW11: 1
A12: Alexandre Melillo | B12: 310 | C12: 9 | D12: 27* | E12: 0 | G12: 15 | H12: 21* | I12: 0 | K12: 9 | L12: 27* | M12: 0 | O12: 10 | P12: 26 | Q12: 0 | S12: 8 | T12: 28 | U12: 0 | W12: 3 | X12: 37 | Y12: 0 | AA12: 1 | AB12: 45 | AC12: 1 | AE12: 6 | AF12: 31 | AG12: 0 | AI12: 4 | AJ12: 35 | AK12: 0 | AM12: 5 | AN12: 33 | AO12: 0 | AQ12: 5 | AR12: 33 | AS12: 0 | AU12: 2 | AV12: 40 | AW12: 1
A13: Agostinho Neves | B13: 31 | C13: 6 | D13: 31 | E13: 0 | H13: 0* | I13: 0 | L13: 0* | M13: 0 | P13: 0 | Q13: 0 | T13: 0 | U13: 0 | X13: 0 | Y13: 0 | AB13: 0 | AC13: 0 | AF13: 0 | AG13: 0 | AJ13: 0 | AK13: 0 | AN13: 0 | AO13: 0 | AR13: 0 | AS13: 0 | AV13: 0 | AW13: 0
A14: Matheus Dias | B14: 357 | C14: 7 | D14: 29 | E14: 0 | G14: 5 | H14: 33* | I14: 1 | K14: 11 | L14: 25* | M14: 0 | O14: 4 | P14: 35 | Q14: 0 | S14: 2 | T14: 40 | U14: 0 | W14: 7 | X14: 29 | Y14: 0 | AA14: 3 | AB14: 37 | AC14: 0 | AE14: 4 | AF14: 35 | AG14: 0 | AI14: 3 | AJ14: 37 | AK14: 0 | AM14: 2 | AN14: 40 | AO14: 0 | AQ14: 1 | AR14: 45 | AS14: 0 | AU14: 7 | AV14: 29 | AW14: 0
A15: XX | H15: * | L15: *
A16: XX | H16: * | L16: *
A17: Multiseg | B17: 653 | D17: 55 | E17: 1 | H17: 57 | I17: 0 | L17: 55 | M17: 0 | P17: 65 | Q17: 0 | T17: 69 | U17: 1 | X17: 73 | Y17: 0 | AB17: 73 | AC17: 0 | AF17: 66 | AG17: 1 | AJ17: 74 | AK17: 1 | AN17: 53* | AO17: 0 | AR17: 49* | AS17: 0 | AV17: 62 | AW17: 0
A18: Fernando Mota | B18: 350 | C18: 14 | D18: 22 | E18: 0 | H18: 0 | I18: 0 | K18: 5 | L18: 33 | M18: 0 | O18: 2 | P18: 40 | Q18: 0 | S18: 1 | T18: 45 | U18: 1 | W18: 1 | X18: 45 | Y18: 0 | AA18: 2 | AB18: 40 | AC18: 0 | AE18: 2 | AF18: 40 | AG18: 1 | AI18: 1 | AJ18: 45 | AK18: 1 | AM18: 17 | AN18: 19** | AO18: 0 | AQ18: 12 | AR18: 24* | AS18: 0 | AU18: 3 | AV18: 37 | AW18: 0
A19: Vitor Diniz | B19: 162 | C19: 5 | D19: 33 | E19: 1 | G19: 10 | H19: 26 | I19: 0 | K19: 18 | L19: 18* | M19: 0 | O19: 11 | P19: 25 | Q19: 0 | S19: 12 | T19: 24 | U19: 0 | W19: 8 | X19: 28 | Y19: 0 | AA19: 9 | AB19: 27* | AC19: 0 | AE19: 11 | AF19: 25* | AG19: 0 | AI19: 9 | AJ19: 27* | AK19: 0 | AM19: 8 | AN19: 28* | AO19: 0 | AR19: 0* | AS19: 0 | AU19: 11 | AV19: 25 | AW19: 0
A20: Anderson Oliveira | B20: 141 | D20: 0 | E20: 0 | G20: 6 | H20: 31 | I20: 0 | K20: 14 | L20: 22 | M20: 0 | P20: 0 | Q20: 0 | T20: 0 | U20: 0 | W20: 13 | X20: 23* | Y20: 0 | AA20: 5 | AB20: 33 | AC20: 0 | AE20: 10 | AF20: 26 | AG20: 0 | AI20: 7 | AJ20: 29 | AK20: 0 | AM20: 11 | AN20: 25* | AO20: 0 | AQ20: 11 | AR20: 25* | AS20: 0 | AU20: 15 | AV20: 21* | AW20: 0
A21: X | AN21: * | AR21: *
A22: X | B22: 0 | AN22: * | AR22: *
A23: Grupo Santiago | B23: 590 | D23: 63 | E23: 0 | H23: 45* | I23: 0 | L23: 66 | M23: 1 | P23: 59 | Q23: 1 | T23: 50 | U23: 0 | X23: 53 | Y23: 0 | AB23: 59 | AC23: 0 | AF23: 46* | AG23: 0 | AJ23: 48 | AK23: 0 | AN23: 58 | AO23: 0 | AR23: 54 | AS23: 0 | AV23: 78 | AW23: 0
A24: Leonardo Mattioda | B24: 286 | C24: 3 | D24: 37 | E24: 0 | G24: 1 | H24: 45* | I24: 0 | K24: 1 | L24: 45 | M24: 0 | O24: 3 | P24: 37 | Q24: 1 | S24: 3 | T24: 37 | U24: 0 | W24: 10 | X24: 26 | Y24: 0 | AB24: 0 | AC24: 0 | AE24: 14 | AF24: 22* | AG24: 0 | AI24: 13 | AJ24: 23 | AK24: 0 | AM24: 4 | AN24: 35 | AO24: 0 | AR24: 0 | AS24: 0 | AU24: 1 | AV24: 45 | AW24: 0
A25: Leodegario Junior | B25: 160 | C25: 10 | D25: 26 | E25: 0 | H25: 0* | I25: 0 | K25: 17 | L25: 19* | M25: 0 | O25: 14 | P25: 22 | Q25: 0 | S25: 23 | T25: 13 | U25: 0 | W25: 9 | X25: 27 | Y25: 0 | AA25: 12 | AB25: 24 | AC25: 0 | AE25: 12 | AF25: 24* | AG25: 0 | AI25: 11 | AJ25: 25 | AK25: 0 | AM25: 15 | AN25: 21* | AO25: 0 | AQ25: 13 | AR25: 23 | AS25: 0 | AU25: 14 | AV25: 22* | AW25: 0
A26: Mathias Almeida | B26: 144 | D26: 0 | E26: 0 | H26: 0* | I26: 0 | K26: 15 | L26: 21 | M26: 1 | O26: 15 | P26: 21* | Q26: 0 | T26: 0 | U26: 0 | X26: 0 | Y26: 0 | AA26: 4 | AB26: 35 | AC26: 0 | AF26: 0* | AG26: 0 | AJ26: 0 | AK26: 0 | AM26: 13 | AN26: 23 | AO26: 0 | AQ26: 6 | AR26: 31 | AS26: 0 | AU26: 5 | AV26: 33 | AW26: 0
A27: XXXXXX | H27: * | AF27: *
A28: XXXXXX | B28: 0 | H28: * | AF28: *
A29: AST Estrutura | B29: 590 | D29: 19* | E29: 0 | H29: 63 | I29: 0 | L29: 58 | M29: 0 | P29: 65 | Q29: 0 | T29: 64 | U29: 0 | X29: 57 | Y29: 0 | AB29: 23* | AC29: 0 | AF29: 55 | AG29: 0 | AJ29: 59 | AK29: 0 | AN29: 55 | AO29: 0 | AR29: 65 | AS29: 0 | AV29: 49 | AW29: 0
A30: Joanes Gouvea | B30: 331 | D30: 0* | E30: 0 | G30: 4 | H30: 35 | I30: 0 | K30: 4 | L30: 35 | M30: 0 | O30: 1 | P30: 45 | Q30: 0 | S30: 5 | T30: 33 | U30: 0 | W30: 5 | X30: 33 | Y30: 0 | AB30: 0* | AC30: 0 | AE30: 8 | AF30: 28 | AG30: 0 | AI30: 6 | AJ30: 31 | AK30: 0 | AM30: 6 | AN30: 31 | AO30: 0 | AQ30: 3 | AR30: 37 | AS30: 0 | AU30: 13 | AV30: 23 | AW30: 0
A31: Arthur Santiago | B31: 78 | C31: 17 | D31: 19* | E31: 0 | H31: 0 | I31: 0 | K31: 19 | L31: 17* | M31: 0 | O31: 16 | P31: 20 | Q31: 0 | S31: 6 | T31: 31 | U31: 0 | W31: 28 | X31: 8* | Y31: 0 | AB31: 0* | AC31: 0 | AE31: 9 | AF31: 27 | AG31: 0 | AJ31: 0 | AK31: 0 | AM31: 14 | AN31: 22* | AO31: 0 | AR31: 0 | AS31: 0 | AV31: 0 | AW31: 0
A32: Hélio Pedrolli | B32: 181 | D32: 0* | E32: 0 | G32: 8 | H32: 28 | I32: 0 | K32: 13 | L32: 23 | M32: 0 | P32: 0 | Q32: 0 | T32: 0 | U32: 0 | W32: 12 | X32: 24 | Y32: 0 | AA32: 13 | AB32: 23* | AC32: 0 | AF32: 0 | AG32: 0 | AI32: 8 | AJ32: 28 | AK32: 0 | AM32: 12 | AN32: 24 | AO32: 0 | AQ32: 8 | AR32: 28 | AS32: 0 | AU32: 10 | AV32: 26 | AW32: 0
A33: XXXX | B33: 0 | D33: * | AB33: *
A34: XXXX | B34: 0 | D34: * | AB34: *
A35: Essencia Studio | B35: 517 | D35: 59 | E35: 0 | H35: 56 | I35: 0 | L35: 60 | M35: 0 | P35: 55 | Q35: 0 | T35: 61 | U35: 0 | X35: 56 | Y35: 0 | AB35: 26* | AC35: 0 | AF35: 56 | AG35: 0 | AJ35: 40 | AK35: 0 | AN35: 47 | AO35: 0 | AR35: 27 | AS35: 0 | AV35: 24* | AW35: 0
A36: Anderson Teixeira | B36: 257 | D36: 0 | E36: 0 | G36: 9 | H36: 27 | I36: 0 | K36: 2 | L36: 40 | M36: 0 | O36: 6 | P36: 31 | Q36: 0 | S36: 4 | T36: 35 | U36: 0 | W36: 6 | X36: 31 | Y36: 0 | AB36: 0* | AC36: 0 | AE36: 5 | AF36: 33 | AG36: 0 | AI36: 2 | AJ36: 40 | AK36: 0 | AM36: 16 | AN36: 20 | AO36: 0 | AR36: 0 | AS36: 0 | AV36: 0* | AW36: 0
A37: Gladson Souza | B37: 225 | C37: 12 | D37: 24 | E37: 0 | G37: 7 | H37: 29 | I37: 0 | K37: 16 | L37: 20 | M37: 0 | O37: 12 | P37: 24 | Q37: 0 | S37: 10 | T37: 26 | U37: 0 | W37: 11 | X37: 25 | Y37: 0 | AA37: 10 | AB37: 26* | AC37: 0 | AE37: 13 | AF37: 23 | AG37: 0 | AJ37: 0 | AK37: 0 | AM37: 9 | AN37: 27 | AO37: 0 | AQ37: 9 | AR37: 27 | AS37: 0 | AU37: 12 | AV37: 24* | AW37: 0
A38: Antônio Ribeiro | B38: 35 | C38: 4 | D38: 35 | E38: 0 | G38: 14 | H38: 22* | I38: 0 | L38: 0 | M38: 0 | P38: 0 | Q38: 0 | T38: 0 | U38: 0 | X38: 0 | Y38: 0 | AB38: 0* | AC38: 0 | AF38: 0 | AG38: 0 | AJ38: 0 | AK38: 0 | AN38: 0 | AO38: 0 | AR38: 0 | AS38: 0 | AV38: 0* | AW38: 0
A39: XXX | AB39: * | AV39: *
A40: XXX | B40: 0 | AB40: * | AV40: *
A41: Inovesa | B41: 367 | D41: 48 | E41: 0 | H41: 48 | I41: 0 | L41: 54 | M41: 0 | P41: 52 | Q41: 0 | T41: 27 | U41: 0 | X41: 22* | Y41: 0 | AB41: 29 | AC41: 0 | AF41: 21* | AG41: 0 | AJ41: 26 | AK41: 0 | AN41: 29 | AO41: 0 | AR41: 26 | AS41: 0 | AV41: 28 | AW41: 0
A42: Lúcio Chequer | B42: 242 | C42: 13 | D42: 23 | E42: 0 | G42: 11 | H42: 25 | I42: 0 | K42: 12 | L42: 24* | M42: 0 | O42: 7 | P42: 29 | Q42: 0 | S42: 9 | T42: 27 | U42: 0 | W42: 14 | X42: 22* | Y42: 0 | AA42: 7 | AB42: 29 | AC42: 0 | AF42: 0* | AG42: 0 | AI42: 10 | AJ42: 26 | AK42: 0 | AM42: 7 | AN42: 29 | AO42: 0 | AQ42: 10 | AR42: 26 | AS42: 0 | AU42: 8 | AV42: 28 | AW42: 0
A43: Aparecido Arantes | B43: 72 | D43: 0 | E43: 0 | G43: 13 | H43: 23 | I43: 0 | K43: 10 | L43: 26 | M43: 0 | O43: 13 | P43: 23 | Q43: 0 | T43: 0 | U43: 0 | X43: 0* | Y43: 0 | AB43: 0 | AC43: 0 | AF43: 0* | AG43: 0 | AJ43: 0 | AK43: 0 | AN43: 0 | AO43: 0 | AR43: 0 | AS43: 0 | AV43: 0 | AW43: 0
A44: Leandro Leite | B44: 53 | C44: 11 | D44: 25 | E44: 0 | H44: 0 | I44: 0 | K44: 8 | L44: 28 | M44: 0 | P44: 0 | Q44: 0 | T44: 0 | U44: 0 | X44: 0* | Y44: 0 | AB44: 0 | AC44: 0 | AE44: 15 | AF44: 21* | AG44: 0 | AJ44: 0 | AK44: 0 | AN44: 0 | AO44: 0 | AR44: 0 | AS44: 0 | AV44: 0 | AW44: 0
A45: XXXXX | X45: * | AF45: *
A46: XXXXX | B46: 0 | X46: * | AF46: *

Sheet Posição x Pontos
H1: Posição | I1: Pontos
H2: 1 | I2: 45
H3: 2 | I3: 40
H4: 3 | I4: 37
H5: 4 | I5: 35
H6: 5 | I6: 33
H7: 6 | I7: 31
H8: 7 | I8: 29
H9: 8 | I9: 28
H10: 9 | I10: 27
H11: 10 | I11: 26
H12: 11 | I12: 25
H13: 12 | I13: 24
H14: 13 | I14: 23
H15: 14 | I15: 22
H16: 15 | I16: 21
H17: 16 | I17: 20
H18: 17 | I18: 19
H19: 18 | I19: 18
H20: 19 | I20: 17
H21: 20 | I21: 16
H22: 21 | I22: 15
H23: 22 | I23: 14
H24: 23 | I24: 13
H25: 24 | I25: 12
H26: 25 | I26: 11
H27: 26 | I27: 10
H28: 27 | I28: 9
H29: 28 | I29: 8
H30: 29 | I30: 7
H31: 30 | I31: 6
H32: 31 | I32: 5
H33: 32 | I33: 4
H34: 33 | I34: 3
H35: 34 | I35: 2
H36: 35 | I36: 1
H37: 36 | I37: 1
